﻿Body,Body name,Date,Transaction number,Invoice Number,Amount,Supplier Name,Supplier ID,VAT Registration Number,Expense Area,Expense Type,Expense Code,BVACOP,ProClass,ProClass Description,Extended Description,Profit Centre,Doc Type Desc_Repeat,Date1,Date2,Doc Type,Doc Type Desc,PO Num,Unk_Id1,Business Types,postcode,Unk_Id2
http://statistics.data.gov.uk/id/local-authority/00BU,Trafford Borough Council,13/05/2020,1901359253,,162,Altrincham Grammar School for Boys,403,GB121527841,YP:Altrincham Gramma,SCHOOL BUDGET SHARE,280040,,,,AltBoyAdv,103403,Vendor invoice,20200507,20200507,VI,Vendor invoice,,0,SCHOOLS,WA14 2RS,N
http://statistics.data.gov.uk/id/local-authority/00BU,Trafford Borough Council,13/05/2020,1901359247,,77,AGGS Academy Trust,404,,YP:Altrincham Gramma,SCHOOL BUDGET SHARE,280040,,,,AltGirlAdv,103404,Vendor invoice,20200507,20200507,VI,Vendor invoice,,0,SCHOOLS,WA14 2NL,N
http://statistics.data.gov.uk/id/local-authority/00BU,Trafford Borough Council,13/05/2020,1901359326,,448301,Sale High School,406,GB149191256,YP:Sale High School,SCHOOL BUDGET SHARE,280040,,171011,EDUCATION :  Children,REDACTED,101406,Vendor invoice,20200507,20200507,VI,Vendor invoice,,0,SCHOOLS,M33 3JR,N
http://statistics.data.gov.uk/id/local-authority/00BU,Trafford Borough Council,26/05/2020,1901360777,20,3813.91,Sale High School,406,GB149191256,YP:Sale High School,Schools' Unall Ch Bk,220852,,171011,EDUCATION :  Children,,102406,Vendor invoice,20200518,20200521,VI,Vendor invoice,,0,SCHOOLS,M33 3JR,N
http://statistics.data.gov.uk/id/local-authority/00BU,Trafford Borough Council,26/05/2020,1901360777,20,798.11,Sale High School,406,GB149191256,YP:Sale High School,Schools' Unall Ch Bk,220852,,171011,EDUCATION :  Children,,102406,Vendor invoice,20200518,20200521,VI,Vendor invoice,,0,SCHOOLS,M33 3JR,N
http://statistics.data.gov.uk/id/local-authority/00BU,Trafford Borough Council,26/05/2020,1901360777,20,9010.4,Sale High School,406,GB149191256,YP:Sale High School,Schools' Unall Ch Bk,220852,,171011,EDUCATION :  Children,,102406,Vendor invoice,20200518,20200521,VI,Vendor invoice,,0,SCHOOLS,M33 3JR,N
http://statistics.data.gov.uk/id/local-authority/00BU,Trafford Borough Council,26/05/2020,1901360777,20,35311.8,Sale High School,406,GB149191256,YP:Sale High School,Schools' Unall Ch Bk,220852,,171011,EDUCATION :  Children,,102406,Vendor invoice,20200518,20200521,VI,Vendor invoice,,0,SCHOOLS,M33 3JR,N
http://statistics.data.gov.uk/id/local-authority/00BU,Trafford Borough Council,26/05/2020,1901360777,20,18273.09,Sale High School,406,GB149191256,YP:Sale High School,Schools' Unall Ch Bk,220852,,171011,EDUCATION :  Children,,102406,Vendor invoice,20200518,20200521,VI,Vendor invoice,,0,SCHOOLS,M33 3JR,N
http://statistics.data.gov.uk/id/local-authority/00BU,Trafford Borough Council,26/05/2020,1901360777,20,-1274.96,Sale High School,406,GB149191256,YP:Sale High School,SCH UNALL CHQ BK INC,360107,,171011,EDUCATION :  Children,,102406,Vendor invoice,20200518,20200521,VI,Vendor invoice,,0,SCHOOLS,M33 3JR,N
http://statistics.data.gov.uk/id/local-authority/00BU,Trafford Borough Council,26/05/2020,1901360777,20,-435347.08,Sale High School,406,GB149191256,YP:Sale High School,SCH UNALL CHQ BK INC,360107,,171011,EDUCATION :  Children,,102406,Vendor invoice,20200518,20200521,VI,Vendor invoice,,0,SCHOOLS,M33 3JR,N
http://statistics.data.gov.uk/id/local-authority/00BU,Trafford Borough Council,26/05/2020,1901360777,20,-67207.31,Sale High School,406,GB149191256,School Cash Advances,CB Schs Contra Entry,290025,,171011,EDUCATION :  Children,,900110,Vendor invoice,20200518,20200521,VI,Vendor invoice,,0,SCHOOLS,M33 3JR,N
http://statistics.data.gov.uk/id/local-authority/00BU,Trafford Borough Council,26/05/2020,1901360777,20,436622.04,Sale High School,406,GB149191256,School Cash Advances,SCH UNALL CHQ BK INC,360107,,171011,EDUCATION :  Children,,900110,Vendor invoice,20200518,20200521,VI,Vendor invoice,,0,SCHOOLS,M33 3JR,N
http://statistics.data.gov.uk/id/local-authority/00BU,Trafford Borough Council,13/05/2020,1901359258,,4828,BROADOAK  SCHOOL,412,,YP:Broadoak High Sch,SCHOOL BUDGET SHARE,280040,,,,B'oak Adv,103412,Vendor invoice,20200507,20200507,VI,Vendor invoice,,0,SCHOOLS,M31 4BU,N
http://statistics.data.gov.uk/id/local-authority/00BU,Trafford Borough Council,13/05/2020,1901359257,,1283,Flixton Girls School Academy Trust,413,GB124660431,YP:Flixton Girls Hig,SCHOOL BUDGET SHARE,280040,,201700,FINANCIAL SERVICES : Grants,REDACTED,103413,Vendor invoice,20200507,20200507,VI,Vendor invoice,,0,SCHOOLS,M41 5DR,N
http://statistics.data.gov.uk/id/local-authority/00BU,Trafford Borough Council,13/05/2020,1901359322,,77063,Lostock College,414,,School Cash Advances,SCHOOL BUDGET SHARE,280040,,171011,EDUCATION :  Children,REDACTED,900110,Vendor invoice,20200507,20200507,VI,Vendor invoice,,0,SCHOOLS,M32 9PL,N
http://statistics.data.gov.uk/id/local-authority/00BU,Trafford Borough Council,26/05/2020,1901360780,20,-16,Lostock College,414,,YP:Lostock College,Schools' Unall Ch Bk,220852,,171011,EDUCATION :  Children,,102414,Vendor invoice,20200518,20200521,VI,Vendor invoice,,0,SCHOOLS,M32 9PL,N
http://statistics.data.gov.uk/id/local-authority/00BU,Trafford Borough Council,26/05/2020,1901360780,20,5197.5,Lostock College,414,,YP:Lostock College,Schools' Unall Ch Bk,220852,,171011,EDUCATION :  Children,,102414,Vendor invoice,20200518,20200521,VI,Vendor invoice,,0,SCHOOLS,M32 9PL,N
http://statistics.data.gov.uk/id/local-authority/00BU,Trafford Borough Council,26/05/2020,1901360780,20,-12.87,Lostock College,414,,YP:Lostock College,SCH UNALL CHQ BK INC,360107,,171011,EDUCATION :  Children,,102414,Vendor invoice,20200518,20200521,VI,Vendor invoice,,0,SCHOOLS,M32 9PL,N
http://statistics.data.gov.uk/id/local-authority/00BU,Trafford Borough Council,26/05/2020,1901360780,20,-2652,Lostock College,414,,YP:Lostock College,SCH UNALL CHQ BK INC,360107,,171011,EDUCATION :  Children,,102414,Vendor invoice,20200518,20200521,VI,Vendor invoice,,0,SCHOOLS,M32 9PL,N
http://statistics.data.gov.uk/id/local-authority/00BU,Trafford Borough Council,26/05/2020,1901360780,20,-5181.5,Lostock College,414,,School Cash Advances,CB Schs Contra Entry,290025,,171011,EDUCATION :  Children,,900110,Vendor invoice,20200518,20200521,VI,Vendor invoice,,0,SCHOOLS,M32 9PL,N
http://statistics.data.gov.uk/id/local-authority/00BU,Trafford Borough Council,26/05/2020,1901360780,20,2664.87,Lostock College,414,,School Cash Advances,SCH UNALL CHQ BK INC,360107,,171011,EDUCATION :  Children,,900110,Vendor invoice,20200518,20200521,VI,Vendor invoice,,0,SCHOOLS,M32 9PL,N
http://statistics.data.gov.uk/id/local-authority/00BU,Trafford Borough Council,13/05/2020,1901359329,,673010,Blessed Thomas Halford Sch,424,,YP:Blessed Thomas Ho,SCHOOL BUDGET SHARE,280040,,171000,EDUCATION : Services,REDACTED,101424,Vendor invoice,20200507,20200507,VI,Vendor invoice,,0,SCHOOLS,WA15 8HT,N
http://statistics.data.gov.uk/id/local-authority/00BU,Trafford Borough Council,13/05/2020,1901359271,,23443,Ashton on Mersey School,426,GB132924425,YP:Ashton on Mersey,SCHOOL BUDGET SHARE,280040,,171011,EDUCATION :  Children,REDACTED,103426,Vendor invoice,20200507,20200507,VI,Vendor invoice,,0,SCHOOLS,M33 5BP,N
http://statistics.data.gov.uk/id/local-authority/00BU,Trafford Borough Council,13/05/2020,1901359327,,384043,Stretford Grammar School,428,,YP:Stretford Grammar,SCHOOL BUDGET SHARE,280040,,171011,EDUCATION :  Children,REDACTED,101428,Vendor invoice,20200507,20200507,VI,Vendor invoice,,0,SCHOOLS,M32 8JB,N
http://statistics.data.gov.uk/id/local-authority/00BU,Trafford Borough Council,13/05/2020,1901359251,,1847,Urmston Grammar School,429,GB120165661,YP:Urmston Grammar S,SCHOOL BUDGET SHARE,280040,,171011,EDUCATION :  Children,REDACTED,103429,Vendor invoice,20200507,20200507,VI,Vendor invoice,,0,SCHOOLS,M41 5UG,N
http://statistics.data.gov.uk/id/local-authority/00BU,Trafford Borough Council,13/05/2020,1901359255,,4348,Wellington School,430,,YP:Wellington Sch,SCHOOL BUDGET SHARE,280040,,171000,EDUCATION : Services,REDACTED,103430,Vendor invoice,20200507,20200507,VI,Vendor invoice,,0,SCHOOLS,WA15 7RH,N
http://statistics.data.gov.uk/id/local-authority/00BU,Trafford Borough Council,13/05/2020,1901359328,,518251,STRETFORD HIGH SCHOOL,431,,YP:Stretford High Sc,SCHOOL BUDGET SHARE,280040,,,,StretHiAdv,101431,Vendor invoice,20200507,20200507,VI,Vendor invoice,,0,SCHOOLS,M32 0XA,N
http://statistics.data.gov.uk/id/local-authority/00BU,Trafford Borough Council,13/05/2020,1901359254,,2339,Sale Grammar School,432,GB120951441,YP:Sale Grammar Sch,SCHOOL BUDGET SHARE,280040,,291000,LEISURE SERVICES : Events,SaleGramAdv,103432,Vendor invoice,20200507,20200507,VI,Vendor invoice,,0,SCHOOLS,M33 3NH,N
http://statistics.data.gov.uk/id/local-authority/00BU,Trafford Borough Council,13/05/2020,1901359321,,89108,St Antonys Catholic College,433,GB149191256,School Cash Advances,SCHOOL BUDGET SHARE,280040,,171011,EDUCATION :  Children,REDACTED,900110,Vendor invoice,20200507,20200507,VI,Vendor invoice,,0,SCHOOLS,M41 9PD,N
http://statistics.data.gov.uk/id/local-authority/00BU,Trafford Borough Council,13/05/2020,1901359252,,189,Loreto Grammar School,434,,YP:Loreto Grammar Sc,SCHOOL BUDGET SHARE,280040,,171000,EDUCATION : Services,REDACTED,103434,Vendor invoice,20200507,20200507,VI,Vendor invoice,,0,SCHOOLS,WA14 4AH,N
http://statistics.data.gov.uk/id/local-authority/00BU,Trafford Borough Council,13/05/2020,1901359250,,104,St Ambrose College,435,GB133780025,YP:St Ambrose Colleg,SCHOOL BUDGET SHARE,280040,,201700,FINANCIAL SERVICES : Grants,REDACTED,103435,Vendor invoice,20200507,20200507,VI,Vendor invoice,,0,SCHOOLS,WA15 0HE,N
http://statistics.data.gov.uk/id/local-authority/00BU,Trafford Borough Council,13/05/2020,1901359248,,7656,Altrincham College of Arts Academy,436,GB149191256,YP:AltrinchamCollege,SCHOOL BUDGET SHARE,280040,,171011,EDUCATION :  Children,REDACTED,103427,Vendor invoice,20200507,20200507,VI,Vendor invoice,,0,SCHOOLS,WA15 8QW,N
http://statistics.data.gov.uk/id/local-authority/00BU,Trafford Borough Council,13/05/2020,1901359298,,44285,Delamere School,504,,School Cash Advances,SCHOOL BUDGET SHARE,280040,,321200,SC : Disabled Children,REDACTED,900110,Vendor invoice,20200507,20200507,VI,Vendor invoice,,0,SCHOOLS,M41 6AP,N
http://statistics.data.gov.uk/id/local-authority/00BU,Trafford Borough Council,13/05/2020,1901359270,,45346,The Orchards School,505,,YP:The Orchards,SCHOOL BUDGET SHARE,280040,,,,Orch Free Sch,103515,Vendor invoice,20200507,20200507,VI,Vendor invoice,,0,SCHOOLS,M41 6NA,N
http://statistics.data.gov.uk/id/local-authority/00BU,Trafford Borough Council,13/05/2020,1901359275,,12082,EGERTON HIGH SCHOOL,514,,School Cash Advances,SCHOOL BUDGET SHARE,280040,,,,EgertonAdv,900110,Vendor invoice,20200507,20200507,VI,Vendor invoice,,0,SCHOOLS,M41 7FZ,N
http://statistics.data.gov.uk/id/local-authority/00BU,Trafford Borough Council,20/05/2020,1700054445,01042304,-187.2,ASCOT HOUSE IMPREST,1005,,ASCOT HOUSE PENNINE,TRAVELLING EXPENSES,210400,,,,,154013,Vendor credit memo,20200424,20200501,VC,Vendor credit memo,,0,IMPREST ACCOUNT,M33 4GT,Y
http://statistics.data.gov.uk/id/local-authority/00BU,Trafford Borough Council,20/05/2020,1700054445,01042304,-34.1,ASCOT HOUSE IMPREST,1005,,ASCOT HOUSE PENNINE,CATERING PROVISIONS,220100,,,,,154013,Vendor credit memo,20200424,20200501,VC,Vendor credit memo,,0,IMPREST ACCOUNT,M33 4GT,N
http://statistics.data.gov.uk/id/local-authority/00BU,Trafford Borough Council,20/05/2020,1700054445,01042304,-0.25,ASCOT HOUSE IMPREST,1005,,ASCOT HOUSE PENNINE,CATERING PROVISIONS,220100,,,,,154013,Vendor credit memo,20200424,20200501,VC,Vendor credit memo,,0,IMPREST ACCOUNT,M33 4GT,N
http://statistics.data.gov.uk/id/local-authority/00BU,Trafford Borough Council,20/05/2020,1700054445,01042304,-12.57,ASCOT HOUSE IMPREST,1005,,ASCOT HOUSE PENNINE,MEDICAL REQUISITES,220076,,,,,154013,Vendor credit memo,20200424,20200501,VC,Vendor credit memo,,0,IMPREST ACCOUNT,M33 4GT,N
http://statistics.data.gov.uk/id/local-authority/00BU,Trafford Borough Council,20/05/2020,1700054445,01042304,-53.69,ASCOT HOUSE IMPREST,1005,,ASCOT HOUSE PENNINE,MEDICAL REQUISITES,220076,,,,,154013,Vendor credit memo,20200424,20200501,VC,Vendor credit memo,,0,IMPREST ACCOUNT,M33 4GT,N
http://statistics.data.gov.uk/id/local-authority/00BU,Trafford Borough Council,20/05/2020,1700054445,01042304,-21.5,ASCOT HOUSE IMPREST,1005,,ASCOT HOUSE PENNINE,SUPP & SERV COVID 19,220495,,,,,154013,Vendor credit memo,20200424,20200501,VC,Vendor credit memo,,0,IMPREST ACCOUNT,M33 4GT,N
http://statistics.data.gov.uk/id/local-authority/00BU,Trafford Borough Council,20/05/2020,1700054445,01042304,-3.75,ASCOT HOUSE IMPREST,1005,,ASCOT HOUSE PENNINE,CLEANING MATERIALS,201130,,,,,154013,Vendor credit memo,20200424,20200501,VC,Vendor credit memo,,0,IMPREST ACCOUNT,M33 4GT,Y
http://statistics.data.gov.uk/id/local-authority/00BU,Trafford Borough Council,20/05/2020,1700054445,01042304,-6.98,ASCOT HOUSE IMPREST,1005,,ASCOT HOUSE PENNINE,POSTAGES,220515,,,,,154013,Vendor credit memo,20200424,20200501,VC,Vendor credit memo,,0,IMPREST ACCOUNT,M33 4GT,Y
http://statistics.data.gov.uk/id/local-authority/00BU,Trafford Borough Council,20/05/2020,1901357874,01042304,187.2,ASCOT HOUSE IMPREST,1005,,ASCOT HOUSE PENNINE,TRAVELLING EXPENSES,210400,,,,,154013,Vendor invoice,20200423,20200501,VI,Vendor invoice,,0,IMPREST ACCOUNT,M33 4GT,Y
http://statistics.data.gov.uk/id/local-authority/00BU,Trafford Borough Council,20/05/2020,1901357874,01042304,34.1,ASCOT HOUSE IMPREST,1005,,ASCOT HOUSE PENNINE,CATERING PROVISIONS,220100,,,,,154013,Vendor invoice,20200423,20200501,VI,Vendor invoice,,0,IMPREST ACCOUNT,M33 4GT,N
http://statistics.data.gov.uk/id/local-authority/00BU,Trafford Borough Council,20/05/2020,1901357874,01042304,0.25,ASCOT HOUSE IMPREST,1005,,ASCOT HOUSE PENNINE,CATERING PROVISIONS,220100,,,,,154013,Vendor invoice,20200423,20200501,VI,Vendor invoice,,0,IMPREST ACCOUNT,M33 4GT,N
http://statistics.data.gov.uk/id/local-authority/00BU,Trafford Borough Council,20/05/2020,1901357874,01042304,12.57,ASCOT HOUSE IMPREST,1005,,ASCOT HOUSE PENNINE,MEDICAL REQUISITES,220076,,,,,154013,Vendor invoice,20200423,20200501,VI,Vendor invoice,,0,IMPREST ACCOUNT,M33 4GT,N
http://statistics.data.gov.uk/id/local-authority/00BU,Trafford Borough Council,20/05/2020,1901357874,01042304,53.69,ASCOT HOUSE IMPREST,1005,,ASCOT HOUSE PENNINE,MEDICAL REQUISITES,220076,,,,,154013,Vendor invoice,20200423,20200501,VI,Vendor invoice,,0,IMPREST ACCOUNT,M33 4GT,N
http://statistics.data.gov.uk/id/local-authority/00BU,Trafford Borough Council,20/05/2020,1901357874,01042304,21.5,ASCOT HOUSE IMPREST,1005,,ASCOT HOUSE PENNINE,SUPP & SERV COVID 19,220495,,,,,154013,Vendor invoice,20200423,20200501,VI,Vendor invoice,,0,IMPREST ACCOUNT,M33 4GT,N
http://statistics.data.gov.uk/id/local-authority/00BU,Trafford Borough Council,20/05/2020,1901357874,01042304,3.75,ASCOT HOUSE IMPREST,1005,,ASCOT HOUSE PENNINE,CLEANING MATERIALS,201130,,,,,154013,Vendor invoice,20200423,20200501,VI,Vendor invoice,,0,IMPREST ACCOUNT,M33 4GT,Y
http://statistics.data.gov.uk/id/local-authority/00BU,Trafford Borough Council,20/05/2020,1901357874,01042304,6.98,ASCOT HOUSE IMPREST,1005,,ASCOT HOUSE PENNINE,POSTAGES,220515,,,,,154013,Vendor invoice,20200423,20200501,VI,Vendor invoice,,0,IMPREST ACCOUNT,M33 4GT,Y
http://statistics.data.gov.uk/id/local-authority/00BU,Trafford Borough Council,20/05/2020,1901357874,01042304,-132,ASCOT HOUSE IMPREST,1005,,ASCOT HOUSE PENNINE,EXTERNAL DAY-TO-DAY,200100,,,,,154013,Vendor invoice,20200423,20200501,VI,Vendor invoice,,0,IMPREST ACCOUNT,M33 4GT,Y
http://statistics.data.gov.uk/id/local-authority/00BU,Trafford Borough Council,20/05/2020,1901360716,,500,ASCOT HOUSE IMPREST,1005,,ASCOT HOUSE,CASH IMPREST,608010,,,,,154000,Vendor invoice,20200520,20200520,VI,Vendor invoice,,0,IMPREST ACCOUNT,M33 4GT,N
http://statistics.data.gov.uk/id/local-authority/00BU,Trafford Borough Council,06/05/2020,1901358843,,110,ADOLESCENT RESOURCE CENTRE,1008,,MARAT SECTION 17,SECT 17 PAY ITEM 6,220760,,,,,130705,Vendor invoice,20200504,20200505,VI,Vendor invoice,,0,IMPREST ACCOUNT,M33,N
http://statistics.data.gov.uk/id/local-authority/00BU,Trafford Borough Council,06/05/2020,1901358843,,350,ADOLESCENT RESOURCE CENTRE,1008,,CENTRAL : S17&CLIENT,SECT 17 PAY ITEM 6,220760,,,,,130680,Vendor invoice,20200504,20200505,VI,Vendor invoice,,0,IMPREST ACCOUNT,M33,N
http://statistics.data.gov.uk/id/local-authority/00BU,Trafford Borough Council,06/05/2020,1901358843,,260,ADOLESCENT RESOURCE CENTRE,1008,,Families Matter,SECT 17 PAY ITEM 6,220760,,,,,130160,Vendor invoice,20200504,20200505,VI,Vendor invoice,,0,IMPREST ACCOUNT,M33,N
http://statistics.data.gov.uk/id/local-authority/00BU,Trafford Borough Council,06/05/2020,1901358843,,110.97,ADOLESCENT RESOURCE CENTRE,1008,,SOUTH:S17&CLIENT,SECT 17 PAY ITEM 6,220760,,,,,130682,Vendor invoice,20200504,20200505,VI,Vendor invoice,,0,IMPREST ACCOUNT,M33,N
http://statistics.data.gov.uk/id/local-authority/00BU,Trafford Borough Council,06/05/2020,1901358843,,365,ADOLESCENT RESOURCE CENTRE,1008,,WEST : S17 & CLIENT,SECT 17 PAY ITEM 6,220760,,,,,130670,Vendor invoice,20200504,20200505,VI,Vendor invoice,,0,IMPREST ACCOUNT,M33,N
http://statistics.data.gov.uk/id/local-authority/00BU,Trafford Borough Council,06/05/2020,1901358843,,20,ADOLESCENT RESOURCE CENTRE,1008,,NORTH : S17 & CLIENT,SECT 17 PAY ITEM 6,220760,,,,,130660,Vendor invoice,20200504,20200505,VI,Vendor invoice,,0,IMPREST ACCOUNT,M33,N
http://statistics.data.gov.uk/id/local-authority/00BU,Trafford Borough Council,11/05/2020,1901359143,11052020,524.44,OLD HALL ROAD,1009,,OLD HALL ROAD,CATERING PROVISIONS,220100,,,,,130465,Vendor invoice,20200511,20200511,VI,Vendor invoice,,0,IMPREST ACCOUNT,M32 9TL,N
http://statistics.data.gov.uk/id/local-authority/00BU,Trafford Borough Council,11/05/2020,1901359143,11052020,39.97,OLD HALL ROAD,1009,,OLD HALL ROAD,CLIENTS PERS NEEDS,220412,,,,,130465,Vendor invoice,20200511,20200511,VI,Vendor invoice,,0,IMPREST ACCOUNT,M32 9TL,N
http://statistics.data.gov.uk/id/local-authority/00BU,Trafford Borough Council,11/05/2020,1901359143,11052020,69.9,OLD HALL ROAD,1009,,OLD HALL ROAD,CLIENTS POCK MON GIF,240310,,,,,130465,Vendor invoice,20200511,20200511,VI,Vendor invoice,,0,IMPREST ACCOUNT,M32 9TL,N
http://statistics.data.gov.uk/id/local-authority/00BU,Trafford Borough Council,11/05/2020,1901359143,11052020,405.71,OLD HALL ROAD,1009,,OLD HALL ROAD,EQUIPMENT - PURCHASE,220048,,,,,130465,Vendor invoice,20200511,20200511,VI,Vendor invoice,,0,IMPREST ACCOUNT,M32 9TL,Y
http://statistics.data.gov.uk/id/local-authority/00BU,Trafford Borough Council,11/05/2020,1901359143,11052020,10.47,OLD HALL ROAD,1009,,OLD HALL ROAD,CLEANING MATERIALS,201130,,,,,130465,Vendor invoice,20200511,20200511,VI,Vendor invoice,,0,IMPREST ACCOUNT,M32 9TL,Y
http://statistics.data.gov.uk/id/local-authority/00BU,Trafford Borough Council,20/05/2020,1901360711,19052020,618.23,OLD HALL ROAD,1009,,OLD HALL ROAD,CATERING PROVISIONS,220100,,,,IMPREST,130465,Vendor invoice,20200519,20200520,VI,Vendor invoice,,0,IMPREST ACCOUNT,M32 9TL,N
http://statistics.data.gov.uk/id/local-authority/00BU,Trafford Borough Council,20/05/2020,1901360711,19052020,280.47,OLD HALL ROAD,1009,,OLD HALL ROAD,CLIENTS PERS NEEDS,220412,,,,IMPREST,130465,Vendor invoice,20200519,20200520,VI,Vendor invoice,,0,IMPREST ACCOUNT,M32 9TL,N
http://statistics.data.gov.uk/id/local-authority/00BU,Trafford Borough Council,20/05/2020,1901360711,19052020,151.2,OLD HALL ROAD,1009,,OLD HALL ROAD,CLIENTS POCK MON GIF,240310,,,,IMPREST,130465,Vendor invoice,20200519,20200520,VI,Vendor invoice,,0,IMPREST ACCOUNT,M32 9TL,N
http://statistics.data.gov.uk/id/local-authority/00BU,Trafford Borough Council,20/05/2020,1901360711,19052020,4.5,OLD HALL ROAD,1009,,OLD HALL ROAD,EQUIPMENT - PURCHASE,220048,,,,IMPREST,130465,Vendor invoice,20200519,20200520,VI,Vendor invoice,,0,IMPREST ACCOUNT,M32 9TL,Y
http://statistics.data.gov.uk/id/local-authority/00BU,Trafford Borough Council,20/05/2020,1901360711,19052020,24.3,OLD HALL ROAD,1009,,OLD HALL ROAD,CLEANING MATERIALS,201130,,,,IMPREST,130465,Vendor invoice,20200519,20200520,VI,Vendor invoice,,0,IMPREST ACCOUNT,M32 9TL,Y
http://statistics.data.gov.uk/id/local-authority/00BU,Trafford Borough Council,20/05/2020,1901360711,19052020,14.03,OLD HALL ROAD,1009,,OLD HALL ROAD,TOILET REQUISITES,201140,,,,IMPREST,130465,Vendor invoice,20200519,20200520,VI,Vendor invoice,,0,IMPREST ACCOUNT,M32 9TL,Y
http://statistics.data.gov.uk/id/local-authority/00BU,Trafford Borough Council,15/05/2020,1901359523,,150,Registrar Office Imprest,1026,,REGISTRATION OF BIRT,SUPP & SERV COVID 19,220495,,,,,603000,Vendor invoice,20200430,20200514,VI,Vendor invoice,,0,IMPREST ACCOUNT,M33 7ZF,N
http://statistics.data.gov.uk/id/local-authority/00BU,Trafford Borough Council,15/05/2020,1901359521,1110752020,107.74,ALTRINCHAM CREMATORIUM,1139,,PP:ALTRINCHAM CREMAT,EXTERNAL DAY-TO-DAY,200100,,,,,540020,Vendor invoice,20200507,20200514,VI,Vendor invoice,,0,IMPREST ACCOUNT,M31 4WS,Y
http://statistics.data.gov.uk/id/local-authority/00BU,Trafford Borough Council,15/05/2020,1901359521,1110752020,29.55,ALTRINCHAM CREMATORIUM,1139,,PP:ALTRINCHAM CREMAT,IT PURCHASES,220545,,,,,540020,Vendor invoice,20200507,20200514,VI,Vendor invoice,,0,IMPREST ACCOUNT,M31 4WS,Y
http://statistics.data.gov.uk/id/local-authority/00BU,Trafford Borough Council,15/05/2020,1901359521,1110752020,65,ALTRINCHAM CREMATORIUM,1139,,PP:ALTRINCHAM CREMAT,POSTAGES,220515,,,,,540020,Vendor invoice,20200507,20200514,VI,Vendor invoice,,0,IMPREST ACCOUNT,M31 4WS,Y
http://statistics.data.gov.uk/id/local-authority/00BU,Trafford Borough Council,15/05/2020,1901359521,1110752020,6.65,ALTRINCHAM CREMATORIUM,1139,,PP:ALTRINCHAM CREMAT,EXTERNAL DAY-TO-DAY,200100,,,,,540020,Vendor invoice,20200507,20200514,VI,Vendor invoice,,0,IMPREST ACCOUNT,M31 4WS,Y
http://statistics.data.gov.uk/id/local-authority/00BU,Trafford Borough Council,15/05/2020,1901359521,1110752020,216.01,ALTRINCHAM CREMATORIUM,1139,,PP:ALTRINCHAM CREMAT,INVESTIGATIONS,220454,,,,,540020,Vendor invoice,20200507,20200514,VI,Vendor invoice,,0,IMPREST ACCOUNT,M31 4WS,Y
http://statistics.data.gov.uk/id/local-authority/00BU,Trafford Borough Council,15/05/2020,1901359522,,120,CYPS NORTH AREA FAMILY SUPPORT TEAM,1405,,NORTH : S17 & CLIENT,SECT 17 PAY ITEM 6,220760,,,,,130660,Vendor invoice,20200505,20200514,VI,Vendor invoice,,0,IMPREST ACCOUNT,M32 0LG,N
http://statistics.data.gov.uk/id/local-authority/00BU,Trafford Borough Council,15/05/2020,1901359522,,302.99,CYPS NORTH AREA FAMILY SUPPORT TEAM,1405,,MARAT SECTION 17,SECT 17 PAY ITEM 6,220760,,,,,130705,Vendor invoice,20200505,20200514,VI,Vendor invoice,,0,IMPREST ACCOUNT,M32 0LG,N
http://statistics.data.gov.uk/id/local-authority/00BU,Trafford Borough Council,15/05/2020,1901359522,,332,CYPS NORTH AREA FAMILY SUPPORT TEAM,1405,,NORTH : S17 & CLIENT,FAM CONT PERS NEEDS,220828,,,,,130660,Vendor invoice,20200505,20200514,VI,Vendor invoice,,0,IMPREST ACCOUNT,M32 0LG,N
http://statistics.data.gov.uk/id/local-authority/00BU,Trafford Borough Council,15/05/2020,1901359522,,70,CYPS NORTH AREA FAMILY SUPPORT TEAM,1405,,NORTH : S17 & CLIENT,CLIENTS PERS NEEDS,220412,,,,,130660,Vendor invoice,20200505,20200514,VI,Vendor invoice,,0,IMPREST ACCOUNT,M32 0LG,N
http://statistics.data.gov.uk/id/local-authority/00BU,Trafford Borough Council,15/05/2020,1901359522,,73.86,CYPS NORTH AREA FAMILY SUPPORT TEAM,1405,,PLACEMENT FOSTERING,PROFESSIONAL FEES,220456,,,,,130435,Vendor invoice,20200505,20200514,VI,Vendor invoice,,0,IMPREST ACCOUNT,M32 0LG,Y
http://statistics.data.gov.uk/id/local-authority/00BU,Trafford Borough Council,18/05/2020,1901359896,250320150520,27,CYPS SOUTH AREA FAMILY SUPPORT TEAM,1406,,FAMILY SUP. CENTRAL,STATIONERY,220310,,,,,130210,Vendor invoice,20200518,20200518,VI,Vendor invoice,,0,IMPREST ACCOUNT,M32 0LG,Y
http://statistics.data.gov.uk/id/local-authority/00BU,Trafford Borough Council,18/05/2020,1901359896,250320150520,40,CYPS SOUTH AREA FAMILY SUPPORT TEAM,1406,,SOUTH:S17&CLIENT,CLIENTS PERS NEEDS,220412,,,,,130682,Vendor invoice,20200518,20200518,VI,Vendor invoice,,0,IMPREST ACCOUNT,M32 0LG,N
http://statistics.data.gov.uk/id/local-authority/00BU,Trafford Borough Council,18/05/2020,1901359896,250320150520,8,CYPS SOUTH AREA FAMILY SUPPORT TEAM,1406,,SOUTH:S17&CLIENT,DP COVID-19 CONTGY,230859,,,,,130682,Vendor invoice,20200518,20200518,VI,Vendor invoice,,0,IMPREST ACCOUNT,M32 0LG,N
http://statistics.data.gov.uk/id/local-authority/00BU,Trafford Borough Council,18/05/2020,1901359896,250320150520,59.98,CYPS SOUTH AREA FAMILY SUPPORT TEAM,1406,,CENTRAL : S17&CLIENT,SECT 17 PAY ITEM 6,220760,,,,,130680,Vendor invoice,20200518,20200518,VI,Vendor invoice,,0,IMPREST ACCOUNT,M32 0LG,N
http://statistics.data.gov.uk/id/local-authority/00BU,Trafford Borough Council,18/05/2020,1901359896,250320150520,250,CYPS SOUTH AREA FAMILY SUPPORT TEAM,1406,,REDUNDANT,OTHER MISC EXPENSES,912850,,,,,255190,Vendor invoice,20200518,20200518,VI,Vendor invoice,,0,IMPREST ACCOUNT,M32 0LG,N
http://statistics.data.gov.uk/id/local-authority/00BU,Trafford Borough Council,18/05/2020,1901359896,250320150520,13,CYPS SOUTH AREA FAMILY SUPPORT TEAM,1406,,CENTRAL : S17&CLIENT,DP COVID-19 CONTGY,230859,,,,,130680,Vendor invoice,20200518,20200518,VI,Vendor invoice,,0,IMPREST ACCOUNT,M32 0LG,N
http://statistics.data.gov.uk/id/local-authority/00BU,Trafford Borough Council,26/05/2020,1901360897,18052020,4.54,CASH,1415,,Sanyu Daycare,CLEANING MATERIALS,201130,,,,IMPREST,130570,Vendor invoice,20200521,20200522,VI,Vendor invoice,,0,IMPREST ACCOUNT,M16 9AD,Y
http://statistics.data.gov.uk/id/local-authority/00BU,Trafford Borough Council,26/05/2020,1901360897,18052020,7.34,CASH,1415,,Sanyu Daycare,TOILET REQUISITES,201140,,,,IMPREST,130570,Vendor invoice,20200521,20200522,VI,Vendor invoice,,0,IMPREST ACCOUNT,M16 9AD,Y
http://statistics.data.gov.uk/id/local-authority/00BU,Trafford Borough Council,26/05/2020,1901360897,18052020,21.82,CASH,1415,,Sanyu Daycare,EDUCATION MATERIALS,220010,,,,IMPREST,130570,Vendor invoice,20200521,20200522,VI,Vendor invoice,,0,IMPREST ACCOUNT,M16 9AD,Y
http://statistics.data.gov.uk/id/local-authority/00BU,Trafford Borough Council,26/05/2020,1901360897,18052020,16.87,CASH,1415,,Sanyu Daycare,EQUIPMENT - PURCHASE,220048,,,,IMPREST,130570,Vendor invoice,20200521,20200522,VI,Vendor invoice,,0,IMPREST ACCOUNT,M16 9AD,Y
http://statistics.data.gov.uk/id/local-authority/00BU,Trafford Borough Council,26/05/2020,1901360897,18052020,2.52,CASH,1415,,Sanyu Daycare,POSTAGES,220515,,,,IMPREST,130570,Vendor invoice,20200521,20200522,VI,Vendor invoice,,0,IMPREST ACCOUNT,M16 9AD,Y
http://statistics.data.gov.uk/id/local-authority/00BU,Trafford Borough Council,26/05/2020,1901360897,18052020,15.96,CASH,1415,,Sanyu Daycare,EDUCATION MATERIALS,220010,,,,IMPREST,130570,Vendor invoice,20200521,20200522,VI,Vendor invoice,,0,IMPREST ACCOUNT,M16 9AD,Y
http://statistics.data.gov.uk/id/local-authority/00BU,Trafford Borough Council,06/05/2020,1901358846,02042020,170.91,Kingsway Park Chlidrens Home (NEW),1425,,Kindle Lodge,CLIENTS POCK MON GIF,240310,,,,,130450,Vendor invoice,20200505,20200505,VI,Vendor invoice,,0,IMPREST ACCOUNT,M41 7FE,N
http://statistics.data.gov.uk/id/local-authority/00BU,Trafford Borough Council,06/05/2020,1901358846,02042020,285.21,Kingsway Park Chlidrens Home (NEW),1425,,Kindle Lodge,CLIENTS PERS NEEDS,220412,,,,,130450,Vendor invoice,20200505,20200505,VI,Vendor invoice,,0,IMPREST ACCOUNT,M41 7FE,N
http://statistics.data.gov.uk/id/local-authority/00BU,Trafford Borough Council,06/05/2020,1901358846,02042020,1250.23,Kingsway Park Chlidrens Home (NEW),1425,,Kindle Lodge,CATERING PROVISIONS,220100,,,,,130450,Vendor invoice,20200505,20200505,VI,Vendor invoice,,0,IMPREST ACCOUNT,M41 7FE,N
http://statistics.data.gov.uk/id/local-authority/00BU,Trafford Borough Council,06/05/2020,1901358846,02042020,120,Kingsway Park Chlidrens Home (NEW),1425,,Kindle Lodge,UNIFORMS,220220,,,,,130450,Vendor invoice,20200505,20200505,VI,Vendor invoice,,0,IMPREST ACCOUNT,M41 7FE,Y
http://statistics.data.gov.uk/id/local-authority/00BU,Trafford Borough Council,06/05/2020,1901358846,02042020,326.08,Kingsway Park Chlidrens Home (NEW),1425,,Kindle Lodge,EQUIPMENT - PURCHASE,220048,,,,,130450,Vendor invoice,20200505,20200505,VI,Vendor invoice,,0,IMPREST ACCOUNT,M41 7FE,Y
http://statistics.data.gov.uk/id/local-authority/00BU,Trafford Borough Council,06/05/2020,1901358846,02042020,44.9,Kingsway Park Chlidrens Home (NEW),1425,,Kindle Lodge,CLIENTS TRAV EXP,220416,,,,,130450,Vendor invoice,20200505,20200505,VI,Vendor invoice,,0,IMPREST ACCOUNT,M41 7FE,N
http://statistics.data.gov.uk/id/local-authority/00BU,Trafford Borough Council,06/05/2020,1901358846,02042020,53.2,Kingsway Park Chlidrens Home (NEW),1425,,Kindle Lodge,TOILET REQUISITES,201140,,,,,130450,Vendor invoice,20200505,20200505,VI,Vendor invoice,,0,IMPREST ACCOUNT,M41 7FE,Y
http://statistics.data.gov.uk/id/local-authority/00BU,Trafford Borough Council,15/05/2020,1901359520,14052020,81.52,Kingsway Park Chlidrens Home (NEW),1425,,Kindle Lodge,CLIENTS POCK MON GIF,240310,,,,,130450,Vendor invoice,20200514,20200514,VI,Vendor invoice,,0,IMPREST ACCOUNT,M41 7FE,N
http://statistics.data.gov.uk/id/local-authority/00BU,Trafford Borough Council,15/05/2020,1901359520,14052020,75.4,Kingsway Park Chlidrens Home (NEW),1425,,Kindle Lodge,CLIENTS PERS NEEDS,220412,,,,,130450,Vendor invoice,20200514,20200514,VI,Vendor invoice,,0,IMPREST ACCOUNT,M41 7FE,N
http://statistics.data.gov.uk/id/local-authority/00BU,Trafford Borough Council,15/05/2020,1901359520,14052020,459.03,Kingsway Park Chlidrens Home (NEW),1425,,Kindle Lodge,CATERING PROVISIONS,220100,,,,,130450,Vendor invoice,20200514,20200514,VI,Vendor invoice,,0,IMPREST ACCOUNT,M41 7FE,N
http://statistics.data.gov.uk/id/local-authority/00BU,Trafford Borough Council,15/05/2020,1901359520,14052020,59.15,Kingsway Park Chlidrens Home (NEW),1425,,Kindle Lodge,UNIFORMS,220220,,,,,130450,Vendor invoice,20200514,20200514,VI,Vendor invoice,,0,IMPREST ACCOUNT,M41 7FE,Y
http://statistics.data.gov.uk/id/local-authority/00BU,Trafford Borough Council,15/05/2020,1901359520,14052020,57.94,Kingsway Park Chlidrens Home (NEW),1425,,Kindle Lodge,EQUIPMENT - PURCHASE,220048,,,,,130450,Vendor invoice,20200514,20200514,VI,Vendor invoice,,0,IMPREST ACCOUNT,M41 7FE,Y
http://statistics.data.gov.uk/id/local-authority/00BU,Trafford Borough Council,15/05/2020,1901359520,14052020,3.2,Kingsway Park Chlidrens Home (NEW),1425,,Kindle Lodge,CLIENTS TRAV EXP,220416,,,,,130450,Vendor invoice,20200514,20200514,VI,Vendor invoice,,0,IMPREST ACCOUNT,M41 7FE,N
http://statistics.data.gov.uk/id/local-authority/00BU,Trafford Borough Council,15/05/2020,1901359520,14052020,39.08,Kingsway Park Chlidrens Home (NEW),1425,,Kindle Lodge,CLEANING MATERIALS,201130,,,,,130450,Vendor invoice,20200514,20200514,VI,Vendor invoice,,0,IMPREST ACCOUNT,M41 7FE,Y
http://statistics.data.gov.uk/id/local-authority/00BU,Trafford Borough Council,15/05/2020,1901359527,,245,CASH,1430,,Early Help Hub 11-18,PROFESSIONAL FEES,220456,,,,,149005,Vendor invoice,20200511,20200514,VI,Vendor invoice,,0,IMPREST ACCOUNT,M32 0TH,Y
http://statistics.data.gov.uk/id/local-authority/00BU,Trafford Borough Council,15/05/2020,1901359525,,164.56,Family Focus Imprest,1440,,Kindle Service,CLIENTS PERS NEEDS,220412,,,,,130320,Vendor invoice,20200310,20200514,VI,Vendor invoice,,0,IMPREST ACCOUNT,M41 5SZ,N
http://statistics.data.gov.uk/id/local-authority/00BU,Trafford Borough Council,20/05/2020,5100390365,1085178607,4286,Stannah Lift Services Ltd,3008,GB236778328,Capital Schemes,A&M PAY TO CONTRACTO,400400,,321311,SOCIAL CARE : Equipment,DFA Fast track 17770,990000,Invoice - gross,20200323,20200518,RE,Invoice - gross,7500241261,1,TRADE CREDITOR CIS,SP10 3SD,Y
http://statistics.data.gov.uk/id/local-authority/00BU,Trafford Borough Council,20/05/2020,5100390396,1085183896,6949,Stannah Lift Services Ltd,3008,GB236778328,Capital Schemes,A&M PAY TO CONTRACTO,400400,,321311,SOCIAL CARE : Equipment,Disabled Facilities Grant DF2/16807,990000,Invoice - gross,20200414,20200519,RE,Invoice - gross,7500240317,1,TRADE CREDITOR CIS,SP10 3SD,Y
http://statistics.data.gov.uk/id/local-authority/00BU,Trafford Borough Council,11/05/2020,5100390021,79113,113.75,Pollock Lifts Limited,3261,GB769009015,HS:ADAPTATIONS,EXTERNAL DAY-TO-DAY,200100,,391110,CONSTRUCTION: Bld Construction,Call out,302300,Invoice - gross,20200331,20200511,RE,Invoice - gross,7500244598,1,TRADE CREDITOR CIS,BT38 8GX,Y
http://statistics.data.gov.uk/id/local-authority/00BU,Trafford Borough Council,01/05/2020,5100389688,57757,492.16,VLC (Stairlifts) Limited,3536,GB812311285,LIFT REPAIRS & MTCE,CLIENTS LIFT REP & M,220406,,191400,FACILITIES MGT : Lifts,Call out,250210,Invoice - gross,20200416,20200429,RE,Invoice - gross,7500244303,1,TRADE CREDITOR CIS - SME,WA11 0LG,Y
http://statistics.data.gov.uk/id/local-authority/00BU,Trafford Borough Council,01/05/2020,5100389689,57754,295,VLC (Stairlifts) Limited,3536,GB812311285,LIFT REPAIRS & MTCE,CLIENTS LIFT REP & M,220406,,191400,FACILITIES MGT : Lifts,Call out,250210,Invoice - gross,20200416,20200429,RE,Invoice - gross,7500239846,1,TRADE CREDITOR CIS - SME,WA11 0LG,Y
http://statistics.data.gov.uk/id/local-authority/00BU,Trafford Borough Council,01/05/2020,5100389697,57688,3922.5,VLC (Stairlifts) Limited,3536,GB812311285,LIFT REPAIRS & MTCE,CLIENTS LIFT REP & M,220406,,191400,FACILITIES MGT : Lifts,Comprehensive Element April 2020,250210,Invoice - gross,20200401,20200429,RE,Invoice - gross,7500233780,12,TRADE CREDITOR CIS - SME,WA11 0LG,Y
http://statistics.data.gov.uk/id/local-authority/00BU,Trafford Borough Council,01/05/2020,5100389698,57673,702.5,VLC (Stairlifts) Limited,3536,GB812311285,LIFT REPAIRS & MTCE,CLIENTS LIFT REP & M,220406,,321311,SOCIAL CARE : Equipment, Services Charge 31st March 2020,250210,Invoice - gross,20200331,20200429,RE,Invoice - gross,7500232811,38,TRADE CREDITOR CIS - SME,WA11 0LG,Y
http://statistics.data.gov.uk/id/local-authority/00BU,Trafford Borough Council,06/05/2020,5100389899,57771,637.5,VLC (Stairlifts) Limited,3536,GB812311285,LIFT REPAIRS & MTCE,CLIENTS LIFT REP & M,220406,,321311,SOCIAL CARE : Equipment, Services Charge 24/04/ 2020,250210,Invoice - gross,20200424,20200506,RE,Invoice - gross,7500232811,40,TRADE CREDITOR CIS - SME,WA11 0LG,Y
http://statistics.data.gov.uk/id/local-authority/00BU,Trafford Borough Council,11/05/2020,5100389337,57742,90.58,VLC (Stairlifts) Limited,3536,GB812311285,LIFT REPAIRS & MTCE,CLIENTS LIFT REP & M,220406,,191400,FACILITIES MGT : Lifts,Call out,250210,Invoice - gross,20200409,20200422,RE,Invoice - gross,7500244198,1,TRADE CREDITOR CIS - SME,WA11 0LG,Y
http://statistics.data.gov.uk/id/local-authority/00BU,Trafford Borough Council,11/05/2020,5100389998,57792,87.5,VLC (Stairlifts) Limited,3536,GB812311285,CreativeSupp Respite,EXTERNAL DAY-TO-DAY,200100,,321311,SOCIAL CARE : Equipment,Call out,251216,Invoice - gross,20200421,20200511,RE,Invoice - gross,7500244464,1,TRADE CREDITOR CIS - SME,WA11 0LG,Y
http://statistics.data.gov.uk/id/local-authority/00BU,Trafford Borough Council,15/05/2020,5100390208,57845,116,VLC (Stairlifts) Limited,3536,GB812311285,LIFT REPAIRS & MTCE,CLIENTS LIFT REP & M,220406,,191400,FACILITIES MGT : Lifts,Call out,250210,Invoice - gross,20200422,20200514,RE,Invoice - gross,7500244557,1,TRADE CREDITOR CIS - SME,WA11 0LG,Y
http://statistics.data.gov.uk/id/local-authority/00BU,Trafford Borough Council,15/05/2020,5100390209,57828,3900,VLC (Stairlifts) Limited,3536,GB812311285,LIFT REPAIRS & MTCE,CLIENTS LIFT REP & M,220406,,191400,FACILITIES MGT : Lifts,Comprehensive Element May 2020,250210,Invoice - gross,20200501,20200514,RE,Invoice - gross,7500233780,13,TRADE CREDITOR CIS - SME,WA11 0LG,Y
http://statistics.data.gov.uk/id/local-authority/00BU,Trafford Borough Council,15/05/2020,5100390210,57844,121.5,VLC (Stairlifts) Limited,3536,GB812311285,LIFT REPAIRS & MTCE,CLIENTS LIFT REP & M,220406,,321311,SOCIAL CARE : Equipment,Call out,250210,Invoice - gross,20200422,20200514,RE,Invoice - gross,7500244556,1,TRADE CREDITOR CIS - SME,WA11 0LG,Y
http://statistics.data.gov.uk/id/local-authority/00BU,Trafford Borough Council,20/05/2020,5100390356,57737,360,VLC (Stairlifts) Limited,3536,GB812311285,LIFT REPAIRS & MTCE,CLIENTS LIFT REP & M,220406,,321311,SOCIAL CARE : Equipment, Services Charge 09/04/ 2020,250210,Invoice - gross,20200409,20200518,RE,Invoice - gross,7500232811,41,TRADE CREDITOR CIS - SME,WA11 0LG,Y
http://statistics.data.gov.uk/id/local-authority/00BU,Trafford Borough Council,20/05/2020,5100390386,57706,384.54,VLC (Stairlifts) Limited,3536,GB812311285,LIFT REPAIRS & MTCE,CLIENTS LIFT REP & M,220406,,321311,SOCIAL CARE : Equipment,Call out,250210,Invoice - gross,20200201,20200519,RE,Invoice - gross,7500244080,1,TRADE CREDITOR CIS - SME,WA11 0LG,Y
http://statistics.data.gov.uk/id/local-authority/00BU,Trafford Borough Council,20/05/2020,5100390387,57705,70,VLC (Stairlifts) Limited,3536,GB812311285,LIFT REPAIRS & MTCE,CLIENTS LIFT REP & M,220406,,321311,SOCIAL CARE : Equipment,Call out,250210,Invoice - gross,20200224,20200519,RE,Invoice - gross,7500244087,1,TRADE CREDITOR CIS - SME,WA11 0LG,Y
http://statistics.data.gov.uk/id/local-authority/00BU,Trafford Borough Council,27/05/2020,5100390710,57895,150,VLC (Stairlifts) Limited,3536,GB812311285,LIFT REPAIRS & MTCE,CLIENTS LIFT REP & M,220406,,321311,SOCIAL CARE : Equipment,Removal of a stairlift,250210,Invoice - gross,20200514,20200526,RE,Invoice - gross,7500244726,1,TRADE CREDITOR CIS - SME,WA11 0LG,Y
http://statistics.data.gov.uk/id/local-authority/00BU,Trafford Borough Council,27/05/2020,5100390736,57897,540,VLC (Stairlifts) Limited,3536,GB812311285,LIFT REPAIRS & MTCE,CLIENTS LIFT REP & M,220406,,321311,SOCIAL CARE : Equipment, Services Charge 18/05/ 2020,250210,Invoice - gross,20200518,20200527,RE,Invoice - gross,7500232811,43,TRADE CREDITOR CIS - SME,WA11 0LG,Y
http://statistics.data.gov.uk/id/local-authority/00BU,Trafford Borough Council,27/05/2020,5100390737,57896,535,VLC (Stairlifts) Limited,3536,GB812311285,LIFT REPAIRS & MTCE,CLIENTS LIFT REP & M,220406,,321311,SOCIAL CARE : Equipment, Services Charge 30/04/ 2020,250210,Invoice - gross,20200430,20200527,RE,Invoice - gross,7500232811,42,TRADE CREDITOR CIS - SME,WA11 0LG,Y
http://statistics.data.gov.uk/id/local-authority/00BU,Trafford Borough Council,27/05/2020,5100390786,57772,63.75,VLC (Stairlifts) Limited,3536,GB812311285,LIFT REPAIRS & MTCE,CLIENTS LIFT REP & M,220406,,321311,SOCIAL CARE : Equipment,Call out,250210,Invoice - gross,20200424,20200527,RE,Invoice - gross,7500244403,1,TRADE CREDITOR CIS - SME,WA11 0LG,Y
http://statistics.data.gov.uk/id/local-authority/00BU,Trafford Borough Council,26/05/2020,5100390561,1127,1450.01,Seddon Construction Ltd,4355,GB100161491,Capital Schemes,A&M PAY TO CONTRACTO,400400,,391100,CONSTRUCTION : Buildings,Delamere School - Pool,990000,Invoice - gross,20200507,20200521,RE,Invoice - gross,7500238851,1,TRADE CREDITOR CIS,BL4 0NN,Y
http://statistics.data.gov.uk/id/local-authority/00BU,Trafford Borough Council,13/05/2020,5100390121,0134012,11845.42,ISG Construction Ltd,4450,GB653587309,Capital Schemes,A&M PAY TO CONTRACTO,400400,,391110,CONSTRUCTION: Bld Construction,Construction,990000,Invoice - gross,20200503,20200513,RE,Invoice - gross,7500244755,1,TRADE CREDITOR CIS,BD19 6BW,Y
http://statistics.data.gov.uk/id/local-authority/00BU,Trafford Borough Council,01/05/2020,5100389153,90785024,44.41,Amey LG Limited,4521,GB813047950,Claremont Centre,EXTERNAL DAY-TO-DAY,200100,,191700,FM : Property Management,Claremont Centre,621001,Invoice - gross,20200407,20200416,RE,Invoice - gross,7500244518,1,TRADE CREDITOR,L19 2PH,Y
http://statistics.data.gov.uk/id/local-authority/00BU,Trafford Borough Council,01/05/2020,5100389154,90785023,52.61,Amey LG Limited,4521,GB813047950,Claremont Centre,EXTERNAL DAY-TO-DAY,200100,,191700,FM : Property Management,Claremont Centre,621001,Invoice - gross,20200407,20200416,RE,Invoice - gross,7500244518,1,TRADE CREDITOR,L19 2PH,Y
http://statistics.data.gov.uk/id/local-authority/00BU,Trafford Borough Council,01/05/2020,5100389692,90779445,357,Amey LG Limited,4521,GB813047950,Claremont Centre,EXTERNAL DAY-TO-DAY,200100,,191700,FM : Property Management,Claremont Centre,621001,Invoice - gross,20200225,20200429,RE,Invoice - gross,7500244518,1,TRADE CREDITOR,L19 2PH,Y
http://statistics.data.gov.uk/id/local-authority/00BU,Trafford Borough Council,01/05/2020,5100389693,90779625,124.95,Amey LG Limited,4521,GB813047950,Claremont Centre,EXTERNAL DAY-TO-DAY,200100,,191700,FM : Property Management,Claremont Centre,621001,Invoice - gross,20200226,20200429,RE,Invoice - gross,7500244518,1,TRADE CREDITOR,L19 2PH,Y
http://statistics.data.gov.uk/id/local-authority/00BU,Trafford Borough Council,01/05/2020,5100389694,90779442,689.78,Amey LG Limited,4521,GB813047950,Claremont Centre,EXTERNAL DAY-TO-DAY,200100,,191700,FM : Property Management,Claremont Centre,621001,Invoice - gross,20200225,20200429,RE,Invoice - gross,7500244518,1,TRADE CREDITOR,L19 2PH,Y
http://statistics.data.gov.uk/id/local-authority/00BU,Trafford Borough Council,11/05/2020,5100389618,90785616,5000,Amey LG Limited,4521,GB813047950,LOCAL DEV FRAME,CONSULTANTS,220428,,231810,HWY : Road Surveys,SYSTRA GMSF,520015,Invoice - gross,20200420,20200429,RE,Invoice - gross,7500239319,1,TRADE CREDITOR,L19 2PH,Y
http://statistics.data.gov.uk/id/local-authority/00BU,Trafford Borough Council,11/05/2020,5100390058,90787397,270,Amey LG Limited,4521,GB813047950,ASCOT D2A,SUPP & SERV COVID 19,220495,,151300,CONSULTANCY : Environmental,TRF-0168-0420 x3 Litre240 black W.Bins,154014,Invoice - gross,20200501,20200511,RE,Invoice - gross,7500244046,1,TRADE CREDITOR,L19 2PH,N
http://statistics.data.gov.uk/id/local-authority/00BU,Trafford Borough Council,15/05/2020,5100390151,90786395,61.46,Amey LG Limited,4521,GB813047950,PP:ALTRINCHAM CREMAT,EXTERNAL DAY-TO-DAY,200100,,181900,ENVIRONMENT : Testing & Insp,Alt Crem Annual Order 20/21,540020,Invoice - gross,20200424,20200513,RE,Invoice - gross,7500244041,1,TRADE CREDITOR,L19 2PH,Y
http://statistics.data.gov.uk/id/local-authority/00BU,Trafford Borough Council,15/05/2020,5100390152,90786313,2722.12,Amey LG Limited,4521,GB813047950,Capital Schemes,EXT PROJECT MAN,400220,,201700,FINANCIAL SERVICES : Grants,Capital Project Fees,990000,Invoice - gross,20200424,20200513,RE,Invoice - gross,7500194461,5,TRADE CREDITOR,L19 2PH,Y
http://statistics.data.gov.uk/id/local-authority/00BU,Trafford Borough Council,15/05/2020,5100390153,90785744,65.85,Amey LG Limited,4521,GB813047950,Sanyu Daycare,EXTERNAL DAY-TO-DAY,200100,,191700,FM : Property Management,PHS March 2020,130570,Invoice - gross,20200420,20200513,RE,Invoice - gross,7500237248,12,TRADE CREDITOR,L19 2PH,Y
http://statistics.data.gov.uk/id/local-authority/00BU,Trafford Borough Council,15/05/2020,5100390156,90785740,61.46,Amey LG Limited,4521,GB813047950,PP:ALTRINCHAM CREMAT,EXTERNAL DAY-TO-DAY,200100,,181900,ENVIRONMENT : Testing & Insp,Alt Crem Annual Order 20/21,540020,Invoice - gross,20200420,20200513,RE,Invoice - gross,7500244041,1,TRADE CREDITOR,L19 2PH,Y
http://statistics.data.gov.uk/id/local-authority/00BU,Trafford Borough Council,15/05/2020,5100390157,90785739,65.85,Amey LG Limited,4521,GB813047950,Sanyu Daycare,EXTERNAL DAY-TO-DAY,200100,,191700,FM : Property Management,PHS Feb 2020,130570,Invoice - gross,20200420,20200513,RE,Invoice - gross,7500237248,11,TRADE CREDITOR,L19 2PH,Y
http://statistics.data.gov.uk/id/local-authority/00BU,Trafford Borough Council,15/05/2020,5100390159,90785736,61.46,Amey LG Limited,4521,GB813047950,PP:ALTRINCHAM CREMAT,EXTERNAL DAY-TO-DAY,200100,,181900,ENVIRONMENT : Testing & Insp,Alt Crem Annual Order 20/21,540020,Invoice - gross,20200420,20200513,RE,Invoice - gross,7500244041,1,TRADE CREDITOR,L19 2PH,Y
http://statistics.data.gov.uk/id/local-authority/00BU,Trafford Borough Council,15/05/2020,5100390173,90785724,23.8,Amey LG Limited,4521,GB813047950,Sanyu Daycare,EXTERNAL DAY-TO-DAY,200100,,191700,FM : Property Management,Water Hygience PPM Serv Feb 20,130570,Invoice - gross,20200420,20200514,RE,Invoice - gross,7500237248,23,TRADE CREDITOR,L19 2PH,Y
http://statistics.data.gov.uk/id/local-authority/00BU,Trafford Borough Council,15/05/2020,5100390176,90784270,339.15,Amey LG Limited,4521,GB813047950,PP:ALTRINCHAM CREMAT,REPAIRS TO FIXTURES,201010,,191700,FM : Property Management,Altrincham Crem,540020,Invoice - gross,20200330,20200514,RE,Invoice - gross,7500242503,1,TRADE CREDITOR,L19 2PH,Y
http://statistics.data.gov.uk/id/local-authority/00BU,Trafford Borough Council,15/05/2020,5100390177,90784781,119,Amey LG Limited,4521,GB813047950,PP:ALTRINCHAM CREMAT,EXTERNAL DAY-TO-DAY,200100,,181900,ENVIRONMENT : Testing & Insp,Alt Crem Annual Order 20/21,540020,Invoice - gross,20200402,20200514,RE,Invoice - gross,7500244041,1,TRADE CREDITOR,L19 2PH,Y
http://statistics.data.gov.uk/id/local-authority/00BU,Trafford Borough Council,15/05/2020,5100390178,90784230,47.6,Amey LG Limited,4521,GB813047950,PP:ALTRINCHAM CREMAT,EXTERNAL DAY-TO-DAY,200100,,181900,ENVIRONMENT : Testing & Insp,Alt Crem Annual Order 20/21,540020,Invoice - gross,20200330,20200514,RE,Invoice - gross,7500244041,1,TRADE CREDITOR,L19 2PH,Y
http://statistics.data.gov.uk/id/local-authority/00BU,Trafford Borough Council,15/05/2020,5100390179,90784252,124.25,Amey LG Limited,4521,GB813047950,PP:ALTRINCHAM CREMAT,EXTERNAL DAY-TO-DAY,200100,,181900,ENVIRONMENT : Testing & Insp,Alt Crem Annual Order 20/21,540020,Invoice - gross,20200330,20200514,RE,Invoice - gross,7500244041,1,TRADE CREDITOR,L19 2PH,Y
http://statistics.data.gov.uk/id/local-authority/00BU,Trafford Borough Council,15/05/2020,5100390180,90779432,178.5,Amey LG Limited,4521,GB813047950,PP:ALTRINCHAM CREMAT,EXTERNAL DAY-TO-DAY,200100,,181900,ENVIRONMENT : Testing & Insp,Alt Crem Annual Order 20/21,540020,Invoice - gross,20200225,20200514,RE,Invoice - gross,7500244041,1,TRADE CREDITOR,L19 2PH,Y
http://statistics.data.gov.uk/id/local-authority/00BU,Trafford Borough Council,15/05/2020,5100390181,90779434,23.8,Amey LG Limited,4521,GB813047950,PP:ALTRINCHAM CREMAT,EXTERNAL DAY-TO-DAY,200100,,181900,ENVIRONMENT : Testing & Insp,Alt Crem Annual Order 20/21,540020,Invoice - gross,20200225,20200514,RE,Invoice - gross,7500244041,1,TRADE CREDITOR,L19 2PH,Y
http://statistics.data.gov.uk/id/local-authority/00BU,Trafford Borough Council,15/05/2020,5100390182,90784219,61.46,Amey LG Limited,4521,GB813047950,PP:ALTRINCHAM CREMAT,EXTERNAL DAY-TO-DAY,200100,,181900,ENVIRONMENT : Testing & Insp,Alt Crem Annual Order 20/21,540020,Invoice - gross,20200330,20200514,RE,Invoice - gross,7500244041,1,TRADE CREDITOR,L19 2PH,Y
http://statistics.data.gov.uk/id/local-authority/00BU,Trafford Borough Council,15/05/2020,5100390183,90784220,61.46,Amey LG Limited,4521,GB813047950,PP:ALTRINCHAM CREMAT,EXTERNAL DAY-TO-DAY,200100,,181900,ENVIRONMENT : Testing & Insp,Alt Crem Annual Order 20/21,540020,Invoice - gross,20200330,20200514,RE,Invoice - gross,7500244041,1,TRADE CREDITOR,L19 2PH,Y
http://statistics.data.gov.uk/id/local-authority/00BU,Trafford Borough Council,15/05/2020,5100390184,90784223,61.46,Amey LG Limited,4521,GB813047950,PP:ALTRINCHAM CREMAT,EXTERNAL DAY-TO-DAY,200100,,181900,ENVIRONMENT : Testing & Insp,Alt Crem Annual Order 20/21,540020,Invoice - gross,20200330,20200514,RE,Invoice - gross,7500244041,1,TRADE CREDITOR,L19 2PH,Y
http://statistics.data.gov.uk/id/local-authority/00BU,Trafford Borough Council,15/05/2020,5100390185,90784998,-3750,Amey LG Limited,4521,GB813047950,JVC: Residual Waste,JVC Fixed Fee,230610,,151300,CONSULTANCY : Environmental,Lot 1a ES,235101,Invoice - gross,20200406,20200514,RE,Invoice - gross,7500234108,1,TRADE CREDITOR,L19 2PH,N
http://statistics.data.gov.uk/id/local-authority/00BU,Trafford Borough Council,15/05/2020,5100390151,90786395,61.46,Amey LG Limited,4521,GB813047950,PP:ALTRINCHAM CREMAT,EXTERNAL DAY-TO-DAY,200100,,181900,ENVIRONMENT : Testing & Insp,Alt Crem Annual Order 20/21,540020,Invoice - gross,20200424,20200513,RE,Invoice - gross,7500244041,1,TRADE CREDITOR,L19 2PH,Y
http://statistics.data.gov.uk/id/local-authority/00BU,Trafford Borough Council,15/05/2020,5100390152,90786313,2722.12,Amey LG Limited,4521,GB813047950,Capital Schemes,EXT PROJECT MAN,400220,,201700,FINANCIAL SERVICES : Grants,Capital Project Fees,990000,Invoice - gross,20200424,20200513,RE,Invoice - gross,7500194461,5,TRADE CREDITOR,L19 2PH,Y
http://statistics.data.gov.uk/id/local-authority/00BU,Trafford Borough Council,15/05/2020,5100390153,90785744,65.85,Amey LG Limited,4521,GB813047950,Sanyu Daycare,EXTERNAL DAY-TO-DAY,200100,,191700,FM : Property Management,PHS March 2020,130570,Invoice - gross,20200420,20200513,RE,Invoice - gross,7500237248,12,TRADE CREDITOR,L19 2PH,Y
http://statistics.data.gov.uk/id/local-authority/00BU,Trafford Borough Council,15/05/2020,5100390156,90785740,61.46,Amey LG Limited,4521,GB813047950,PP:ALTRINCHAM CREMAT,EXTERNAL DAY-TO-DAY,200100,,181900,ENVIRONMENT : Testing & Insp,Alt Crem Annual Order 20/21,540020,Invoice - gross,20200420,20200513,RE,Invoice - gross,7500244041,1,TRADE CREDITOR,L19 2PH,Y
http://statistics.data.gov.uk/id/local-authority/00BU,Trafford Borough Council,15/05/2020,5100390157,90785739,65.85,Amey LG Limited,4521,GB813047950,Sanyu Daycare,EXTERNAL DAY-TO-DAY,200100,,191700,FM : Property Management,PHS Feb 2020,130570,Invoice - gross,20200420,20200513,RE,Invoice - gross,7500237248,11,TRADE CREDITOR,L19 2PH,Y
http://statistics.data.gov.uk/id/local-authority/00BU,Trafford Borough Council,15/05/2020,5100390159,90785736,61.46,Amey LG Limited,4521,GB813047950,PP:ALTRINCHAM CREMAT,EXTERNAL DAY-TO-DAY,200100,,181900,ENVIRONMENT : Testing & Insp,Alt Crem Annual Order 20/21,540020,Invoice - gross,20200420,20200513,RE,Invoice - gross,7500244041,1,TRADE CREDITOR,L19 2PH,Y
http://statistics.data.gov.uk/id/local-authority/00BU,Trafford Borough Council,15/05/2020,5100390173,90785724,23.8,Amey LG Limited,4521,GB813047950,Sanyu Daycare,EXTERNAL DAY-TO-DAY,200100,,191700,FM : Property Management,Water Hygience PPM Serv Feb 20,130570,Invoice - gross,20200420,20200514,RE,Invoice - gross,7500237248,23,TRADE CREDITOR,L19 2PH,Y
http://statistics.data.gov.uk/id/local-authority/00BU,Trafford Borough Council,15/05/2020,5100390176,90784270,339.15,Amey LG Limited,4521,GB813047950,PP:ALTRINCHAM CREMAT,REPAIRS TO FIXTURES,201010,,191700,FM : Property Management,Altrincham Crem,540020,Invoice - gross,20200330,20200514,RE,Invoice - gross,7500242503,1,TRADE CREDITOR,L19 2PH,Y
http://statistics.data.gov.uk/id/local-authority/00BU,Trafford Borough Council,15/05/2020,5100390177,90784781,119,Amey LG Limited,4521,GB813047950,PP:ALTRINCHAM CREMAT,EXTERNAL DAY-TO-DAY,200100,,181900,ENVIRONMENT : Testing & Insp,Alt Crem Annual Order 20/21,540020,Invoice - gross,20200402,20200514,RE,Invoice - gross,7500244041,1,TRADE CREDITOR,L19 2PH,Y
http://statistics.data.gov.uk/id/local-authority/00BU,Trafford Borough Council,15/05/2020,5100390178,90784230,47.6,Amey LG Limited,4521,GB813047950,PP:ALTRINCHAM CREMAT,EXTERNAL DAY-TO-DAY,200100,,181900,ENVIRONMENT : Testing & Insp,Alt Crem Annual Order 20/21,540020,Invoice - gross,20200330,20200514,RE,Invoice - gross,7500244041,1,TRADE CREDITOR,L19 2PH,Y
http://statistics.data.gov.uk/id/local-authority/00BU,Trafford Borough Council,15/05/2020,5100390179,90784252,124.25,Amey LG Limited,4521,GB813047950,PP:ALTRINCHAM CREMAT,EXTERNAL DAY-TO-DAY,200100,,181900,ENVIRONMENT : Testing & Insp,Alt Crem Annual Order 20/21,540020,Invoice - gross,20200330,20200514,RE,Invoice - gross,7500244041,1,TRADE CREDITOR,L19 2PH,Y
http://statistics.data.gov.uk/id/local-authority/00BU,Trafford Borough Council,15/05/2020,5100390180,90779432,178.5,Amey LG Limited,4521,GB813047950,PP:ALTRINCHAM CREMAT,EXTERNAL DAY-TO-DAY,200100,,181900,ENVIRONMENT : Testing & Insp,Alt Crem Annual Order 20/21,540020,Invoice - gross,20200225,20200514,RE,Invoice - gross,7500244041,1,TRADE CREDITOR,L19 2PH,Y
http://statistics.data.gov.uk/id/local-authority/00BU,Trafford Borough Council,15/05/2020,5100390181,90779434,23.8,Amey LG Limited,4521,GB813047950,PP:ALTRINCHAM CREMAT,EXTERNAL DAY-TO-DAY,200100,,181900,ENVIRONMENT : Testing & Insp,Alt Crem Annual Order 20/21,540020,Invoice - gross,20200225,20200514,RE,Invoice - gross,7500244041,1,TRADE CREDITOR,L19 2PH,Y
http://statistics.data.gov.uk/id/local-authority/00BU,Trafford Borough Council,15/05/2020,5100390182,90784219,61.46,Amey LG Limited,4521,GB813047950,PP:ALTRINCHAM CREMAT,EXTERNAL DAY-TO-DAY,200100,,181900,ENVIRONMENT : Testing & Insp,Alt Crem Annual Order 20/21,540020,Invoice - gross,20200330,20200514,RE,Invoice - gross,7500244041,1,TRADE CREDITOR,L19 2PH,Y
http://statistics.data.gov.uk/id/local-authority/00BU,Trafford Borough Council,15/05/2020,5100390183,90784220,61.46,Amey LG Limited,4521,GB813047950,PP:ALTRINCHAM CREMAT,EXTERNAL DAY-TO-DAY,200100,,181900,ENVIRONMENT : Testing & Insp,Alt Crem Annual Order 20/21,540020,Invoice - gross,20200330,20200514,RE,Invoice - gross,7500244041,1,TRADE CREDITOR,L19 2PH,Y
http://statistics.data.gov.uk/id/local-authority/00BU,Trafford Borough Council,15/05/2020,5100390184,90784223,61.46,Amey LG Limited,4521,GB813047950,PP:ALTRINCHAM CREMAT,EXTERNAL DAY-TO-DAY,200100,,181900,ENVIRONMENT : Testing & Insp,Alt Crem Annual Order 20/21,540020,Invoice - gross,20200330,20200514,RE,Invoice - gross,7500244041,1,TRADE CREDITOR,L19 2PH,Y
http://statistics.data.gov.uk/id/local-authority/00BU,Trafford Borough Council,15/05/2020,5100390185,90784998,-3750,Amey LG Limited,4521,GB813047950,JVC: Residual Waste,JVC Fixed Fee,230610,,151300,CONSULTANCY : Environmental,Lot 1a ES,235101,Invoice - gross,20200406,20200514,RE,Invoice - gross,7500234108,1,TRADE CREDITOR,L19 2PH,N
http://statistics.data.gov.uk/id/local-authority/00BU,Trafford Borough Council,26/05/2020,5100390149,90786413,65.85,Amey LG Limited,4521,GB813047950,Sanyu Daycare,EXTERNAL DAY-TO-DAY,200100,,191700,FM : Property Management,PHS April 20,130570,Invoice - gross,20200424,20200513,RE,Invoice - gross,7500244232,1,TRADE CREDITOR,L19 2PH,Y
http://statistics.data.gov.uk/id/local-authority/00BU,Trafford Borough Council,26/05/2020,5100390150,90786411,2.38,Amey LG Limited,4521,GB813047950,CreativeSupp Respite,EXTERNAL DAY-TO-DAY,200100,,391311,Open Spaces : Maintenance,Work at Shawe Road April 2020-March 2021,251216,Invoice - gross,20200424,20200513,RE,Invoice - gross,7500244359,1,TRADE CREDITOR,L19 2PH,Y
http://statistics.data.gov.uk/id/local-authority/00BU,Trafford Borough Council,26/05/2020,5100390154,90785742,2.38,Amey LG Limited,4521,GB813047950,CreativeSupp Respite,EXTERNAL DAY-TO-DAY,200100,,391311,Open Spaces : Maintenance,Work at Shawe Road April 2020-March 2021,251216,Invoice - gross,20200420,20200513,RE,Invoice - gross,7500244359,1,TRADE CREDITOR,L19 2PH,Y
http://statistics.data.gov.uk/id/local-authority/00BU,Trafford Borough Council,26/05/2020,5100390158,90785738,2.38,Amey LG Limited,4521,GB813047950,CreativeSupp Respite,EXTERNAL DAY-TO-DAY,200100,,391311,Open Spaces : Maintenance,Work at Shawe Road April 2020-March 2021,251216,Invoice - gross,20200420,20200513,RE,Invoice - gross,7500244359,1,TRADE CREDITOR,L19 2PH,Y
http://statistics.data.gov.uk/id/local-authority/00BU,Trafford Borough Council,26/05/2020,5100390170,90785731,178.5,Amey LG Limited,4521,GB813047950,PP:ALTRINCHAM CREMAT,EXTERNAL DAY-TO-DAY,200100,,181900,ENVIRONMENT : Testing & Insp,Alt Crem Annual Order 20/21,540020,Invoice - gross,20200420,20200514,RE,Invoice - gross,7500244041,1,TRADE CREDITOR,L19 2PH,Y
http://statistics.data.gov.uk/id/local-authority/00BU,Trafford Borough Council,26/05/2020,5100390174,90785723,36.69,Amey LG Limited,4521,GB813047950,CreativeSupp Respite,EXTERNAL DAY-TO-DAY,200100,,391311,Open Spaces : Maintenance,Work at Shawe Road April 2020-March 2021,251216,Invoice - gross,20200420,20200514,RE,Invoice - gross,7500244359,1,TRADE CREDITOR,L19 2PH,Y
http://statistics.data.gov.uk/id/local-authority/00BU,Trafford Borough Council,26/05/2020,5100390519,90676352,132.2,Amey LG Limited,4521,GB813047950,YP:Music Centres,TEST PURCHASE,220057,,181900,ENVIRONMENT : Testing & Insp,PAT Testing re invoice no 90676352,120410,Invoice - gross,20180424,20200521,RE,Invoice - gross,7500244891,1,TRADE CREDITOR,L19 2PH,Y
http://statistics.data.gov.uk/id/local-authority/00BU,Trafford Borough Council,26/05/2020,5100390576,90787201,36.69,Amey LG Limited,4521,GB813047950,CreativeSupp Respite,EXTERNAL DAY-TO-DAY,200100,,391311,Open Spaces : Maintenance,Work at Shawe Road April 2020-March 2021,251216,Invoice - gross,20200429,20200521,RE,Invoice - gross,7500244359,1,TRADE CREDITOR,L19 2PH,Y
http://statistics.data.gov.uk/id/local-authority/00BU,Trafford Borough Council,26/05/2020,5100390585,90781856,4424.42,Amey LG Limited,4521,GB813047950,IS: Sale Court,EMERGENCY CALL OUT,200190,,191700,FM : Property Management,Dangerous Building Sale Court,624404,Invoice - gross,20200312,20200521,RE,Invoice - gross,7500243165,1,TRADE CREDITOR,L19 2PH,Y
http://statistics.data.gov.uk/id/local-authority/00BU,Trafford Borough Council,26/05/2020,5100390589,90787838,-178.5,Amey LG Limited,4521,GB813047950,PP:ALTRINCHAM CREMAT,EXTERNAL DAY-TO-DAY,200100,,181900,ENVIRONMENT : Testing & Insp,Alt Crem Annual Order 20/21,540020,Invoice - gross,20200511,20200521,RE,Invoice - gross,7500244041,1,TRADE CREDITOR,L19 2PH,Y
http://statistics.data.gov.uk/id/local-authority/00BU,Trafford Borough Council,26/05/2020,5100390606,90789149,1270.96,Amey LG Limited,4521,GB813047950,LP:TRAF. WATER SC -,SUPPLIES/SERVICES,220472,,391311,Open Spaces : Maintenance,Repair & Maintenance,552020,Invoice - gross,20200520,20200521,RE,Invoice - gross,7500239759,1,TRADE CREDITOR,L19 2PH,Y
http://statistics.data.gov.uk/id/local-authority/00BU,Trafford Borough Council,26/05/2020,5100390608,90789148,42.25,Amey LG Limited,4521,GB813047950,CreativeSupp Respite,EXTERNAL DAY-TO-DAY,200100,,391311,Open Spaces : Maintenance,Work at Shawe Road April 2020-March 2021,251216,Invoice - gross,20200520,20200521,RE,Invoice - gross,7500244359,1,TRADE CREDITOR,L19 2PH,Y
http://statistics.data.gov.uk/id/local-authority/00BU,Trafford Borough Council,26/05/2020,5100390609,90789150,87.82,Amey LG Limited,4521,GB813047950,CreativeSupp Respite,EXTERNAL DAY-TO-DAY,200100,,391311,Open Spaces : Maintenance,Work at Shawe Road April 2020-March 2021,251216,Invoice - gross,20200520,20200521,RE,Invoice - gross,7500244359,1,TRADE CREDITOR,L19 2PH,Y
http://statistics.data.gov.uk/id/local-authority/00BU,Trafford Borough Council,26/05/2020,5100390686,90785626,3213.54,Amey LG Limited,4521,GB813047950,Capital Schemes,EXT PROJECT MAN,400220,,201700,FINANCIAL SERVICES : Grants,Capital Project Fees,990000,Invoice - gross,20200420,20200526,RE,Invoice - gross,7500194461,5,TRADE CREDITOR,L19 2PH,Y
http://statistics.data.gov.uk/id/local-authority/00BU,Trafford Borough Council,26/05/2020,5100390149,90786413,65.85,Amey LG Limited,4521,GB813047950,Sanyu Daycare,EXTERNAL DAY-TO-DAY,200100,,191700,FM : Property Management,PHS April 20,130570,Invoice - gross,20200424,20200513,RE,Invoice - gross,7500244232,1,TRADE CREDITOR,L19 2PH,Y
http://statistics.data.gov.uk/id/local-authority/00BU,Trafford Borough Council,26/05/2020,5100390150,90786411,2.38,Amey LG Limited,4521,GB813047950,CreativeSupp Respite,EXTERNAL DAY-TO-DAY,200100,,391311,Open Spaces : Maintenance,Work at Shawe Road April 2020-March 2021,251216,Invoice - gross,20200424,20200513,RE,Invoice - gross,7500244359,1,TRADE CREDITOR,L19 2PH,Y
http://statistics.data.gov.uk/id/local-authority/00BU,Trafford Borough Council,26/05/2020,5100390154,90785742,2.38,Amey LG Limited,4521,GB813047950,CreativeSupp Respite,EXTERNAL DAY-TO-DAY,200100,,391311,Open Spaces : Maintenance,Work at Shawe Road April 2020-March 2021,251216,Invoice - gross,20200420,20200513,RE,Invoice - gross,7500244359,1,TRADE CREDITOR,L19 2PH,Y
http://statistics.data.gov.uk/id/local-authority/00BU,Trafford Borough Council,26/05/2020,5100390158,90785738,2.38,Amey LG Limited,4521,GB813047950,CreativeSupp Respite,EXTERNAL DAY-TO-DAY,200100,,391311,Open Spaces : Maintenance,Work at Shawe Road April 2020-March 2021,251216,Invoice - gross,20200420,20200513,RE,Invoice - gross,7500244359,1,TRADE CREDITOR,L19 2PH,Y
http://statistics.data.gov.uk/id/local-authority/00BU,Trafford Borough Council,26/05/2020,5100390170,90785731,178.5,Amey LG Limited,4521,GB813047950,PP:ALTRINCHAM CREMAT,EXTERNAL DAY-TO-DAY,200100,,181900,ENVIRONMENT : Testing & Insp,Alt Crem Annual Order 20/21,540020,Invoice - gross,20200420,20200514,RE,Invoice - gross,7500244041,1,TRADE CREDITOR,L19 2PH,Y
http://statistics.data.gov.uk/id/local-authority/00BU,Trafford Borough Council,26/05/2020,5100390174,90785723,36.69,Amey LG Limited,4521,GB813047950,CreativeSupp Respite,EXTERNAL DAY-TO-DAY,200100,,391311,Open Spaces : Maintenance,Work at Shawe Road April 2020-March 2021,251216,Invoice - gross,20200420,20200514,RE,Invoice - gross,7500244359,1,TRADE CREDITOR,L19 2PH,Y
http://statistics.data.gov.uk/id/local-authority/00BU,Trafford Borough Council,26/05/2020,5100390519,90676352,132.2,Amey LG Limited,4521,GB813047950,YP:Music Centres,TEST PURCHASE,220057,,181900,ENVIRONMENT : Testing & Insp,PAT Testing re invoice no 90676352,120410,Invoice - gross,20180424,20200521,RE,Invoice - gross,7500244891,1,TRADE CREDITOR,L19 2PH,Y
http://statistics.data.gov.uk/id/local-authority/00BU,Trafford Borough Council,26/05/2020,5100390576,90787201,36.69,Amey LG Limited,4521,GB813047950,CreativeSupp Respite,EXTERNAL DAY-TO-DAY,200100,,391311,Open Spaces : Maintenance,Work at Shawe Road April 2020-March 2021,251216,Invoice - gross,20200429,20200521,RE,Invoice - gross,7500244359,1,TRADE CREDITOR,L19 2PH,Y
http://statistics.data.gov.uk/id/local-authority/00BU,Trafford Borough Council,26/05/2020,5100390585,90781856,4424.42,Amey LG Limited,4521,GB813047950,IS: Sale Court,EMERGENCY CALL OUT,200190,,191700,FM : Property Management,Dangerous Building Sale Court,624404,Invoice - gross,20200312,20200521,RE,Invoice - gross,7500243165,1,TRADE CREDITOR,L19 2PH,Y
http://statistics.data.gov.uk/id/local-authority/00BU,Trafford Borough Council,26/05/2020,5100390589,90787838,-178.5,Amey LG Limited,4521,GB813047950,PP:ALTRINCHAM CREMAT,EXTERNAL DAY-TO-DAY,200100,,181900,ENVIRONMENT : Testing & Insp,Alt Crem Annual Order 20/21,540020,Invoice - gross,20200511,20200521,RE,Invoice - gross,7500244041,1,TRADE CREDITOR,L19 2PH,Y
http://statistics.data.gov.uk/id/local-authority/00BU,Trafford Borough Council,26/05/2020,5100390606,90789149,1270.96,Amey LG Limited,4521,GB813047950,LP:TRAF. WATER SC -,SUPPLIES/SERVICES,220472,,391311,Open Spaces : Maintenance,Repair & Maintenance,552020,Invoice - gross,20200520,20200521,RE,Invoice - gross,7500239759,1,TRADE CREDITOR,L19 2PH,Y
http://statistics.data.gov.uk/id/local-authority/00BU,Trafford Borough Council,26/05/2020,5100390608,90789148,42.25,Amey LG Limited,4521,GB813047950,CreativeSupp Respite,EXTERNAL DAY-TO-DAY,200100,,391311,Open Spaces : Maintenance,Work at Shawe Road April 2020-March 2021,251216,Invoice - gross,20200520,20200521,RE,Invoice - gross,7500244359,1,TRADE CREDITOR,L19 2PH,Y
http://statistics.data.gov.uk/id/local-authority/00BU,Trafford Borough Council,26/05/2020,5100390609,90789150,87.82,Amey LG Limited,4521,GB813047950,CreativeSupp Respite,EXTERNAL DAY-TO-DAY,200100,,391311,Open Spaces : Maintenance,Work at Shawe Road April 2020-March 2021,251216,Invoice - gross,20200520,20200521,RE,Invoice - gross,7500244359,1,TRADE CREDITOR,L19 2PH,Y
http://statistics.data.gov.uk/id/local-authority/00BU,Trafford Borough Council,26/05/2020,5100390686,90785626,3213.54,Amey LG Limited,4521,GB813047950,Capital Schemes,EXT PROJECT MAN,400220,,201700,FINANCIAL SERVICES : Grants,Capital Project Fees,990000,Invoice - gross,20200420,20200526,RE,Invoice - gross,7500194461,5,TRADE CREDITOR,L19 2PH,Y
http://statistics.data.gov.uk/id/local-authority/00BU,Trafford Borough Council,27/05/2020,5100390696,90788227,226263.22,Amey LG Limited,4521,GB813047950,Capital Schemes,EXT PROJECT MAN,400220,,191700,FM : Property Management,Capital Project Schemes,990000,Invoice - gross,20200515,20200526,RE,Invoice - gross,7500232925,1,TRADE CREDITOR,L19 2PH,Y
http://statistics.data.gov.uk/id/local-authority/00BU,Trafford Borough Council,27/05/2020,5100390697,90788224,44098,Amey LG Limited,4521,GB813047950,Capital Schemes,EXT PROJECT MAN,400220,,201700,FINANCIAL SERVICES : Grants,Capital Project Fees,990000,Invoice - gross,20200515,20200526,RE,Invoice - gross,7500194461,5,TRADE CREDITOR,L19 2PH,Y
http://statistics.data.gov.uk/id/local-authority/00BU,Trafford Borough Council,27/05/2020,5100390754,90780580,303.5,Amey LG Limited,4521,GB813047950,NEXUS EDUCATION CENT,EXTERNAL DAY-TO-DAY,200100,,151110,CONSULTANCY : Gen Construction,Amey 90780580 DCI 318207,120631,Invoice - gross,20200304,20200527,RE,Invoice - gross,7500244849,1,TRADE CREDITOR,L19 2PH,Y
http://statistics.data.gov.uk/id/local-authority/00BU,Trafford Borough Council,27/05/2020,5100390797,90788633,1250,Amey LG Limited,4521,GB813047950,TT:OAKFIELD ROAD,EXTERNAL DAY-TO-DAY,200100,,231800,HWY : Services,potholes,400028,Invoice - gross,20200519,20200527,RE,Invoice - gross,7500243931,1,TRADE CREDITOR,L19 2PH,Y
http://statistics.data.gov.uk/id/local-authority/00BU,Trafford Borough Council,28/05/2020,5100390827,90788216,160005.45,Amey LG Limited,4521,GB813047950,JVC: Minor Reactive,JVC Fixed Fee,230610,,151300,CONSULTANCY : Environmental,Lot 2a Fixed 20/21,235201,Invoice - gross,20200514,20200527,RE,Invoice - gross,7500244978,2,TRADE CREDITOR,L19 2PH,N
http://statistics.data.gov.uk/id/local-authority/00BU,Trafford Borough Council,28/05/2020,5100390828,90787292,776225,Amey LG Limited,4521,GB813047950,JVC: Residual Waste,JVC Fixed Fee,230610,,151300,CONSULTANCY : Environmental,Lot 1a Fixed 20/21,235101,Invoice - gross,20200429,20200527,RE,Invoice - gross,7500244978,1,TRADE CREDITOR,L19 2PH,N
http://statistics.data.gov.uk/id/local-authority/00BU,Trafford Borough Council,28/05/2020,5100390829,90787294,57288,Amey LG Limited,4521,GB813047950,JVC: Street light mt,JVC Fixed Fee,230610,,151300,CONSULTANCY : Environmental,Lot 2b Fixed 20/21,235221,Invoice - gross,20200429,20200527,RE,Invoice - gross,7500244978,3,TRADE CREDITOR,L19 2PH,N
http://statistics.data.gov.uk/id/local-authority/00BU,Trafford Borough Council,28/05/2020,5100390830,90787295,210367.17,Amey LG Limited,4521,GB813047950,JVC: Property manage,JVC Fixed Fee,230610,,151300,CONSULTANCY : Environmental,Lot 3 Fixed 20/21,235301,Invoice - gross,20200429,20200527,RE,Invoice - gross,7500244978,4,TRADE CREDITOR,L19 2PH,N
http://statistics.data.gov.uk/id/local-authority/00BU,Trafford Borough Council,29/05/2020,5100388997,90784779,84.86,Amey LG Limited,4521,GB813047950,Claremont Centre,EXTERNAL DAY-TO-DAY,200100,,191700,FM : Property Management,Claremont Centre,621001,Invoice - gross,20200402,20200508,RE,Invoice - gross,7500244518,1,TRADE CREDITOR,L19 2PH,Y
http://statistics.data.gov.uk/id/local-authority/00BU,Trafford Borough Council,29/05/2020,5100389619,90785611,5952.61,Amey LG Limited,4521,GB813047950,1T: S38,SUPPLIES/SERVICES,220472,,231400,HWY : Street Lighting,One Trafford  - Section 37/38 Fees 2016/,233003,Invoice - gross,20200420,20200529,RE,Invoice - gross,7500193995,1,TRADE CREDITOR,L19 2PH,Y
http://statistics.data.gov.uk/id/local-authority/00BU,Trafford Borough Council,29/05/2020,5100390101,90782216,55344.29,Amey LG Limited,4521,GB813047950,Capital Schemes,EXT PROJECT MAN,400220,,191700,FM : Property Management,Capital Project Schemes,990000,Invoice - gross,20200317,20200513,RE,Invoice - gross,7500232925,1,TRADE CREDITOR,L19 2PH,Y
http://statistics.data.gov.uk/id/local-authority/00BU,Trafford Borough Council,29/05/2020,5100390103,90782219,3407.43,Amey LG Limited,4521,GB813047950,Capital Schemes,EXT PROJECT MAN,400220,,191700,FM : Property Management,Capital Project Schemes,990000,Invoice - gross,20200317,20200513,RE,Invoice - gross,7500232925,1,TRADE CREDITOR,L19 2PH,Y
http://statistics.data.gov.uk/id/local-authority/00BU,Trafford Borough Council,29/05/2020,5100390104,90787408,15852,Amey LG Limited,4521,GB813047950,Capital Schemes,EXT PROJECT MAN,400220,,201700,FINANCIAL SERVICES : Grants,Capital Project Fees,990000,Invoice - gross,20200501,20200513,RE,Invoice - gross,7500194461,5,TRADE CREDITOR,L19 2PH,Y
http://statistics.data.gov.uk/id/local-authority/00BU,Trafford Borough Council,29/05/2020,5100390105,90786316,8966.25,Amey LG Limited,4521,GB813047950,Capital Schemes,EXT PROJECT MAN,400220,,191700,FM : Property Management,Capital Project Schemes,990000,Invoice - gross,20200424,20200513,RE,Invoice - gross,7500232925,1,TRADE CREDITOR,L19 2PH,Y
http://statistics.data.gov.uk/id/local-authority/00BU,Trafford Borough Council,29/05/2020,5100390129,90780429,419.4,Amey LG Limited,4521,GB813047950,CN:Arch Ser Schemes,LAND REGISTRY FEES,220470,,191700,FM : Property Management,Dangerous Building,354025,Invoice - gross,20200302,20200513,RE,Invoice - gross,7500240660,3,TRADE CREDITOR,L19 2PH,Y
http://statistics.data.gov.uk/id/local-authority/00BU,Trafford Borough Council,29/05/2020,5100390130,90780430,419.4,Amey LG Limited,4521,GB813047950,CN:Arch Ser Schemes,LAND REGISTRY FEES,220470,,191700,FM : Property Management,Dangerous Building,354025,Invoice - gross,20200302,20200513,RE,Invoice - gross,7500240660,4,TRADE CREDITOR,L19 2PH,Y
http://statistics.data.gov.uk/id/local-authority/00BU,Trafford Borough Council,29/05/2020,5100390131,90780427,419.4,Amey LG Limited,4521,GB813047950,CN:Arch Ser Schemes,LAND REGISTRY FEES,220470,,191700,FM : Property Management,Dangerous Building,354025,Invoice - gross,20200302,20200513,RE,Invoice - gross,7500240660,1,TRADE CREDITOR,L19 2PH,Y
http://statistics.data.gov.uk/id/local-authority/00BU,Trafford Borough Council,29/05/2020,5100390132,90780428,419.4,Amey LG Limited,4521,GB813047950,CN:Arch Ser Schemes,LAND REGISTRY FEES,220470,,191700,FM : Property Management,Dangerous Building,354025,Invoice - gross,20200302,20200513,RE,Invoice - gross,7500240660,2,TRADE CREDITOR,L19 2PH,Y
http://statistics.data.gov.uk/id/local-authority/00BU,Trafford Borough Council,20/05/2020,5100390427,5396206,90.52,Prism UK Medical Ltd,4535,GB845607903,SPECIAL NEEDS,EDUC.APP PURCH CURR,220047,,311000,MEDICAL : Consumables,Quotation SR465044 - Molift Battery pack,110002,Invoice - gross,20200317,20200520,RE,Invoice - gross,7500242808,1,TRADE CREDITOR CIS,WF4 4TD,Y
http://statistics.data.gov.uk/id/local-authority/00BU,Trafford Borough Council,20/05/2020,5100390427,5396206,70,Prism UK Medical Ltd,4535,GB845607903,SPECIAL NEEDS,EDUC.APP PURCH CURR,220047,,311000,MEDICAL : Consumables,Visit charge,110002,Invoice - gross,20200317,20200520,RE,Invoice - gross,7500242808,2,TRADE CREDITOR CIS,WF4 4TD,Y
http://statistics.data.gov.uk/id/local-authority/00BU,Trafford Borough Council,01/05/2020,5100389723,14767,800,J and J Oliver Ltd,4538,GB224433926,GM ARBOR - WORKS MGT,EXT GR MAINT CONT WK,200405,,241200,HORTICULTURAL : Services,14.4.2020 Woodheyes Park works,202408,Invoice - gross,20200421,20200430,RE,Invoice - gross,7500244381,1,TRADE CREDITOR CIS - SME,SK11 9BD,Y
http://statistics.data.gov.uk/id/local-authority/00BU,Trafford Borough Council,01/05/2020,5100389723,14767,180,J and J Oliver Ltd,4538,GB224433926,GM ARBOR - WORKS MGT,EXT GR MAINT CONT WK,200405,,241200,HORTICULTURAL : Services,8.2.20 Ascot Ave Sale,202408,Invoice - gross,20200421,20200430,RE,Invoice - gross,7500244381,2,TRADE CREDITOR CIS - SME,SK11 9BD,Y
http://statistics.data.gov.uk/id/local-authority/00BU,Trafford Borough Council,01/05/2020,5100389723,14767,720,J and J Oliver Ltd,4538,GB224433926,GM ARBOR - WORKS MGT,EXT GR MAINT CONT WK,200405,,241200,HORTICULTURAL : Services,5.3.20 Sale Water Park works,202408,Invoice - gross,20200421,20200430,RE,Invoice - gross,7500244381,3,TRADE CREDITOR CIS - SME,SK11 9BD,Y
http://statistics.data.gov.uk/id/local-authority/00BU,Trafford Borough Council,01/05/2020,5100389723,14767,270,J and J Oliver Ltd,4538,GB224433926,GM ARBOR - WORKS MGT,EXT GR MAINT CONT WK,200405,,241200,HORTICULTURAL : Services,12.3.20 Barton Rd/ Booth Rd Old Trafford,202408,Invoice - gross,20200421,20200430,RE,Invoice - gross,7500244381,4,TRADE CREDITOR CIS - SME,SK11 9BD,Y
http://statistics.data.gov.uk/id/local-authority/00BU,Trafford Borough Council,01/05/2020,5100389723,14767,300,J and J Oliver Ltd,4538,GB224433926,GM ARBOR - WORKS MGT,EXT GR MAINT CONT WK,200405,,241200,HORTICULTURAL : Services,13.3.20 Warbuton Lane,202408,Invoice - gross,20200421,20200430,RE,Invoice - gross,7500244381,5,TRADE CREDITOR CIS - SME,SK11 9BD,Y
http://statistics.data.gov.uk/id/local-authority/00BU,Trafford Borough Council,01/05/2020,5100389723,14767,500,J and J Oliver Ltd,4538,GB224433926,GM ARBOR - WORKS MGT,EXT GR MAINT CONT WK,200405,,241200,HORTICULTURAL : Services,4.4.2020 Borough wide urgent jobs,202408,Invoice - gross,20200421,20200430,RE,Invoice - gross,7500244381,6,TRADE CREDITOR CIS - SME,SK11 9BD,Y
http://statistics.data.gov.uk/id/local-authority/00BU,Trafford Borough Council,01/05/2020,5100388737,12309,11471.12,UPS Building & Maintenance Limited,4600,GB901576633,Capital Schemes,A&M PAY TO CONTRACTO,400400,,391110,CONSTRUCTION: Bld Construction,wetroom & ground floor toilet,990000,Invoice - gross,20200331,20200402,RE,Invoice - gross,7500240313,1,TRADE CREDITOR CIS,WN8 9UE,Y
http://statistics.data.gov.uk/id/local-authority/00BU,Trafford Borough Council,01/05/2020,5100388737,12309,-304.81,UPS Building & Maintenance Limited,4600,GB901576633,Capital Schemes,A&M PAY TO CONTRACTO,400400,,391110,CONSTRUCTION: Bld Construction,wetroom & ground floor toilet,990000,Invoice - gross,20200331,20200402,RE,Invoice - gross,7500240313,1,TRADE CREDITOR CIS,WN8 9UE,Y
http://statistics.data.gov.uk/id/local-authority/00BU,Trafford Borough Council,01/05/2020,5100389671,15420,-11471.12,UPS Building & Maintenance Limited,4600,GB901576633,Capital Schemes,A&M PAY TO CONTRACTO,400400,,391110,CONSTRUCTION: Bld Construction,wetroom & ground floor toilet,990000,Invoice - gross,20200331,20200429,RE,Invoice - gross,7500240313,1,TRADE CREDITOR CIS,WN8 9UE,Y
http://statistics.data.gov.uk/id/local-authority/00BU,Trafford Borough Council,01/05/2020,5100389671,15420,304.81,UPS Building & Maintenance Limited,4600,GB901576633,Capital Schemes,A&M PAY TO CONTRACTO,400400,,391110,CONSTRUCTION: Bld Construction,wetroom & ground floor toilet,990000,Invoice - gross,20200331,20200429,RE,Invoice - gross,7500240313,1,TRADE CREDITOR CIS,WN8 9UE,Y
http://statistics.data.gov.uk/id/local-authority/00BU,Trafford Borough Council,01/05/2020,5100389672,12309,11471.12,UPS Building & Maintenance Limited,4600,GB901576633,Capital Schemes,A&M PAY TO CONTRACTO,400400,,391110,CONSTRUCTION: Bld Construction,wetroom & ground floor toilet,990000,Invoice - gross,20200331,20200429,RE,Invoice - gross,7500240313,1,TRADE CREDITOR CIS,WN8 9UE,Y
http://statistics.data.gov.uk/id/local-authority/00BU,Trafford Borough Council,01/05/2020,5100388737,12309,11471.12,UPS Building & Maintenance Limited,4600,GB901576633,Capital Schemes,A&M PAY TO CONTRACTO,400400,,391110,CONSTRUCTION: Bld Construction,wetroom & ground floor toilet,990000,Invoice - gross,20200331,20200402,RE,Invoice - gross,7500240313,1,TRADE CREDITOR CIS,WN8 9UE,Y
http://statistics.data.gov.uk/id/local-authority/00BU,Trafford Borough Council,01/05/2020,5100388737,12309,-304.81,UPS Building & Maintenance Limited,4600,GB901576633,Capital Schemes,A&M PAY TO CONTRACTO,400400,,391110,CONSTRUCTION: Bld Construction,wetroom & ground floor toilet,990000,Invoice - gross,20200331,20200402,RE,Invoice - gross,7500240313,1,TRADE CREDITOR CIS,WN8 9UE,Y
http://statistics.data.gov.uk/id/local-authority/00BU,Trafford Borough Council,01/05/2020,5100389671,15420,-11471.12,UPS Building & Maintenance Limited,4600,GB901576633,Capital Schemes,A&M PAY TO CONTRACTO,400400,,391110,CONSTRUCTION: Bld Construction,wetroom & ground floor toilet,990000,Invoice - gross,20200331,20200429,RE,Invoice - gross,7500240313,1,TRADE CREDITOR CIS,WN8 9UE,Y
http://statistics.data.gov.uk/id/local-authority/00BU,Trafford Borough Council,01/05/2020,5100389671,15420,304.81,UPS Building & Maintenance Limited,4600,GB901576633,Capital Schemes,A&M PAY TO CONTRACTO,400400,,391110,CONSTRUCTION: Bld Construction,wetroom & ground floor toilet,990000,Invoice - gross,20200331,20200429,RE,Invoice - gross,7500240313,1,TRADE CREDITOR CIS,WN8 9UE,Y
http://statistics.data.gov.uk/id/local-authority/00BU,Trafford Borough Council,01/05/2020,5100389672,12309,11471.12,UPS Building & Maintenance Limited,4600,GB901576633,Capital Schemes,A&M PAY TO CONTRACTO,400400,,391110,CONSTRUCTION: Bld Construction,wetroom & ground floor toilet,990000,Invoice - gross,20200331,20200429,RE,Invoice - gross,7500240313,1,TRADE CREDITOR CIS,WN8 9UE,Y
http://statistics.data.gov.uk/id/local-authority/00BU,Trafford Borough Council,04/05/2020,5100389826,12343,7323.24,UPS Building & Maintenance Limited,4600,GB901576633,Capital Schemes,A&M PAY TO CONTRACTO,400400,,391110,CONSTRUCTION: Bld Construction,Disabled Facilities Grant DF2/17293,990000,Invoice - gross,20200427,20200504,RE,Invoice - gross,7500239528,1,TRADE CREDITOR CIS,WN8 9UE,Y
http://statistics.data.gov.uk/id/local-authority/00BU,Trafford Borough Council,06/05/2020,5100389939,12283,19028.49,UPS Building & Maintenance Limited,4600,GB901576633,Capital Schemes,A&M PAY TO CONTRACTO,400400,,391110,CONSTRUCTION: Bld Construction,Disabled Facilities Grant,990000,Invoice - gross,20200326,20200506,RE,Invoice - gross,7500238547,1,TRADE CREDITOR CIS,WN8 9UE,Y
http://statistics.data.gov.uk/id/local-authority/00BU,Trafford Borough Council,15/05/2020,5100390211,12369,393.45,UPS Building & Maintenance Limited,4600,GB901576633,HS:ADAPTATIONS,PROFESSIONAL FEES,220456,,391110,CONSTRUCTION: Bld Construction,Cancellation Fee,302300,Invoice - gross,20200504,20200514,RE,Invoice - gross,7500244632,1,TRADE CREDITOR CIS,WN8 9UE,Y
http://statistics.data.gov.uk/id/local-authority/00BU,Trafford Borough Council,26/05/2020,5100390632,07920,500,Hoist and Shower Chair Company Ltd,4655,GB789250193,LIFT REPAIRS & MTCE,CLIENTS LIFT REP & M,220406,,191400,FACILITIES MGT : Lifts,Removal X2 Ceiling Track Hoists,250210,Invoice - gross,20200420,20200522,RE,Invoice - gross,7500242966,1,TRADE CREDITOR CIS - SME,HD6 1NB,Y
http://statistics.data.gov.uk/id/local-authority/00BU,Trafford Borough Council,05/05/2020,5100389855,3040002540,34712.43,Galliford Try Building Limited,4662,GB223413506,Capital Schemes,A&M PAY TO CONTRACTO,400400,,391110,CONSTRUCTION: Bld Construction,Blessed Thomas Holford College,990000,Invoice - gross,20200408,20200505,RE,Invoice - gross,7500241238,1,TRADE CREDITOR CIS,WA2 0XR,Y
http://statistics.data.gov.uk/id/local-authority/00BU,Trafford Borough Council,20/05/2020,5100390334,3040002565,51627.49,Galliford Try Building Limited,4662,GB223413506,Capital Schemes,A&M PAY TO CONTRACTO,400400,,391110,CONSTRUCTION: Bld Construction,Blessed Thomas Holford College,990000,Invoice - gross,20200430,20200518,RE,Invoice - gross,7500241238,1,TRADE CREDITOR CIS,WA2 0XR,Y
http://statistics.data.gov.uk/id/local-authority/00BU,Trafford Borough Council,20/05/2020,5100390340,0152,106991.23,Alined Construction Ltd,4671,GB328498070,Capital Schemes,EXT PROJECT MAN,400220,,391000,CONSTRUCTION : Architect,Greenwood Street,990000,Invoice - gross,20200430,20200518,RE,Invoice - gross,7500243949,1,TRADE CREDITOR CIS - SME Local,OL6 9DU,Y
http://statistics.data.gov.uk/id/local-authority/00BU,Trafford Borough Council,20/05/2020,5100390448,0152,-106991.23,Alined Construction Ltd,4671,GB328498070,Capital Schemes,EXT PROJECT MAN,400220,,391000,CONSTRUCTION : Architect,Greenwood Street,990000,Invoice - gross,20200430,20200520,RE,Invoice - gross,7500243949,1,TRADE CREDITOR CIS - SME Local,OL6 9DU,Y
http://statistics.data.gov.uk/id/local-authority/00BU,Trafford Borough Council,20/05/2020,5100390449,0152,106991.23,Alined Construction Ltd,4671,GB328498070,Capital Schemes,EXT PROJECT MAN,400220,,391000,CONSTRUCTION : Architect,Greenwood Street,990000,Invoice - gross,20200430,20200520,RE,Invoice - gross,7500243949,1,TRADE CREDITOR CIS - SME Local,OL6 9DU,Y
http://statistics.data.gov.uk/id/local-authority/00BU,Trafford Borough Council,20/05/2020,5100390340,0152,106991.23,Alined Construction Ltd,4671,GB328498070,Capital Schemes,EXT PROJECT MAN,400220,,391000,CONSTRUCTION : Architect,Greenwood Street,990000,Invoice - gross,20200430,20200518,RE,Invoice - gross,7500243949,1,TRADE CREDITOR CIS - SME Local,OL6 9DU,Y
http://statistics.data.gov.uk/id/local-authority/00BU,Trafford Borough Council,20/05/2020,5100390448,0152,-106991.23,Alined Construction Ltd,4671,GB328498070,Capital Schemes,EXT PROJECT MAN,400220,,391000,CONSTRUCTION : Architect,Greenwood Street,990000,Invoice - gross,20200430,20200520,RE,Invoice - gross,7500243949,1,TRADE CREDITOR CIS - SME Local,OL6 9DU,Y
http://statistics.data.gov.uk/id/local-authority/00BU,Trafford Borough Council,20/05/2020,5100390449,0152,106991.23,Alined Construction Ltd,4671,GB328498070,Capital Schemes,EXT PROJECT MAN,400220,,391000,CONSTRUCTION : Architect,Greenwood Street,990000,Invoice - gross,20200430,20200520,RE,Invoice - gross,7500243949,1,TRADE CREDITOR CIS - SME Local,OL6 9DU,Y
http://statistics.data.gov.uk/id/local-authority/00BU,Trafford Borough Council,04/05/2020,1901358498,19,6535,UBU,100030,GB687081992,Council Covid 19 mon,SUPP LIVING CONT,230530,,,,SL Add Covid19,157041,Vendor invoice,20200504,20200504,VI,Vendor invoice,,0,Social Care,HG1 5BJ,Y
http://statistics.data.gov.uk/id/local-authority/00BU,Trafford Borough Council,26/05/2020,1901361462,475707,1399.2,UBU,100030,GB687081992,LEARN DIS 18-64 LT,SUPP LIVING CONT,230530,,,,REDACTED,157003,Softbox invoice,20200526,20200526,SI,Softbox invoice,,0,Social Care,HG1 5BJ,Y
http://statistics.data.gov.uk/id/local-authority/00BU,Trafford Borough Council,26/05/2020,1901361462,475707,1717.2,UBU,100030,GB687081992,LEARN DIS 18-64 LT,SUPP LIVING CONT,230530,,,,REDACTED,157003,Softbox invoice,20200526,20200526,SI,Softbox invoice,,0,Social Care,HG1 5BJ,Y
http://statistics.data.gov.uk/id/local-authority/00BU,Trafford Borough Council,26/05/2020,1901361462,475707,1462.8,UBU,100030,GB687081992,LEARN DIS 18-64 LT,SUPP LIVING CONT,230530,,,,REDACTED,157003,Softbox invoice,20200526,20200526,SI,Softbox invoice,,0,Social Care,HG1 5BJ,Y
http://statistics.data.gov.uk/id/local-authority/00BU,Trafford Borough Council,26/05/2020,1901361462,475707,1399.2,UBU,100030,GB687081992,PHYS SUPP 18-64 LT,SUPP LIVING CONT,230530,,,,REDACTED,157000,Softbox invoice,20200526,20200526,SI,Softbox invoice,,0,Social Care,HG1 5BJ,Y
http://statistics.data.gov.uk/id/local-authority/00BU,Trafford Borough Council,26/05/2020,1901361462,475707,1462.8,UBU,100030,GB687081992,LEARN DIS 18-64 LT,SUPP LIVING CONT,230530,,,,REDACTED,157003,Softbox invoice,20200526,20200526,SI,Softbox invoice,,0,Social Care,HG1 5BJ,Y
http://statistics.data.gov.uk/id/local-authority/00BU,Trafford Borough Council,26/05/2020,1901361462,475707,25378.4,UBU,100030,GB687081992,REDACTED,SUPP LIVING CONT,230530,,,,REDACTED,251381,Softbox invoice,20200526,20200526,SI,Softbox invoice,,0,Social Care,HG1 5BJ,Y
http://statistics.data.gov.uk/id/local-authority/00BU,Trafford Borough Council,26/05/2020,1901361470,475704,1088.32,UBU,100030,GB687081992,LEARN DIS 18-64 LT,SUPP LIVING CONT,230530,,,,REDACTED,157003,Softbox invoice,20200526,20200526,SI,Softbox invoice,,0,Social Care,HG1 5BJ,Y
http://statistics.data.gov.uk/id/local-authority/00BU,Trafford Borough Council,26/05/2020,1901361470,475704,544.16,UBU,100030,GB687081992,PHYS SUPP 65-74 LT,SUPP LIVING CONT,230530,,,,REDACTED,157010,Softbox invoice,20200526,20200526,SI,Softbox invoice,,0,Social Care,HG1 5BJ,Y
http://statistics.data.gov.uk/id/local-authority/00BU,Trafford Borough Council,26/05/2020,1901361470,475704,1202.88,UBU,100030,GB687081992,LEARN DIS 18-64 LT,SUPP LIVING CONT,230530,,,,REDACTED,157003,Softbox invoice,20200526,20200526,SI,Softbox invoice,,0,Social Care,HG1 5BJ,Y
http://statistics.data.gov.uk/id/local-authority/00BU,Trafford Borough Council,26/05/2020,1901361470,475704,572.8,UBU,100030,GB687081992,LEARN DIS 65-74 LT,SUPP LIVING CONT,230530,,,,REDACTED,157013,Softbox invoice,20200526,20200526,SI,Softbox invoice,,0,Social Care,HG1 5BJ,Y
http://statistics.data.gov.uk/id/local-authority/00BU,Trafford Borough Council,26/05/2020,1901361470,475704,1145.6,UBU,100030,GB687081992,LEARN DIS 18-64 LT,SUPP LIVING CONT,230530,,,,REDACTED,157003,Softbox invoice,20200526,20200526,SI,Softbox invoice,,0,Social Care,HG1 5BJ,Y
http://statistics.data.gov.uk/id/local-authority/00BU,Trafford Borough Council,26/05/2020,1901361470,475704,14490.8,UBU,100030,GB687081992,REDACTED,SUPP LIVING CONT,230530,,,,REDACTED,251362,Softbox invoice,20200526,20200526,SI,Softbox invoice,,0,Social Care,HG1 5BJ,Y
http://statistics.data.gov.uk/id/local-authority/00BU,Trafford Borough Council,26/05/2020,1901361473,475703,852.02,UBU,100030,GB687081992,LEARN DIS 18-64 LT,SUPP LIVING CONT,230530,,,,REDACTED,157003,Softbox invoice,20200526,20200526,SI,Softbox invoice,,0,Social Care,HG1 5BJ,Y
http://statistics.data.gov.uk/id/local-authority/00BU,Trafford Borough Council,26/05/2020,1901361473,475703,1204.58,UBU,100030,GB687081992,LEARN DIS 18-64 LT,SUPP LIVING CONT,230530,,,,REDACTED,157003,Softbox invoice,20200526,20200526,SI,Softbox invoice,,0,Social Care,HG1 5BJ,Y
http://statistics.data.gov.uk/id/local-authority/00BU,Trafford Borough Council,26/05/2020,1901361473,475703,1498.38,UBU,100030,GB687081992,LEARN DIS 18-64 LT,SUPP LIVING CONT,230530,,,,REDACTED,157003,Softbox invoice,20200526,20200526,SI,Softbox invoice,,0,Social Care,HG1 5BJ,Y
http://statistics.data.gov.uk/id/local-authority/00BU,Trafford Borough Council,26/05/2020,1901361473,475703,11510.52,UBU,100030,GB687081992,REDACTED,SUPP LIVING CONT,230530,,,,REDACTED,251364,Softbox invoice,20200526,20200526,SI,Softbox invoice,,0,Social Care,HG1 5BJ,Y
http://statistics.data.gov.uk/id/local-authority/00BU,Trafford Borough Council,26/05/2020,1901361475,475702,515.52,UBU,100030,GB687081992,LEARN DIS 18-64 LT,SUPP LIVING CONT,230530,,,,REDACTED,157003,Softbox invoice,20200526,20200526,SI,Softbox invoice,,0,Social Care,HG1 5BJ,Y
http://statistics.data.gov.uk/id/local-authority/00BU,Trafford Borough Council,26/05/2020,1901361475,475702,515.52,UBU,100030,GB687081992,LEARN DIS 75-84 LT,SUPP LIVING CONT,230530,,,,REDACTED,157023,Softbox invoice,20200526,20200526,SI,Softbox invoice,,0,Social Care,HG1 5BJ,Y
http://statistics.data.gov.uk/id/local-authority/00BU,Trafford Borough Council,26/05/2020,1901361475,475702,9376.4,UBU,100030,GB687081992,REDACTED,SUPP LIVING CONT,230530,,,,REDACTED,251361,Softbox invoice,20200526,20200526,SI,Softbox invoice,,0,Social Care,HG1 5BJ,Y
http://statistics.data.gov.uk/id/local-authority/00BU,Trafford Borough Council,26/05/2020,1901362079,19,3213.93,UBU,100030,GB687081992,Council Covid 19 mon,SUPP LIVING CONT,230530,,,,SL Add Covid19,157041,Vendor invoice,20200526,20200526,VI,Vendor invoice,,0,Social Care,HG1 5BJ,Y
http://statistics.data.gov.uk/id/local-authority/00BU,Trafford Borough Council,13/05/2020,1901359184,19,2000,The Counselling & Family Centre,100056,,GRANTS TO VOLUNTARY,GRANTS TO VOL ORGS,220700,,311100,MEDICAL : Counselling,,710000,Vendor invoice,20200429,20200512,VI,Vendor invoice,,0,TRADE CREDITOR VOLUNTARY,WA15 9RP,N
http://statistics.data.gov.uk/id/local-authority/00BU,Trafford Borough Council,04/05/2020,1901358106,447029,58,Creative Support Ltd,100160,,LEARN DIS 18-64 LT,SUPP LIVING CONT,230530,,321014,SOCIAL CARE : Domiciliary Care,REDACTED,157003,Softbox manual Inv,20200504,20200504,SM,Softbox manual Inv,,0,Social Care,SK1 3TS,Y
http://statistics.data.gov.uk/id/local-authority/00BU,Trafford Borough Council,04/05/2020,1901358106,447029,754,Creative Support Ltd,100160,,LEARN DIS 18-64 LT,SUPP LIVING CONT,230530,,321014,SOCIAL CARE : Domiciliary Care,REDACTED,157003,Softbox manual Inv,20200504,20200504,SM,Softbox manual Inv,,0,Social Care,SK1 3TS,Y
http://statistics.data.gov.uk/id/local-authority/00BU,Trafford Borough Council,04/05/2020,1901358106,447029,70.43,Creative Support Ltd,100160,,LEARN DIS 18-64 LT,SUPP LIVING CONT,230530,,321014,SOCIAL CARE : Domiciliary Care,REDACTED,157003,Softbox manual Inv,20200504,20200504,SM,Softbox manual Inv,,0,Social Care,SK1 3TS,Y
http://statistics.data.gov.uk/id/local-authority/00BU,Trafford Borough Council,04/05/2020,1901358106,447029,915.57,Creative Support Ltd,100160,,LEARN DIS 18-64 LT,SUPP LIVING CONT,230530,,321014,SOCIAL CARE : Domiciliary Care,REDACTED,157003,Softbox manual Inv,20200504,20200504,SM,Softbox manual Inv,,0,Social Care,SK1 3TS,Y
http://statistics.data.gov.uk/id/local-authority/00BU,Trafford Borough Council,04/05/2020,1901358106,447029,136.71,Creative Support Ltd,100160,,LEARN DIS 18-64 LT,SUPP LIVING CONT,230530,,321014,SOCIAL CARE : Domiciliary Care,REDACTED,157003,Softbox manual Inv,20200504,20200504,SM,Softbox manual Inv,,0,Social Care,SK1 3TS,Y
http://statistics.data.gov.uk/id/local-authority/00BU,Trafford Borough Council,04/05/2020,1901358106,447029,1777.29,Creative Support Ltd,100160,,LEARN DIS 18-64 LT,SUPP LIVING CONT,230530,,321014,SOCIAL CARE : Domiciliary Care,REDACTED,157003,Softbox manual Inv,20200504,20200504,SM,Softbox manual Inv,,0,Social Care,SK1 3TS,Y
http://statistics.data.gov.uk/id/local-authority/00BU,Trafford Borough Council,04/05/2020,1901358106,447029,33.14,Creative Support Ltd,100160,,LEARN DIS 18-64 LT,SUPP LIVING CONT,230530,,321014,SOCIAL CARE : Domiciliary Care,REDACTED,157003,Softbox manual Inv,20200504,20200504,SM,Softbox manual Inv,,0,Social Care,SK1 3TS,Y
http://statistics.data.gov.uk/id/local-authority/00BU,Trafford Borough Council,04/05/2020,1901358106,447029,430.86,Creative Support Ltd,100160,,LEARN DIS 18-64 LT,SUPP LIVING CONT,230530,,321014,SOCIAL CARE : Domiciliary Care,REDACTED,157003,Softbox manual Inv,20200504,20200504,SM,Softbox manual Inv,,0,Social Care,SK1 3TS,Y
http://statistics.data.gov.uk/id/local-authority/00BU,Trafford Borough Council,04/05/2020,1901358106,447029,66.29,Creative Support Ltd,100160,,LEARN DIS 18-64 LT,SUPP LIVING CONT,230530,,321014,SOCIAL CARE : Domiciliary Care,REDACTED,157003,Softbox manual Inv,20200504,20200504,SM,Softbox manual Inv,,0,Social Care,SK1 3TS,Y
http://statistics.data.gov.uk/id/local-authority/00BU,Trafford Borough Council,04/05/2020,1901358106,447029,861.71,Creative Support Ltd,100160,,LEARN DIS 18-64 LT,SUPP LIVING CONT,230530,,321014,SOCIAL CARE : Domiciliary Care,REDACTED,157003,Softbox manual Inv,20200504,20200504,SM,Softbox manual Inv,,0,Social Care,SK1 3TS,Y
http://statistics.data.gov.uk/id/local-authority/00BU,Trafford Borough Council,04/05/2020,1901358106,447029,1191.12,Creative Support Ltd,100160,,Creative Support Blo,SUPP LIVING CONT,230530,,321014,SOCIAL CARE : Domiciliary Care,REDACTED,251390,Softbox manual Inv,20200504,20200504,SM,Softbox manual Inv,,0,Social Care,SK1 3TS,Y
http://statistics.data.gov.uk/id/local-authority/00BU,Trafford Borough Council,04/05/2020,1901358106,447029,15484.56,Creative Support Ltd,100160,,Creative Support Blo,SUPP LIVING CONT,230530,,321014,SOCIAL CARE : Domiciliary Care,REDACTED,251390,Softbox manual Inv,20200504,20200504,SM,Softbox manual Inv,,0,Social Care,SK1 3TS,Y
http://statistics.data.gov.uk/id/local-authority/00BU,Trafford Borough Council,04/05/2020,1901358107,447022,54.43,Creative Support Ltd,100160,,LEARN DIS 65-74 LT,SUPP LIVING CONT,230530,,321014,SOCIAL CARE : Domiciliary Care,REDACTED,157013,Softbox manual Inv,20200504,20200504,SM,Softbox manual Inv,,0,Social Care,SK1 3TS,Y
http://statistics.data.gov.uk/id/local-authority/00BU,Trafford Borough Council,04/05/2020,1901358107,447022,707.53,Creative Support Ltd,100160,,LEARN DIS 65-74 LT,SUPP LIVING CONT,230530,,321014,SOCIAL CARE : Domiciliary Care,REDACTED,157013,Softbox manual Inv,20200504,20200504,SM,Softbox manual Inv,,0,Social Care,SK1 3TS,Y
http://statistics.data.gov.uk/id/local-authority/00BU,Trafford Borough Council,04/05/2020,1901358107,447022,54.43,Creative Support Ltd,100160,,LEARN DIS 18-64 LT,SUPP LIVING CONT,230530,,321014,SOCIAL CARE : Domiciliary Care,REDACTED,157003,Softbox manual Inv,20200504,20200504,SM,Softbox manual Inv,,0,Social Care,SK1 3TS,Y
http://statistics.data.gov.uk/id/local-authority/00BU,Trafford Borough Council,04/05/2020,1901358107,447022,707.53,Creative Support Ltd,100160,,LEARN DIS 18-64 LT,SUPP LIVING CONT,230530,,321014,SOCIAL CARE : Domiciliary Care,REDACTED,157003,Softbox manual Inv,20200504,20200504,SM,Softbox manual Inv,,0,Social Care,SK1 3TS,Y
http://statistics.data.gov.uk/id/local-authority/00BU,Trafford Borough Council,04/05/2020,1901358107,447022,54.43,Creative Support Ltd,100160,,LEARN DIS 65-74 LT,SUPP LIVING CONT,230530,,321014,SOCIAL CARE : Domiciliary Care,REDACTED,157013,Softbox manual Inv,20200504,20200504,SM,Softbox manual Inv,,0,Social Care,SK1 3TS,Y
http://statistics.data.gov.uk/id/local-authority/00BU,Trafford Borough Council,04/05/2020,1901358107,447022,707.53,Creative Support Ltd,100160,,LEARN DIS 65-74 LT,SUPP LIVING CONT,230530,,321014,SOCIAL CARE : Domiciliary Care,REDACTED,157013,Softbox manual Inv,20200504,20200504,SM,Softbox manual Inv,,0,Social Care,SK1 3TS,Y
http://statistics.data.gov.uk/id/local-authority/00BU,Trafford Borough Council,04/05/2020,1901358107,447022,680.22,Creative Support Ltd,100160,,SUPPORTED LVG BLOCKS,SUPP LIVING CONT,230530,,321014,SOCIAL CARE : Domiciliary Care,REDACTED,251342,Softbox manual Inv,20200504,20200504,SM,Softbox manual Inv,,0,Social Care,SK1 3TS,Y
http://statistics.data.gov.uk/id/local-authority/00BU,Trafford Borough Council,04/05/2020,1901358107,447022,8842.82,Creative Support Ltd,100160,,SUPPORTED LVG BLOCKS,SUPP LIVING CONT,230530,,321014,SOCIAL CARE : Domiciliary Care,REDACTED,251342,Softbox manual Inv,20200504,20200504,SM,Softbox manual Inv,,0,Social Care,SK1 3TS,Y
http://statistics.data.gov.uk/id/local-authority/00BU,Trafford Borough Council,04/05/2020,1901358108,30326425,66.29,Creative Support Ltd,100160,,LEARN DIS 18-64 LT,SUPP LIVING CONT,230530,,321014,SOCIAL CARE : Domiciliary Care,REDACTED,157003,Softbox manual Inv,20200504,20200504,SM,Softbox manual Inv,,0,Social Care,SK1 3TS,Y
http://statistics.data.gov.uk/id/local-authority/00BU,Trafford Borough Council,04/05/2020,1901358108,30326425,861.71,Creative Support Ltd,100160,,LEARN DIS 18-64 LT,SUPP LIVING CONT,230530,,321014,SOCIAL CARE : Domiciliary Care,REDACTED,157003,Softbox manual Inv,20200504,20200504,SM,Softbox manual Inv,,0,Social Care,SK1 3TS,Y
http://statistics.data.gov.uk/id/local-authority/00BU,Trafford Borough Council,04/05/2020,1901358108,30326425,45.57,Creative Support Ltd,100160,,LEARN DIS 18-64 LT,SUPP LIVING CONT,230530,,321014,SOCIAL CARE : Domiciliary Care,REDACTED,157003,Softbox manual Inv,20200504,20200504,SM,Softbox manual Inv,,0,Social Care,SK1 3TS,Y
http://statistics.data.gov.uk/id/local-authority/00BU,Trafford Borough Council,04/05/2020,1901358108,30326425,592.43,Creative Support Ltd,100160,,LEARN DIS 18-64 LT,SUPP LIVING CONT,230530,,321014,SOCIAL CARE : Domiciliary Care,REDACTED,157003,Softbox manual Inv,20200504,20200504,SM,Softbox manual Inv,,0,Social Care,SK1 3TS,Y
http://statistics.data.gov.uk/id/local-authority/00BU,Trafford Borough Council,04/05/2020,1901358108,30326425,74.57,Creative Support Ltd,100160,,LEARN DIS 18-64 LT,SUPP LIVING CONT,230530,,321014,SOCIAL CARE : Domiciliary Care,REDACTED,157003,Softbox manual Inv,20200504,20200504,SM,Softbox manual Inv,,0,Social Care,SK1 3TS,Y
http://statistics.data.gov.uk/id/local-authority/00BU,Trafford Borough Council,04/05/2020,1901358108,30326425,969.43,Creative Support Ltd,100160,,LEARN DIS 18-64 LT,SUPP LIVING CONT,230530,,321014,SOCIAL CARE : Domiciliary Care,REDACTED,157003,Softbox manual Inv,20200504,20200504,SM,Softbox manual Inv,,0,Social Care,SK1 3TS,Y
http://statistics.data.gov.uk/id/local-authority/00BU,Trafford Borough Council,04/05/2020,1901358108,30326425,983.44,Creative Support Ltd,100160,,UBU-25 SEAMONS ROAD,SUPP LIVING CONT,230530,,321014,SOCIAL CARE : Domiciliary Care,REDACTED,251360,Softbox manual Inv,20200504,20200504,SM,Softbox manual Inv,,0,Social Care,SK1 3TS,Y
http://statistics.data.gov.uk/id/local-authority/00BU,Trafford Borough Council,04/05/2020,1901358108,30326425,12784.76,Creative Support Ltd,100160,,UBU-25 SEAMONS ROAD,SUPP LIVING CONT,230530,,321014,SOCIAL CARE : Domiciliary Care,REDACTED,251360,Softbox manual Inv,20200504,20200504,SM,Softbox manual Inv,,0,Social Care,SK1 3TS,Y
http://statistics.data.gov.uk/id/local-authority/00BU,Trafford Borough Council,04/05/2020,1901358109,447053,79.97,Creative Support Ltd,100160,,LEARN DIS 18-64 LT,SUPP LIVING CONT,230530,,321014,SOCIAL CARE : Domiciliary Care,REDACTED,157003,Softbox manual Inv,20200504,20200504,SM,Softbox manual Inv,,0,Social Care,SK1 3TS,Y
http://statistics.data.gov.uk/id/local-authority/00BU,Trafford Borough Council,04/05/2020,1901358109,447053,1039.63,Creative Support Ltd,100160,,LEARN DIS 18-64 LT,SUPP LIVING CONT,230530,,321014,SOCIAL CARE : Domiciliary Care,REDACTED,157003,Softbox manual Inv,20200504,20200504,SM,Softbox manual Inv,,0,Social Care,SK1 3TS,Y
http://statistics.data.gov.uk/id/local-authority/00BU,Trafford Borough Council,04/05/2020,1901358109,447053,66.64,Creative Support Ltd,100160,,LEARN DIS 75-84 LT,SUPP LIVING CONT,230530,,321014,SOCIAL CARE : Domiciliary Care,REDACTED,157023,Softbox manual Inv,20200504,20200504,SM,Softbox manual Inv,,0,Social Care,SK1 3TS,Y
http://statistics.data.gov.uk/id/local-authority/00BU,Trafford Borough Council,04/05/2020,1901358109,447053,866.36,Creative Support Ltd,100160,,LEARN DIS 75-84 LT,SUPP LIVING CONT,230530,,321014,SOCIAL CARE : Domiciliary Care,REDACTED,157023,Softbox manual Inv,20200504,20200504,SM,Softbox manual Inv,,0,Social Care,SK1 3TS,Y
http://statistics.data.gov.uk/id/local-authority/00BU,Trafford Borough Council,04/05/2020,1901358109,447053,66.64,Creative Support Ltd,100160,,LEARN DIS 18-64 LT,SUPP LIVING CONT,230530,,321014,SOCIAL CARE : Domiciliary Care,REDACTED,157003,Softbox manual Inv,20200504,20200504,SM,Softbox manual Inv,,0,Social Care,SK1 3TS,Y
http://statistics.data.gov.uk/id/local-authority/00BU,Trafford Borough Council,04/05/2020,1901358109,447053,866.36,Creative Support Ltd,100160,,LEARN DIS 18-64 LT,SUPP LIVING CONT,230530,,321014,SOCIAL CARE : Domiciliary Care,REDACTED,157003,Softbox manual Inv,20200504,20200504,SM,Softbox manual Inv,,0,Social Care,SK1 3TS,Y
http://statistics.data.gov.uk/id/local-authority/00BU,Trafford Borough Council,04/05/2020,1901358109,447053,1286.07,Creative Support Ltd,100160,,SUPPORTED LVG BLOCKS,SUPP LIVING CONT,230530,,321014,SOCIAL CARE : Domiciliary Care,REDACTED,251342,Softbox manual Inv,20200504,20200504,SM,Softbox manual Inv,,0,Social Care,SK1 3TS,Y
http://statistics.data.gov.uk/id/local-authority/00BU,Trafford Borough Council,04/05/2020,1901358109,447053,16718.93,Creative Support Ltd,100160,,SUPPORTED LVG BLOCKS,SUPP LIVING CONT,230530,,321014,SOCIAL CARE : Domiciliary Care,REDACTED,251342,Softbox manual Inv,20200504,20200504,SM,Softbox manual Inv,,0,Social Care,SK1 3TS,Y
http://statistics.data.gov.uk/id/local-authority/00BU,Trafford Borough Council,04/05/2020,1901358110,447052,159.94,Creative Support Ltd,100160,,LEARN DIS 18-64 LT,SUPP LIVING CONT,230530,,321014,SOCIAL CARE : Domiciliary Care,REDACTED,157003,Softbox manual Inv,20200504,20200504,SM,Softbox manual Inv,,0,Social Care,SK1 3TS,Y
http://statistics.data.gov.uk/id/local-authority/00BU,Trafford Borough Council,04/05/2020,1901358110,447052,2079.26,Creative Support Ltd,100160,,LEARN DIS 18-64 LT,SUPP LIVING CONT,230530,,321014,SOCIAL CARE : Domiciliary Care,REDACTED,157003,Softbox manual Inv,20200504,20200504,SM,Softbox manual Inv,,0,Social Care,SK1 3TS,Y
http://statistics.data.gov.uk/id/local-authority/00BU,Trafford Borough Council,04/05/2020,1901358110,447052,168.83,Creative Support Ltd,100160,,LEARN DIS 18-64 LT,SUPP LIVING CONT,230530,,321014,SOCIAL CARE : Domiciliary Care,REDACTED,157003,Softbox manual Inv,20200504,20200504,SM,Softbox manual Inv,,0,Social Care,SK1 3TS,Y
http://statistics.data.gov.uk/id/local-authority/00BU,Trafford Borough Council,04/05/2020,1901358110,447052,2194.77,Creative Support Ltd,100160,,LEARN DIS 18-64 LT,SUPP LIVING CONT,230530,,321014,SOCIAL CARE : Domiciliary Care,REDACTED,157003,Softbox manual Inv,20200504,20200504,SM,Softbox manual Inv,,0,Social Care,SK1 3TS,Y
http://statistics.data.gov.uk/id/local-authority/00BU,Trafford Borough Council,04/05/2020,1901358110,447052,133.29,Creative Support Ltd,100160,,LEARN DIS 18-64 LT,SUPP LIVING CONT,230530,,321014,SOCIAL CARE : Domiciliary Care,REDACTED,157003,Softbox manual Inv,20200504,20200504,SM,Softbox manual Inv,,0,Social Care,SK1 3TS,Y
http://statistics.data.gov.uk/id/local-authority/00BU,Trafford Borough Council,04/05/2020,1901358110,447052,1732.71,Creative Support Ltd,100160,,LEARN DIS 18-64 LT,SUPP LIVING CONT,230530,,321014,SOCIAL CARE : Domiciliary Care,REDACTED,157003,Softbox manual Inv,20200504,20200504,SM,Softbox manual Inv,,0,Social Care,SK1 3TS,Y
http://statistics.data.gov.uk/id/local-authority/00BU,Trafford Borough Council,04/05/2020,1901358110,447052,1181.68,Creative Support Ltd,100160,,SUPPORTED LVG BLOCKS,SUPP LIVING CONT,230530,,321014,SOCIAL CARE : Domiciliary Care,REDACTED,251342,Softbox manual Inv,20200504,20200504,SM,Softbox manual Inv,,0,Social Care,SK1 3TS,Y
http://statistics.data.gov.uk/id/local-authority/00BU,Trafford Borough Council,04/05/2020,1901358110,447052,15361.88,Creative Support Ltd,100160,,SUPPORTED LVG BLOCKS,SUPP LIVING CONT,230530,,321014,SOCIAL CARE : Domiciliary Care,REDACTED,251342,Softbox manual Inv,20200504,20200504,SM,Softbox manual Inv,,0,Social Care,SK1 3TS,Y
http://statistics.data.gov.uk/id/local-authority/00BU,Trafford Borough Council,04/05/2020,1901358112,447084,184.97,Creative Support Ltd,100160,,SOCIAL SUPPORT 18-64,SUPP LIVING CONT,230530,,321014,SOCIAL CARE : Domiciliary Care,REDACTED,157005,Softbox manual Inv,20200504,20200504,SM,Softbox manual Inv,,0,Social Care,SK1 3TS,Y
http://statistics.data.gov.uk/id/local-authority/00BU,Trafford Borough Council,04/05/2020,1901358112,447084,2404.63,Creative Support Ltd,100160,,SOCIAL SUPPORT 18-64,SUPP LIVING CONT,230530,,321014,SOCIAL CARE : Domiciliary Care,REDACTED,157005,Softbox manual Inv,20200504,20200504,SM,Softbox manual Inv,,0,Social Care,SK1 3TS,Y
http://statistics.data.gov.uk/id/local-authority/00BU,Trafford Borough Council,04/05/2020,1901358115,446880,15.99,Creative Support Ltd,100160,,MENT HLT 18-64 LT,EXT DOM CARE SPOT CO,230845,,321014,SOCIAL CARE : Domiciliary Care,REDACTED,157004,Softbox manual Inv,20200504,20200504,SM,Softbox manual Inv,,0,Social Care,SK1 3TS,Y
http://statistics.data.gov.uk/id/local-authority/00BU,Trafford Borough Council,04/05/2020,1901358115,446880,207.87,Creative Support Ltd,100160,,MENT HLT 18-64 LT,EXT DOM CARE SPOT CO,230845,,321014,SOCIAL CARE : Domiciliary Care,REDACTED,157004,Softbox manual Inv,20200504,20200504,SM,Softbox manual Inv,,0,Social Care,SK1 3TS,Y
http://statistics.data.gov.uk/id/local-authority/00BU,Trafford Borough Council,04/05/2020,1901358116,446881,6.85,Creative Support Ltd,100160,,MENT HLT 18-64 LT,EXT DOM CARE SPOT CO,230845,,321014,SOCIAL CARE : Domiciliary Care,REDACTED,157004,Softbox manual Inv,20200504,20200504,SM,Softbox manual Inv,,0,Social Care,SK1 3TS,Y
http://statistics.data.gov.uk/id/local-authority/00BU,Trafford Borough Council,04/05/2020,1901358116,446881,73.1,Creative Support Ltd,100160,,MENT HLT 18-64 LT,EXT DOM CARE SPOT CO,230845,,321014,SOCIAL CARE : Domiciliary Care,REDACTED,157004,Softbox manual Inv,20200504,20200504,SM,Softbox manual Inv,,0,Social Care,SK1 3TS,Y
http://statistics.data.gov.uk/id/local-authority/00BU,Trafford Borough Council,04/05/2020,1901358117,446882,9.14,Creative Support Ltd,100160,,MENT HLT 18-64 LT,EXT DOM CARE SPOT CO,230845,,321014,SOCIAL CARE : Domiciliary Care,REDACTED,157004,Softbox manual Inv,20200504,20200504,SM,Softbox manual Inv,,0,Social Care,SK1 3TS,Y
http://statistics.data.gov.uk/id/local-authority/00BU,Trafford Borough Council,04/05/2020,1901358117,446882,118.78,Creative Support Ltd,100160,,MENT HLT 18-64 LT,EXT DOM CARE SPOT CO,230845,,321014,SOCIAL CARE : Domiciliary Care,REDACTED,157004,Softbox manual Inv,20200504,20200504,SM,Softbox manual Inv,,0,Social Care,SK1 3TS,Y
http://statistics.data.gov.uk/id/local-authority/00BU,Trafford Borough Council,04/05/2020,1901358118,446883,9.14,Creative Support Ltd,100160,,MENT HLT 18-64 LT,EXT DOM CARE SPOT CO,230845,,321014,SOCIAL CARE : Domiciliary Care,REDACTED,157004,Softbox manual Inv,20200504,20200504,SM,Softbox manual Inv,,0,Social Care,SK1 3TS,Y
http://statistics.data.gov.uk/id/local-authority/00BU,Trafford Borough Council,04/05/2020,1901358118,446883,22.84,Creative Support Ltd,100160,,MENT HLT 18-64 LT,EXT DOM CARE SPOT CO,230845,,321014,SOCIAL CARE : Domiciliary Care,REDACTED,157004,Softbox manual Inv,20200504,20200504,SM,Softbox manual Inv,,0,Social Care,SK1 3TS,Y
http://statistics.data.gov.uk/id/local-authority/00BU,Trafford Borough Council,04/05/2020,1901358118,446883,244,Creative Support Ltd,100160,,MENT HLT 18-64 LT,EXT DOM CARE SPOT CO,230845,,321014,SOCIAL CARE : Domiciliary Care,REDACTED,157004,Softbox manual Inv,20200504,20200504,SM,Softbox manual Inv,,0,Social Care,SK1 3TS,Y
http://statistics.data.gov.uk/id/local-authority/00BU,Trafford Borough Council,04/05/2020,1901358118,446883,244,Creative Support Ltd,100160,,MENT HLT 18-64 LT,EXT DOM CARE SPOT CO,230845,,321014,SOCIAL CARE : Domiciliary Care,REDACTED,157004,Softbox manual Inv,20200504,20200504,SM,Softbox manual Inv,,0,Social Care,SK1 3TS,Y
http://statistics.data.gov.uk/id/local-authority/00BU,Trafford Borough Council,04/05/2020,1901358118,446883,-244,Creative Support Ltd,100160,,MENT HLT 18-64 LT,EXT DOM CARE SPOT CO,230845,,321014,SOCIAL CARE : Domiciliary Care,REDACTED,157004,Softbox manual Inv,20200504,20200504,SM,Softbox manual Inv,,0,Social Care,SK1 3TS,Y
http://statistics.data.gov.uk/id/local-authority/00BU,Trafford Borough Council,04/05/2020,1901358118,446883,-244,Creative Support Ltd,100160,,MENT HLT 18-64 LT,EXT DOM CARE SPOT CO,230845,,321014,SOCIAL CARE : Domiciliary Care,REDACTED,157004,Softbox manual Inv,20200504,20200504,SM,Softbox manual Inv,,0,Social Care,SK1 3TS,Y
http://statistics.data.gov.uk/id/local-authority/00BU,Trafford Borough Council,04/05/2020,1901358119,446884,4.57,Creative Support Ltd,100160,,MENT HLT 18-64 LT,EXT DOM CARE SPOT CO,230845,,321014,SOCIAL CARE : Domiciliary Care,REDACTED,157004,Softbox manual Inv,20200504,20200504,SM,Softbox manual Inv,,0,Social Care,SK1 3TS,Y
http://statistics.data.gov.uk/id/local-authority/00BU,Trafford Borough Council,04/05/2020,1901358119,446884,59.39,Creative Support Ltd,100160,,MENT HLT 18-64 LT,EXT DOM CARE SPOT CO,230845,,321014,SOCIAL CARE : Domiciliary Care,REDACTED,157004,Softbox manual Inv,20200504,20200504,SM,Softbox manual Inv,,0,Social Care,SK1 3TS,Y
http://statistics.data.gov.uk/id/local-authority/00BU,Trafford Borough Council,04/05/2020,1901358120,446885,9.14,Creative Support Ltd,100160,,MENT HLT 18-64 LT,EXT DOM CARE SPOT CO,230845,,321014,SOCIAL CARE : Domiciliary Care,REDACTED,157004,Softbox manual Inv,20200504,20200504,SM,Softbox manual Inv,,0,Social Care,SK1 3TS,Y
http://statistics.data.gov.uk/id/local-authority/00BU,Trafford Borough Council,04/05/2020,1901358120,446885,22.84,Creative Support Ltd,100160,,MENT HLT 18-64 LT,EXT DOM CARE SPOT CO,230845,,321014,SOCIAL CARE : Domiciliary Care,REDACTED,157004,Softbox manual Inv,20200504,20200504,SM,Softbox manual Inv,,0,Social Care,SK1 3TS,Y
http://statistics.data.gov.uk/id/local-authority/00BU,Trafford Borough Council,04/05/2020,1901358121,446886,9.14,Creative Support Ltd,100160,,MENT HLT 18-64 LT,EXT DOM CARE SPOT CO,230845,,321014,SOCIAL CARE : Domiciliary Care,REDACTED,157004,Softbox manual Inv,20200504,20200504,SM,Softbox manual Inv,,0,Social Care,SK1 3TS,Y
http://statistics.data.gov.uk/id/local-authority/00BU,Trafford Borough Council,04/05/2020,1901358121,446886,86.8,Creative Support Ltd,100160,,MENT HLT 18-64 LT,EXT DOM CARE SPOT CO,230845,,321014,SOCIAL CARE : Domiciliary Care,REDACTED,157004,Softbox manual Inv,20200504,20200504,SM,Softbox manual Inv,,0,Social Care,SK1 3TS,Y
http://statistics.data.gov.uk/id/local-authority/00BU,Trafford Borough Council,04/05/2020,1901358122,446887,4.57,Creative Support Ltd,100160,,PHYS SUPP 18-64 LT,EXT DOM CARE SPOT CO,230845,,321014,SOCIAL CARE : Domiciliary Care,REDACTED,157000,Softbox manual Inv,20200504,20200504,SM,Softbox manual Inv,,0,Social Care,SK1 3TS,Y
http://statistics.data.gov.uk/id/local-authority/00BU,Trafford Borough Council,04/05/2020,1901358122,446887,59.39,Creative Support Ltd,100160,,PHYS SUPP 18-64 LT,EXT DOM CARE SPOT CO,230845,,321014,SOCIAL CARE : Domiciliary Care,REDACTED,157000,Softbox manual Inv,20200504,20200504,SM,Softbox manual Inv,,0,Social Care,SK1 3TS,Y
http://statistics.data.gov.uk/id/local-authority/00BU,Trafford Borough Council,04/05/2020,1901358123,446888,9.14,Creative Support Ltd,100160,,MENT HLT 18-64 LT,EXT DOM CARE SPOT CO,230845,,321014,SOCIAL CARE : Domiciliary Care,REDACTED,157004,Softbox manual Inv,20200504,20200504,SM,Softbox manual Inv,,0,Social Care,SK1 3TS,Y
http://statistics.data.gov.uk/id/local-authority/00BU,Trafford Borough Council,04/05/2020,1901358123,446888,118.78,Creative Support Ltd,100160,,MENT HLT 18-64 LT,EXT DOM CARE SPOT CO,230845,,321014,SOCIAL CARE : Domiciliary Care,REDACTED,157004,Softbox manual Inv,20200504,20200504,SM,Softbox manual Inv,,0,Social Care,SK1 3TS,Y
http://statistics.data.gov.uk/id/local-authority/00BU,Trafford Borough Council,04/05/2020,1901358124,446889,18.28,Creative Support Ltd,100160,,PHYS SUPP 18-64 LT,EXT DOM CARE SPOT CO,230845,,321014,SOCIAL CARE : Domiciliary Care,REDACTED,157000,Softbox manual Inv,20200504,20200504,SM,Softbox manual Inv,,0,Social Care,SK1 3TS,Y
http://statistics.data.gov.uk/id/local-authority/00BU,Trafford Borough Council,04/05/2020,1901358124,446889,173.61,Creative Support Ltd,100160,,PHYS SUPP 18-64 LT,EXT DOM CARE SPOT CO,230845,,321014,SOCIAL CARE : Domiciliary Care,REDACTED,157000,Softbox manual Inv,20200504,20200504,SM,Softbox manual Inv,,0,Social Care,SK1 3TS,Y
http://statistics.data.gov.uk/id/local-authority/00BU,Trafford Borough Council,04/05/2020,1901358125,446890,167.9,Creative Support Ltd,100160,,MENT HLT 65-74 LT,EXT DOM CARE SPOT CO,230845,,321014,SOCIAL CARE : Domiciliary Care,REDACTED,157014,Softbox manual Inv,20200504,20200504,SM,Softbox manual Inv,,0,Social Care,SK1 3TS,Y
http://statistics.data.gov.uk/id/local-authority/00BU,Trafford Borough Council,04/05/2020,1901358126,446891,15.99,Creative Support Ltd,100160,,MENT HLT 18-64 LT,EXT DOM CARE SPOT CO,230845,,321014,SOCIAL CARE : Domiciliary Care,REDACTED,157004,Softbox manual Inv,20200504,20200504,SM,Softbox manual Inv,,0,Social Care,SK1 3TS,Y
http://statistics.data.gov.uk/id/local-authority/00BU,Trafford Borough Council,04/05/2020,1901358126,446891,167.9,Creative Support Ltd,100160,,MENT HLT 18-64 LT,EXT DOM CARE SPOT CO,230845,,321014,SOCIAL CARE : Domiciliary Care,REDACTED,157004,Softbox manual Inv,20200504,20200504,SM,Softbox manual Inv,,0,Social Care,SK1 3TS,Y
http://statistics.data.gov.uk/id/local-authority/00BU,Trafford Borough Council,04/05/2020,1901358127,446892,18.28,Creative Support Ltd,100160,,MENT HLT 18-64 LT,EXT DOM CARE SPOT CO,230845,,321014,SOCIAL CARE : Domiciliary Care,REDACTED,157004,Softbox manual Inv,20200504,20200504,SM,Softbox manual Inv,,0,Social Care,SK1 3TS,Y
http://statistics.data.gov.uk/id/local-authority/00BU,Trafford Borough Council,04/05/2020,1901358127,446892,237.57,Creative Support Ltd,100160,,MENT HLT 18-64 LT,EXT DOM CARE SPOT CO,230845,,321014,SOCIAL CARE : Domiciliary Care,REDACTED,157004,Softbox manual Inv,20200504,20200504,SM,Softbox manual Inv,,0,Social Care,SK1 3TS,Y
http://statistics.data.gov.uk/id/local-authority/00BU,Trafford Borough Council,04/05/2020,1901358128,446893,15.99,Creative Support Ltd,100160,,MENT HLT 18-64 LT,EXT DOM CARE SPOT CO,230845,,321014,SOCIAL CARE : Domiciliary Care,REDACTED,157004,Softbox manual Inv,20200504,20200504,SM,Softbox manual Inv,,0,Social Care,SK1 3TS,Y
http://statistics.data.gov.uk/id/local-authority/00BU,Trafford Borough Council,04/05/2020,1901358128,446893,207.87,Creative Support Ltd,100160,,MENT HLT 18-64 LT,EXT DOM CARE SPOT CO,230845,,321014,SOCIAL CARE : Domiciliary Care,REDACTED,157004,Softbox manual Inv,20200504,20200504,SM,Softbox manual Inv,,0,Social Care,SK1 3TS,Y
http://statistics.data.gov.uk/id/local-authority/00BU,Trafford Borough Council,04/05/2020,1901358129,446946,18.28,Creative Support Ltd,100160,,MENT HLT 18-64 LT,EXT DOM CARE SPOT CO,230845,,321014,SOCIAL CARE : Domiciliary Care,REDACTED,157004,Softbox manual Inv,20200504,20200504,SM,Softbox manual Inv,,0,Social Care,SK1 3TS,Y
http://statistics.data.gov.uk/id/local-authority/00BU,Trafford Borough Council,04/05/2020,1901358129,446946,237.57,Creative Support Ltd,100160,,MENT HLT 18-64 LT,EXT DOM CARE SPOT CO,230845,,321014,SOCIAL CARE : Domiciliary Care,REDACTED,157004,Softbox manual Inv,20200504,20200504,SM,Softbox manual Inv,,0,Social Care,SK1 3TS,Y
http://statistics.data.gov.uk/id/local-authority/00BU,Trafford Borough Council,04/05/2020,1901358130,446947,13.71,Creative Support Ltd,100160,,MENT HLT 18-64 LT,EXT DOM CARE SPOT CO,230845,,321014,SOCIAL CARE : Domiciliary Care,REDACTED,157004,Softbox manual Inv,20200504,20200504,SM,Softbox manual Inv,,0,Social Care,SK1 3TS,Y
http://statistics.data.gov.uk/id/local-authority/00BU,Trafford Borough Council,04/05/2020,1901358130,446947,178.18,Creative Support Ltd,100160,,MENT HLT 18-64 LT,EXT DOM CARE SPOT CO,230845,,321014,SOCIAL CARE : Domiciliary Care,REDACTED,157004,Softbox manual Inv,20200504,20200504,SM,Softbox manual Inv,,0,Social Care,SK1 3TS,Y
http://statistics.data.gov.uk/id/local-authority/00BU,Trafford Borough Council,04/05/2020,1901358131,446948,13.71,Creative Support Ltd,100160,,MENT HLT 18-64 LT,EXT DOM CARE SPOT CO,230845,,321014,SOCIAL CARE : Domiciliary Care,REDACTED,157004,Softbox manual Inv,20200504,20200504,SM,Softbox manual Inv,,0,Social Care,SK1 3TS,Y
http://statistics.data.gov.uk/id/local-authority/00BU,Trafford Borough Council,04/05/2020,1901358131,446948,178.18,Creative Support Ltd,100160,,MENT HLT 18-64 LT,EXT DOM CARE SPOT CO,230845,,321014,SOCIAL CARE : Domiciliary Care,REDACTED,157004,Softbox manual Inv,20200504,20200504,SM,Softbox manual Inv,,0,Social Care,SK1 3TS,Y
http://statistics.data.gov.uk/id/local-authority/00BU,Trafford Borough Council,04/05/2020,1901358132,446949,47.97,Creative Support Ltd,100160,,MENT HLT 65-74 LT,EXT DOM CARE SPOT CO,230845,,321014,SOCIAL CARE : Domiciliary Care,REDACTED,157014,Softbox manual Inv,20200504,20200504,SM,Softbox manual Inv,,0,Social Care,SK1 3TS,Y
http://statistics.data.gov.uk/id/local-authority/00BU,Trafford Borough Council,04/05/2020,1901358132,446949,623.61,Creative Support Ltd,100160,,MENT HLT 65-74 LT,EXT DOM CARE SPOT CO,230845,,321014,SOCIAL CARE : Domiciliary Care,REDACTED,157014,Softbox manual Inv,20200504,20200504,SM,Softbox manual Inv,,0,Social Care,SK1 3TS,Y
http://statistics.data.gov.uk/id/local-authority/00BU,Trafford Borough Council,04/05/2020,1901358133,446950,52.54,Creative Support Ltd,100160,,MENT HLT 18-64 LT,EXT DOM CARE SPOT CO,230845,,321014,SOCIAL CARE : Domiciliary Care,REDACTED,157004,Softbox manual Inv,20200504,20200504,SM,Softbox manual Inv,,0,Social Care,SK1 3TS,Y
http://statistics.data.gov.uk/id/local-authority/00BU,Trafford Borough Council,04/05/2020,1901358133,446950,683,Creative Support Ltd,100160,,MENT HLT 18-64 LT,EXT DOM CARE SPOT CO,230845,,321014,SOCIAL CARE : Domiciliary Care,REDACTED,157004,Softbox manual Inv,20200504,20200504,SM,Softbox manual Inv,,0,Social Care,SK1 3TS,Y
http://statistics.data.gov.uk/id/local-authority/00BU,Trafford Borough Council,04/05/2020,1901358134,446951,79.95,Creative Support Ltd,100160,,MENT HLT 18-64 LT,EXT DOM CARE SPOT CO,230845,,321014,SOCIAL CARE : Domiciliary Care,REDACTED,157004,Softbox manual Inv,20200504,20200504,SM,Softbox manual Inv,,0,Social Care,SK1 3TS,Y
http://statistics.data.gov.uk/id/local-authority/00BU,Trafford Borough Council,04/05/2020,1901358134,446951,1039.35,Creative Support Ltd,100160,,MENT HLT 18-64 LT,EXT DOM CARE SPOT CO,230845,,321014,SOCIAL CARE : Domiciliary Care,REDACTED,157004,Softbox manual Inv,20200504,20200504,SM,Softbox manual Inv,,0,Social Care,SK1 3TS,Y
http://statistics.data.gov.uk/id/local-authority/00BU,Trafford Borough Council,04/05/2020,1901358135,446952,22.84,Creative Support Ltd,100160,,PHYS SUPP 18-64 LT,EXT DOM CARE SPOT CO,230845,,321014,SOCIAL CARE : Domiciliary Care,REDACTED,157000,Softbox manual Inv,20200504,20200504,SM,Softbox manual Inv,,0,Social Care,SK1 3TS,Y
http://statistics.data.gov.uk/id/local-authority/00BU,Trafford Borough Council,04/05/2020,1901358135,446952,296.96,Creative Support Ltd,100160,,PHYS SUPP 18-64 LT,EXT DOM CARE SPOT CO,230845,,321014,SOCIAL CARE : Domiciliary Care,REDACTED,157000,Softbox manual Inv,20200504,20200504,SM,Softbox manual Inv,,0,Social Care,SK1 3TS,Y
http://statistics.data.gov.uk/id/local-authority/00BU,Trafford Borough Council,04/05/2020,1901358136,446958,27.41,Creative Support Ltd,100160,,MENT HLT 18-64 LT,EXT DOM CARE SPOT CO,230845,,321014,SOCIAL CARE : Domiciliary Care,REDACTED,157004,Softbox manual Inv,20200504,20200504,SM,Softbox manual Inv,,0,Social Care,SK1 3TS,Y
http://statistics.data.gov.uk/id/local-authority/00BU,Trafford Borough Council,04/05/2020,1901358136,446958,356.35,Creative Support Ltd,100160,,MENT HLT 18-64 LT,EXT DOM CARE SPOT CO,230845,,321014,SOCIAL CARE : Domiciliary Care,REDACTED,157004,Softbox manual Inv,20200504,20200504,SM,Softbox manual Inv,,0,Social Care,SK1 3TS,Y
http://statistics.data.gov.uk/id/local-authority/00BU,Trafford Borough Council,04/05/2020,1901358136,446958,25.13,Creative Support Ltd,100160,,MENT HLT 18-64 LT,EXT DOM CARE SPOT CO,230845,,321014,SOCIAL CARE : Domiciliary Care,REDACTED,157004,Softbox manual Inv,20200504,20200504,SM,Softbox manual Inv,,0,Social Care,SK1 3TS,Y
http://statistics.data.gov.uk/id/local-authority/00BU,Trafford Borough Council,04/05/2020,1901358136,446958,326.65,Creative Support Ltd,100160,,MENT HLT 18-64 LT,EXT DOM CARE SPOT CO,230845,,321014,SOCIAL CARE : Domiciliary Care,REDACTED,157004,Softbox manual Inv,20200504,20200504,SM,Softbox manual Inv,,0,Social Care,SK1 3TS,Y
http://statistics.data.gov.uk/id/local-authority/00BU,Trafford Borough Council,04/05/2020,1901358136,446958,45.69,Creative Support Ltd,100160,,MENT HLT 18-64 LT,EXT DOM CARE SPOT CO,230845,,321014,SOCIAL CARE : Domiciliary Care,REDACTED,157004,Softbox manual Inv,20200504,20200504,SM,Softbox manual Inv,,0,Social Care,SK1 3TS,Y
http://statistics.data.gov.uk/id/local-authority/00BU,Trafford Borough Council,04/05/2020,1901358136,446958,593.92,Creative Support Ltd,100160,,MENT HLT 18-64 LT,EXT DOM CARE SPOT CO,230845,,321014,SOCIAL CARE : Domiciliary Care,REDACTED,157004,Softbox manual Inv,20200504,20200504,SM,Softbox manual Inv,,0,Social Care,SK1 3TS,Y
http://statistics.data.gov.uk/id/local-authority/00BU,Trafford Borough Council,04/05/2020,1901358136,446958,18.28,Creative Support Ltd,100160,,MENT HLT 18-64 LT,EXT DOM CARE SPOT CO,230845,,321014,SOCIAL CARE : Domiciliary Care,REDACTED,157004,Softbox manual Inv,20200504,20200504,SM,Softbox manual Inv,,0,Social Care,SK1 3TS,Y
http://statistics.data.gov.uk/id/local-authority/00BU,Trafford Borough Council,04/05/2020,1901358136,446958,237.57,Creative Support Ltd,100160,,MENT HLT 18-64 LT,EXT DOM CARE SPOT CO,230845,,321014,SOCIAL CARE : Domiciliary Care,REDACTED,157004,Softbox manual Inv,20200504,20200504,SM,Softbox manual Inv,,0,Social Care,SK1 3TS,Y
http://statistics.data.gov.uk/id/local-authority/00BU,Trafford Borough Council,04/05/2020,1901358136,446958,18.28,Creative Support Ltd,100160,,MENT HLT 18-64 LT,EXT DOM CARE SPOT CO,230845,,321014,SOCIAL CARE : Domiciliary Care,REDACTED,157004,Softbox manual Inv,20200504,20200504,SM,Softbox manual Inv,,0,Social Care,SK1 3TS,Y
http://statistics.data.gov.uk/id/local-authority/00BU,Trafford Borough Council,04/05/2020,1901358136,446958,237.57,Creative Support Ltd,100160,,MENT HLT 18-64 LT,EXT DOM CARE SPOT CO,230845,,321014,SOCIAL CARE : Domiciliary Care,REDACTED,157004,Softbox manual Inv,20200504,20200504,SM,Softbox manual Inv,,0,Social Care,SK1 3TS,Y
http://statistics.data.gov.uk/id/local-authority/00BU,Trafford Borough Council,04/05/2020,1901358136,446958,29.7,Creative Support Ltd,100160,,MENT HLT 18-64 LT,EXT DOM CARE SPOT CO,230845,,321014,SOCIAL CARE : Domiciliary Care,REDACTED,157004,Softbox manual Inv,20200504,20200504,SM,Softbox manual Inv,,0,Social Care,SK1 3TS,Y
http://statistics.data.gov.uk/id/local-authority/00BU,Trafford Borough Council,04/05/2020,1901358136,446958,386.05,Creative Support Ltd,100160,,MENT HLT 18-64 LT,EXT DOM CARE SPOT CO,230845,,321014,SOCIAL CARE : Domiciliary Care,REDACTED,157004,Softbox manual Inv,20200504,20200504,SM,Softbox manual Inv,,0,Social Care,SK1 3TS,Y
http://statistics.data.gov.uk/id/local-authority/00BU,Trafford Borough Council,04/05/2020,1901358136,446958,20.56,Creative Support Ltd,100160,,MENT HLT 18-64 LT,EXT DOM CARE SPOT CO,230845,,321014,SOCIAL CARE : Domiciliary Care,REDACTED,157004,Softbox manual Inv,20200504,20200504,SM,Softbox manual Inv,,0,Social Care,SK1 3TS,Y
http://statistics.data.gov.uk/id/local-authority/00BU,Trafford Borough Council,04/05/2020,1901358136,446958,267.26,Creative Support Ltd,100160,,MENT HLT 18-64 LT,EXT DOM CARE SPOT CO,230845,,321014,SOCIAL CARE : Domiciliary Care,REDACTED,157004,Softbox manual Inv,20200504,20200504,SM,Softbox manual Inv,,0,Social Care,SK1 3TS,Y
http://statistics.data.gov.uk/id/local-authority/00BU,Trafford Borough Council,04/05/2020,1901358136,446958,31.98,Creative Support Ltd,100160,,MENT HLT 18-64 LT,EXT DOM CARE SPOT CO,230845,,321014,SOCIAL CARE : Domiciliary Care,REDACTED,157004,Softbox manual Inv,20200504,20200504,SM,Softbox manual Inv,,0,Social Care,SK1 3TS,Y
http://statistics.data.gov.uk/id/local-authority/00BU,Trafford Borough Council,04/05/2020,1901358136,446958,415.74,Creative Support Ltd,100160,,MENT HLT 18-64 LT,EXT DOM CARE SPOT CO,230845,,321014,SOCIAL CARE : Domiciliary Care,REDACTED,157004,Softbox manual Inv,20200504,20200504,SM,Softbox manual Inv,,0,Social Care,SK1 3TS,Y
http://statistics.data.gov.uk/id/local-authority/00BU,Trafford Borough Council,04/05/2020,1901358136,446958,18.28,Creative Support Ltd,100160,,MENT HLT 18-64 LT,EXT DOM CARE SPOT CO,230845,,321014,SOCIAL CARE : Domiciliary Care,REDACTED,157004,Softbox manual Inv,20200504,20200504,SM,Softbox manual Inv,,0,Social Care,SK1 3TS,Y
http://statistics.data.gov.uk/id/local-authority/00BU,Trafford Borough Council,04/05/2020,1901358136,446958,237.57,Creative Support Ltd,100160,,MENT HLT 18-64 LT,EXT DOM CARE SPOT CO,230845,,321014,SOCIAL CARE : Domiciliary Care,REDACTED,157004,Softbox manual Inv,20200504,20200504,SM,Softbox manual Inv,,0,Social Care,SK1 3TS,Y
http://statistics.data.gov.uk/id/local-authority/00BU,Trafford Borough Council,04/05/2020,1901358136,446958,18.28,Creative Support Ltd,100160,,MENT HLT 18-64 LT,EXT DOM CARE SPOT CO,230845,,321014,SOCIAL CARE : Domiciliary Care,REDACTED,157004,Softbox manual Inv,20200504,20200504,SM,Softbox manual Inv,,0,Social Care,SK1 3TS,Y
http://statistics.data.gov.uk/id/local-authority/00BU,Trafford Borough Council,04/05/2020,1901358136,446958,237.57,Creative Support Ltd,100160,,MENT HLT 18-64 LT,EXT DOM CARE SPOT CO,230845,,321014,SOCIAL CARE : Domiciliary Care,REDACTED,157004,Softbox manual Inv,20200504,20200504,SM,Softbox manual Inv,,0,Social Care,SK1 3TS,Y
http://statistics.data.gov.uk/id/local-authority/00BU,Trafford Borough Council,04/05/2020,1901358155,447023,412.44,Creative Support Ltd,100160,,LEARN DIS 18-64 LT,SUPP LIVING CONT,230530,,321014,SOCIAL CARE : Domiciliary Care,REDACTED,157003,Softbox manual Inv,20200504,20200504,SM,Softbox manual Inv,,0,Social Care,SK1 3TS,Y
http://statistics.data.gov.uk/id/local-authority/00BU,Trafford Borough Council,04/05/2020,1901358155,447023,5361.72,Creative Support Ltd,100160,,LEARN DIS 18-64 LT,SUPP LIVING CONT,230530,,321014,SOCIAL CARE : Domiciliary Care,REDACTED,157003,Softbox manual Inv,20200504,20200504,SM,Softbox manual Inv,,0,Social Care,SK1 3TS,Y
http://statistics.data.gov.uk/id/local-authority/00BU,Trafford Borough Council,04/05/2020,1901358155,447023,496.61,Creative Support Ltd,100160,,LEARN DIS 18-64 LT,SUPP LIVING CONT,230530,,321014,SOCIAL CARE : Domiciliary Care,REDACTED,157003,Softbox manual Inv,20200504,20200504,SM,Softbox manual Inv,,0,Social Care,SK1 3TS,Y
http://statistics.data.gov.uk/id/local-authority/00BU,Trafford Borough Council,04/05/2020,1901358155,447023,6455.95,Creative Support Ltd,100160,,LEARN DIS 18-64 LT,SUPP LIVING CONT,230530,,321014,SOCIAL CARE : Domiciliary Care,REDACTED,157003,Softbox manual Inv,20200504,20200504,SM,Softbox manual Inv,,0,Social Care,SK1 3TS,Y
http://statistics.data.gov.uk/id/local-authority/00BU,Trafford Borough Council,04/05/2020,1901358155,447023,465.22,Creative Support Ltd,100160,,Creative Support Blo,SUPP LIVING CONT,230530,,321014,SOCIAL CARE : Domiciliary Care,REDACTED,251390,Softbox manual Inv,20200504,20200504,SM,Softbox manual Inv,,0,Social Care,SK1 3TS,Y
http://statistics.data.gov.uk/id/local-authority/00BU,Trafford Borough Council,04/05/2020,1901358155,447023,485.51,Creative Support Ltd,100160,,Creative Support Blo,SUPP LIVING CONT,230530,,321014,SOCIAL CARE : Domiciliary Care,REDACTED,251390,Softbox manual Inv,20200504,20200504,SM,Softbox manual Inv,,0,Social Care,SK1 3TS,Y
http://statistics.data.gov.uk/id/local-authority/00BU,Trafford Borough Council,04/05/2020,1901358155,447023,6047.9,Creative Support Ltd,100160,,Creative Support Blo,SUPP LIVING CONT,230530,,321014,SOCIAL CARE : Domiciliary Care,REDACTED,251390,Softbox manual Inv,20200504,20200504,SM,Softbox manual Inv,,0,Social Care,SK1 3TS,Y
http://statistics.data.gov.uk/id/local-authority/00BU,Trafford Borough Council,04/05/2020,1901358155,447023,6311.61,Creative Support Ltd,100160,,Creative Support Blo,SUPP LIVING CONT,230530,,321014,SOCIAL CARE : Domiciliary Care,REDACTED,251390,Softbox manual Inv,20200504,20200504,SM,Softbox manual Inv,,0,Social Care,SK1 3TS,Y
http://statistics.data.gov.uk/id/local-authority/00BU,Trafford Borough Council,04/05/2020,1901358155,447023,-465.22,Creative Support Ltd,100160,,Creative Support Blo,SUPP LIVING CONT,230530,,321014,SOCIAL CARE : Domiciliary Care,REDACTED,251390,Softbox manual Inv,20200504,20200504,SM,Softbox manual Inv,,0,Social Care,SK1 3TS,Y
http://statistics.data.gov.uk/id/local-authority/00BU,Trafford Borough Council,04/05/2020,1901358155,447023,-6047.9,Creative Support Ltd,100160,,Creative Support Blo,SUPP LIVING CONT,230530,,321014,SOCIAL CARE : Domiciliary Care,REDACTED,251390,Softbox manual Inv,20200504,20200504,SM,Softbox manual Inv,,0,Social Care,SK1 3TS,Y
http://statistics.data.gov.uk/id/local-authority/00BU,Trafford Borough Council,04/05/2020,1901358167,447050,174.48,Creative Support Ltd,100160,,LEARN DIS 65-74 LT,SUPP LIVING CONT,230530,,321014,SOCIAL CARE : Domiciliary Care,REDACTED,157013,Softbox manual Inv,20200504,20200504,SM,Softbox manual Inv,,0,Social Care,SK1 3TS,Y
http://statistics.data.gov.uk/id/local-authority/00BU,Trafford Borough Council,04/05/2020,1901358167,447050,426.75,Creative Support Ltd,100160,,LEARN DIS 65-74 LT,SUPP LIVING CONT,230530,,321014,SOCIAL CARE : Domiciliary Care,REDACTED,157013,Softbox manual Inv,20200504,20200504,SM,Softbox manual Inv,,0,Social Care,SK1 3TS,Y
http://statistics.data.gov.uk/id/local-authority/00BU,Trafford Borough Council,04/05/2020,1901358167,447050,2268.24,Creative Support Ltd,100160,,LEARN DIS 65-74 LT,SUPP LIVING CONT,230530,,321014,SOCIAL CARE : Domiciliary Care,REDACTED,157013,Softbox manual Inv,20200504,20200504,SM,Softbox manual Inv,,0,Social Care,SK1 3TS,Y
http://statistics.data.gov.uk/id/local-authority/00BU,Trafford Borough Council,04/05/2020,1901358167,447050,5547.73,Creative Support Ltd,100160,,LEARN DIS 65-74 LT,SUPP LIVING CONT,230530,,321014,SOCIAL CARE : Domiciliary Care,REDACTED,157013,Softbox manual Inv,20200504,20200504,SM,Softbox manual Inv,,0,Social Care,SK1 3TS,Y
http://statistics.data.gov.uk/id/local-authority/00BU,Trafford Borough Council,04/05/2020,1901358167,447050,12.46,Creative Support Ltd,100160,,LEARN DIS 18-64 LT,SUPP LIVING CONT,230530,,321014,SOCIAL CARE : Domiciliary Care,REDACTED,157003,Softbox manual Inv,20200504,20200504,SM,Softbox manual Inv,,0,Social Care,SK1 3TS,Y
http://statistics.data.gov.uk/id/local-authority/00BU,Trafford Borough Council,04/05/2020,1901358167,447050,162.02,Creative Support Ltd,100160,,LEARN DIS 18-64 LT,SUPP LIVING CONT,230530,,321014,SOCIAL CARE : Domiciliary Care,REDACTED,157003,Softbox manual Inv,20200504,20200504,SM,Softbox manual Inv,,0,Social Care,SK1 3TS,Y
http://statistics.data.gov.uk/id/local-authority/00BU,Trafford Borough Council,04/05/2020,1901358167,447050,426.75,Creative Support Ltd,100160,,LEARN DIS 18-64 LT,SUPP LIVING CONT,230530,,321014,SOCIAL CARE : Domiciliary Care,REDACTED,157003,Softbox manual Inv,20200504,20200504,SM,Softbox manual Inv,,0,Social Care,SK1 3TS,Y
http://statistics.data.gov.uk/id/local-authority/00BU,Trafford Borough Council,04/05/2020,1901358167,447050,5547.73,Creative Support Ltd,100160,,LEARN DIS 18-64 LT,SUPP LIVING CONT,230530,,321014,SOCIAL CARE : Domiciliary Care,REDACTED,157003,Softbox manual Inv,20200504,20200504,SM,Softbox manual Inv,,0,Social Care,SK1 3TS,Y
http://statistics.data.gov.uk/id/local-authority/00BU,Trafford Borough Council,04/05/2020,1901358196,427042405,13207.7,Creative Support Ltd,100160,,PHYS SUPP 85+ LT,EXT DOM CARE SPOT CO,230845,,321014,SOCIAL CARE : Domiciliary Care,4wkAdv2704/2405,157030,Vendor invoice,20200424,20200424,VI,Vendor invoice,,0,Social Care,SK1 3TS,Y
http://statistics.data.gov.uk/id/local-authority/00BU,Trafford Borough Council,04/05/2020,1901358255,19,1677.5,Creative Support Ltd,100160,,Council Covid 19 mon,EXT DOM CARE SPOT CO,230845,,321014,SOCIAL CARE : Domiciliary Care,HC Add Covid19,157041,Vendor invoice,20200504,20200504,VI,Vendor invoice,,0,Social Care,SK1 3TS,Y
http://statistics.data.gov.uk/id/local-authority/00BU,Trafford Borough Council,04/05/2020,1901358255,19,122,Creative Support Ltd,100160,,Council Covid 19 mon,EXT DOM CARE SPOT CO,230845,,321014,SOCIAL CARE : Domiciliary Care,HC Add Covid19,157041,Vendor invoice,20200504,20200504,VI,Vendor invoice,,0,Social Care,SK1 3TS,Y
http://statistics.data.gov.uk/id/local-authority/00BU,Trafford Borough Council,04/05/2020,1901358475,19,27450,Creative Support Ltd,100160,,Council Covid 19 mon,SUPP LIVING CONT,230530,,321014,SOCIAL CARE : Domiciliary Care,SL Add Covid19,157041,Vendor invoice,20200504,20200504,VI,Vendor invoice,,0,Social Care,SK1 3TS,Y
http://statistics.data.gov.uk/id/local-authority/00BU,Trafford Borough Council,06/05/2020,1901358893,2,134.64,Creative Support Ltd,100160,,LEARN DIS 18-64 LT,SUPP LIVING CONT,230530,,321014,SOCIAL CARE : Domiciliary Care,REDACTED,157003,Softbox manual Inv,20200506,20200506,SM,Softbox manual Inv,,0,Social Care,SK1 3TS,Y
http://statistics.data.gov.uk/id/local-authority/00BU,Trafford Borough Council,06/05/2020,1901358893,2,740.54,Creative Support Ltd,100160,,LEARN DIS 18-64 LT,SUPP LIVING CONT,230530,,321014,SOCIAL CARE : Domiciliary Care,REDACTED,157003,Softbox manual Inv,20200506,20200506,SM,Softbox manual Inv,,0,Social Care,SK1 3TS,Y
http://statistics.data.gov.uk/id/local-authority/00BU,Trafford Borough Council,06/05/2020,1901358914,0000418621,743.66,Creative Support Ltd,100160,,LEARN DIS 18-64 LT,SUPP LIVING CONT,230530,,321014,SOCIAL CARE : Domiciliary Care,REDACTED,157003,Softbox manual Inv,20200506,20200506,SM,Softbox manual Inv,,0,Social Care,SK1 3TS,Y
http://statistics.data.gov.uk/id/local-authority/00BU,Trafford Borough Council,06/05/2020,1901358914,0000418621,917.18,Creative Support Ltd,100160,,LEARN DIS 18-64 LT,SUPP LIVING CONT,230530,,321014,SOCIAL CARE : Domiciliary Care,REDACTED,157003,Softbox manual Inv,20200506,20200506,SM,Softbox manual Inv,,0,Social Care,SK1 3TS,Y
http://statistics.data.gov.uk/id/local-authority/00BU,Trafford Borough Council,06/05/2020,1901358914,0000418621,2714.35,Creative Support Ltd,100160,,LEARN DIS 18-64 LT,SUPP LIVING CONT,230530,,321014,SOCIAL CARE : Domiciliary Care,REDACTED,157003,Softbox manual Inv,20200506,20200506,SM,Softbox manual Inv,,0,Social Care,SK1 3TS,Y
http://statistics.data.gov.uk/id/local-authority/00BU,Trafford Borough Council,06/05/2020,1901358914,0000418621,2714.35,Creative Support Ltd,100160,,LEARN DIS 18-64 LT,SUPP LIVING CONT,230530,,321014,SOCIAL CARE : Domiciliary Care,REDACTED,157003,Softbox manual Inv,20200506,20200506,SM,Softbox manual Inv,,0,Social Care,SK1 3TS,Y
http://statistics.data.gov.uk/id/local-authority/00BU,Trafford Borough Council,06/05/2020,1901358914,0000418621,-2032.66,Creative Support Ltd,100160,,LEARN DIS 18-64 LT,SUPP LIVING CONT,230530,,321014,SOCIAL CARE : Domiciliary Care,REDACTED,157003,Softbox manual Inv,20200506,20200506,SM,Softbox manual Inv,,0,Social Care,SK1 3TS,Y
http://statistics.data.gov.uk/id/local-authority/00BU,Trafford Borough Council,06/05/2020,1901358914,0000418621,-2714.35,Creative Support Ltd,100160,,LEARN DIS 18-64 LT,SUPP LIVING CONT,230530,,321014,SOCIAL CARE : Domiciliary Care,REDACTED,157003,Softbox manual Inv,20200506,20200506,SM,Softbox manual Inv,,0,Social Care,SK1 3TS,Y
http://statistics.data.gov.uk/id/local-authority/00BU,Trafford Borough Council,06/05/2020,1901358914,0000418621,849.24,Creative Support Ltd,100160,,LEARN DIS 18-64 LT,SUPP LIVING CONT,230530,,321014,SOCIAL CARE : Domiciliary Care,REDACTED,157003,Softbox manual Inv,20200506,20200506,SM,Softbox manual Inv,,0,Social Care,SK1 3TS,Y
http://statistics.data.gov.uk/id/local-authority/00BU,Trafford Borough Council,06/05/2020,1901358914,0000418621,-849.24,Creative Support Ltd,100160,,IAS Blocks,SUPP LIVING CONT,230530,,321014,SOCIAL CARE : Domiciliary Care,REDACTED,251389,Softbox manual Inv,20200506,20200506,SM,Softbox manual Inv,,0,Social Care,SK1 3TS,Y
http://statistics.data.gov.uk/id/local-authority/00BU,Trafford Borough Council,06/05/2020,1901358915,418622,1301.4,Creative Support Ltd,100160,,LEARN DIS 18-64 LT,SUPP LIVING CONT,230530,,321014,SOCIAL CARE : Domiciliary Care,REDACTED,157003,Softbox manual Inv,20200506,20200506,SM,Softbox manual Inv,,0,Social Care,SK1 3TS,Y
http://statistics.data.gov.uk/id/local-authority/00BU,Trafford Borough Council,06/05/2020,1901358915,418622,1821.96,Creative Support Ltd,100160,,LEARN DIS 18-64 LT,SUPP LIVING CONT,230530,,321014,SOCIAL CARE : Domiciliary Care,REDACTED,157003,Softbox manual Inv,20200506,20200506,SM,Softbox manual Inv,,0,Social Care,SK1 3TS,Y
http://statistics.data.gov.uk/id/local-authority/00BU,Trafford Borough Council,06/05/2020,1901358916,0000423183184,753.99,Creative Support Ltd,100160,,LEARN DIS 18-64 LT,SUPP LIVING CONT,230530,,321014,SOCIAL CARE : Domiciliary Care,REDACTED,157003,Softbox manual Inv,20200506,20200506,SM,Softbox manual Inv,,0,Social Care,SK1 3TS,Y
http://statistics.data.gov.uk/id/local-authority/00BU,Trafford Borough Council,06/05/2020,1901358916,0000423183184,1132.32,Creative Support Ltd,100160,,LEARN DIS 18-64 LT,SUPP LIVING CONT,230530,,321014,SOCIAL CARE : Domiciliary Care,REDACTED,157003,Softbox manual Inv,20200506,20200506,SM,Softbox manual Inv,,0,Social Care,SK1 3TS,Y
http://statistics.data.gov.uk/id/local-authority/00BU,Trafford Borough Council,06/05/2020,1901358916,0000423183184,1735.2,Creative Support Ltd,100160,,LEARN DIS 18-64 LT,SUPP LIVING CONT,230530,,321014,SOCIAL CARE : Domiciliary Care,REDACTED,157003,Softbox manual Inv,20200506,20200506,SM,Softbox manual Inv,,0,Social Care,SK1 3TS,Y
http://statistics.data.gov.uk/id/local-authority/00BU,Trafford Borough Council,06/05/2020,1901358916,0000423183184,2140.08,Creative Support Ltd,100160,,LEARN DIS 18-64 LT,SUPP LIVING CONT,230530,,321014,SOCIAL CARE : Domiciliary Care,REDACTED,157003,Softbox manual Inv,20200506,20200506,SM,Softbox manual Inv,,0,Social Care,SK1 3TS,Y
http://statistics.data.gov.uk/id/local-authority/00BU,Trafford Borough Council,06/05/2020,1901358916,0000423183184,4222.32,Creative Support Ltd,100160,,LEARN DIS 18-64 LT,SUPP LIVING CONT,230530,,321014,SOCIAL CARE : Domiciliary Care,REDACTED,157003,Softbox manual Inv,20200506,20200506,SM,Softbox manual Inv,,0,Social Care,SK1 3TS,Y
http://statistics.data.gov.uk/id/local-authority/00BU,Trafford Borough Council,06/05/2020,1901358916,0000423183184,-4222.32,Creative Support Ltd,100160,,LEARN DIS 18-64 LT,SUPP LIVING CONT,230530,,321014,SOCIAL CARE : Domiciliary Care,REDACTED,157003,Softbox manual Inv,20200506,20200506,SM,Softbox manual Inv,,0,Social Care,SK1 3TS,Y
http://statistics.data.gov.uk/id/local-authority/00BU,Trafford Borough Council,06/05/2020,1901358916,0000423183184,1132.32,Creative Support Ltd,100160,,LEARN DIS 18-64 LT,SUPP LIVING CONT,230530,,321014,SOCIAL CARE : Domiciliary Care,REDACTED,157003,Softbox manual Inv,20200506,20200506,SM,Softbox manual Inv,,0,Social Care,SK1 3TS,Y
http://statistics.data.gov.uk/id/local-authority/00BU,Trafford Borough Council,06/05/2020,1901358916,0000423183184,1735.2,Creative Support Ltd,100160,,LEARN DIS 18-64 LT,SUPP LIVING CONT,230530,,321014,SOCIAL CARE : Domiciliary Care,REDACTED,157003,Softbox manual Inv,20200506,20200506,SM,Softbox manual Inv,,0,Social Care,SK1 3TS,Y
http://statistics.data.gov.uk/id/local-authority/00BU,Trafford Borough Council,06/05/2020,1901358916,0000423183184,2429.28,Creative Support Ltd,100160,,LEARN DIS 18-64 LT,SUPP LIVING CONT,230530,,321014,SOCIAL CARE : Domiciliary Care,REDACTED,157003,Softbox manual Inv,20200506,20200506,SM,Softbox manual Inv,,0,Social Care,SK1 3TS,Y
http://statistics.data.gov.uk/id/local-authority/00BU,Trafford Borough Council,06/05/2020,1901358916,0000423183184,1132.32,Creative Support Ltd,100160,,IAS Blocks,SUPP LIVING CONT,230530,,321014,SOCIAL CARE : Domiciliary Care,REDACTED,251389,Softbox manual Inv,20200506,20200506,SM,Softbox manual Inv,,0,Social Care,SK1 3TS,Y
http://statistics.data.gov.uk/id/local-authority/00BU,Trafford Borough Council,06/05/2020,1901358916,0000423183184,-1132.32,Creative Support Ltd,100160,,IAS Blocks,SUPP LIVING CONT,230530,,321014,SOCIAL CARE : Domiciliary Care,REDACTED,251389,Softbox manual Inv,20200506,20200506,SM,Softbox manual Inv,,0,Social Care,SK1 3TS,Y
http://statistics.data.gov.uk/id/local-authority/00BU,Trafford Borough Council,06/05/2020,1901358917,0000428492493,1132.32,Creative Support Ltd,100160,,LEARN DIS 18-64 LT,SUPP LIVING CONT,230530,,321014,SOCIAL CARE : Domiciliary Care,REDACTED,157003,Softbox manual Inv,20200506,20200506,SM,Softbox manual Inv,,0,Social Care,SK1 3TS,Y
http://statistics.data.gov.uk/id/local-authority/00BU,Trafford Borough Council,06/05/2020,1901358917,0000428492493,1735.2,Creative Support Ltd,100160,,LEARN DIS 18-64 LT,SUPP LIVING CONT,230530,,321014,SOCIAL CARE : Domiciliary Care,REDACTED,157003,Softbox manual Inv,20200506,20200506,SM,Softbox manual Inv,,0,Social Care,SK1 3TS,Y
http://statistics.data.gov.uk/id/local-authority/00BU,Trafford Borough Council,06/05/2020,1901358917,0000428492493,2140.08,Creative Support Ltd,100160,,LEARN DIS 18-64 LT,SUPP LIVING CONT,230530,,321014,SOCIAL CARE : Domiciliary Care,REDACTED,157003,Softbox manual Inv,20200506,20200506,SM,Softbox manual Inv,,0,Social Care,SK1 3TS,Y
http://statistics.data.gov.uk/id/local-authority/00BU,Trafford Borough Council,06/05/2020,1901358917,0000428492493,4222.32,Creative Support Ltd,100160,,LEARN DIS 18-64 LT,SUPP LIVING CONT,230530,,321014,SOCIAL CARE : Domiciliary Care,REDACTED,157003,Softbox manual Inv,20200506,20200506,SM,Softbox manual Inv,,0,Social Care,SK1 3TS,Y
http://statistics.data.gov.uk/id/local-authority/00BU,Trafford Borough Council,06/05/2020,1901358917,0000428492493,-4222.32,Creative Support Ltd,100160,,LEARN DIS 18-64 LT,SUPP LIVING CONT,230530,,321014,SOCIAL CARE : Domiciliary Care,REDACTED,157003,Softbox manual Inv,20200506,20200506,SM,Softbox manual Inv,,0,Social Care,SK1 3TS,Y
http://statistics.data.gov.uk/id/local-authority/00BU,Trafford Borough Council,06/05/2020,1901358917,0000428492493,1132.32,Creative Support Ltd,100160,,LEARN DIS 18-64 LT,SUPP LIVING CONT,230530,,321014,SOCIAL CARE : Domiciliary Care,REDACTED,157003,Softbox manual Inv,20200506,20200506,SM,Softbox manual Inv,,0,Social Care,SK1 3TS,Y
http://statistics.data.gov.uk/id/local-authority/00BU,Trafford Borough Council,06/05/2020,1901358917,0000428492493,1735.2,Creative Support Ltd,100160,,LEARN DIS 18-64 LT,SUPP LIVING CONT,230530,,321014,SOCIAL CARE : Domiciliary Care,REDACTED,157003,Softbox manual Inv,20200506,20200506,SM,Softbox manual Inv,,0,Social Care,SK1 3TS,Y
http://statistics.data.gov.uk/id/local-authority/00BU,Trafford Borough Council,06/05/2020,1901358917,0000428492493,2429.28,Creative Support Ltd,100160,,LEARN DIS 18-64 LT,SUPP LIVING CONT,230530,,321014,SOCIAL CARE : Domiciliary Care,REDACTED,157003,Softbox manual Inv,20200506,20200506,SM,Softbox manual Inv,,0,Social Care,SK1 3TS,Y
http://statistics.data.gov.uk/id/local-authority/00BU,Trafford Borough Council,06/05/2020,1901358917,0000428492493,1132.32,Creative Support Ltd,100160,,IAS Blocks,SUPP LIVING CONT,230530,,321014,SOCIAL CARE : Domiciliary Care,REDACTED,251389,Softbox manual Inv,20200506,20200506,SM,Softbox manual Inv,,0,Social Care,SK1 3TS,Y
http://statistics.data.gov.uk/id/local-authority/00BU,Trafford Borough Council,06/05/2020,1901358917,0000428492493,-1132.32,Creative Support Ltd,100160,,IAS Blocks,SUPP LIVING CONT,230530,,321014,SOCIAL CARE : Domiciliary Care,REDACTED,251389,Softbox manual Inv,20200506,20200506,SM,Softbox manual Inv,,0,Social Care,SK1 3TS,Y
http://statistics.data.gov.uk/id/local-authority/00BU,Trafford Borough Council,06/05/2020,1901358918,000043409596,1132.32,Creative Support Ltd,100160,,LEARN DIS 18-64 LT,SUPP LIVING CONT,230530,,321014,SOCIAL CARE : Domiciliary Care,REDACTED,157003,Softbox manual Inv,20200506,20200506,SM,Softbox manual Inv,,0,Social Care,SK1 3TS,Y
http://statistics.data.gov.uk/id/local-authority/00BU,Trafford Borough Council,06/05/2020,1901358918,000043409596,1735.2,Creative Support Ltd,100160,,LEARN DIS 18-64 LT,SUPP LIVING CONT,230530,,321014,SOCIAL CARE : Domiciliary Care,REDACTED,157003,Softbox manual Inv,20200506,20200506,SM,Softbox manual Inv,,0,Social Care,SK1 3TS,Y
http://statistics.data.gov.uk/id/local-authority/00BU,Trafford Borough Council,06/05/2020,1901358918,000043409596,2140.08,Creative Support Ltd,100160,,LEARN DIS 18-64 LT,SUPP LIVING CONT,230530,,321014,SOCIAL CARE : Domiciliary Care,REDACTED,157003,Softbox manual Inv,20200506,20200506,SM,Softbox manual Inv,,0,Social Care,SK1 3TS,Y
http://statistics.data.gov.uk/id/local-authority/00BU,Trafford Borough Council,06/05/2020,1901358918,000043409596,4222.32,Creative Support Ltd,100160,,LEARN DIS 18-64 LT,SUPP LIVING CONT,230530,,321014,SOCIAL CARE : Domiciliary Care,REDACTED,157003,Softbox manual Inv,20200506,20200506,SM,Softbox manual Inv,,0,Social Care,SK1 3TS,Y
http://statistics.data.gov.uk/id/local-authority/00BU,Trafford Borough Council,06/05/2020,1901358918,000043409596,-4222.32,Creative Support Ltd,100160,,LEARN DIS 18-64 LT,SUPP LIVING CONT,230530,,321014,SOCIAL CARE : Domiciliary Care,REDACTED,157003,Softbox manual Inv,20200506,20200506,SM,Softbox manual Inv,,0,Social Care,SK1 3TS,Y
http://statistics.data.gov.uk/id/local-authority/00BU,Trafford Borough Council,06/05/2020,1901358918,000043409596,1132.32,Creative Support Ltd,100160,,LEARN DIS 18-64 LT,SUPP LIVING CONT,230530,,321014,SOCIAL CARE : Domiciliary Care,REDACTED,157003,Softbox manual Inv,20200506,20200506,SM,Softbox manual Inv,,0,Social Care,SK1 3TS,Y
http://statistics.data.gov.uk/id/local-authority/00BU,Trafford Borough Council,06/05/2020,1901358918,000043409596,1735.2,Creative Support Ltd,100160,,LEARN DIS 18-64 LT,SUPP LIVING CONT,230530,,321014,SOCIAL CARE : Domiciliary Care,REDACTED,157003,Softbox manual Inv,20200506,20200506,SM,Softbox manual Inv,,0,Social Care,SK1 3TS,Y
http://statistics.data.gov.uk/id/local-authority/00BU,Trafford Borough Council,06/05/2020,1901358918,000043409596,2429.28,Creative Support Ltd,100160,,LEARN DIS 18-64 LT,SUPP LIVING CONT,230530,,321014,SOCIAL CARE : Domiciliary Care,REDACTED,157003,Softbox manual Inv,20200506,20200506,SM,Softbox manual Inv,,0,Social Care,SK1 3TS,Y
http://statistics.data.gov.uk/id/local-authority/00BU,Trafford Borough Council,06/05/2020,1901358918,000043409596,1132.32,Creative Support Ltd,100160,,IAS Blocks,SUPP LIVING CONT,230530,,321014,SOCIAL CARE : Domiciliary Care,REDACTED,251389,Softbox manual Inv,20200506,20200506,SM,Softbox manual Inv,,0,Social Care,SK1 3TS,Y
http://statistics.data.gov.uk/id/local-authority/00BU,Trafford Borough Council,06/05/2020,1901358918,000043409596,-1132.32,Creative Support Ltd,100160,,IAS Blocks,SUPP LIVING CONT,230530,,321014,SOCIAL CARE : Domiciliary Care,REDACTED,251389,Softbox manual Inv,20200506,20200506,SM,Softbox manual Inv,,0,Social Care,SK1 3TS,Y
http://statistics.data.gov.uk/id/local-authority/00BU,Trafford Borough Council,06/05/2020,1901358919,0000440831830,1132.32,Creative Support Ltd,100160,,LEARN DIS 18-64 LT,SUPP LIVING CONT,230530,,321014,SOCIAL CARE : Domiciliary Care,REDACTED,157003,Softbox manual Inv,20200506,20200506,SM,Softbox manual Inv,,0,Social Care,SK1 3TS,Y
http://statistics.data.gov.uk/id/local-authority/00BU,Trafford Borough Council,06/05/2020,1901358919,0000440831830,1735.2,Creative Support Ltd,100160,,LEARN DIS 18-64 LT,SUPP LIVING CONT,230530,,321014,SOCIAL CARE : Domiciliary Care,REDACTED,157003,Softbox manual Inv,20200506,20200506,SM,Softbox manual Inv,,0,Social Care,SK1 3TS,Y
http://statistics.data.gov.uk/id/local-authority/00BU,Trafford Borough Council,06/05/2020,1901358919,0000440831830,2140.08,Creative Support Ltd,100160,,LEARN DIS 18-64 LT,SUPP LIVING CONT,230530,,321014,SOCIAL CARE : Domiciliary Care,REDACTED,157003,Softbox manual Inv,20200506,20200506,SM,Softbox manual Inv,,0,Social Care,SK1 3TS,Y
http://statistics.data.gov.uk/id/local-authority/00BU,Trafford Borough Council,06/05/2020,1901358919,0000440831830,4222.32,Creative Support Ltd,100160,,LEARN DIS 18-64 LT,SUPP LIVING CONT,230530,,321014,SOCIAL CARE : Domiciliary Care,REDACTED,157003,Softbox manual Inv,20200506,20200506,SM,Softbox manual Inv,,0,Social Care,SK1 3TS,Y
http://statistics.data.gov.uk/id/local-authority/00BU,Trafford Borough Council,06/05/2020,1901358919,0000440831830,-4222.32,Creative Support Ltd,100160,,LEARN DIS 18-64 LT,SUPP LIVING CONT,230530,,321014,SOCIAL CARE : Domiciliary Care,REDACTED,157003,Softbox manual Inv,20200506,20200506,SM,Softbox manual Inv,,0,Social Care,SK1 3TS,Y
http://statistics.data.gov.uk/id/local-authority/00BU,Trafford Borough Council,06/05/2020,1901358919,0000440831830,1132.32,Creative Support Ltd,100160,,LEARN DIS 18-64 LT,SUPP LIVING CONT,230530,,321014,SOCIAL CARE : Domiciliary Care,REDACTED,157003,Softbox manual Inv,20200506,20200506,SM,Softbox manual Inv,,0,Social Care,SK1 3TS,Y
http://statistics.data.gov.uk/id/local-authority/00BU,Trafford Borough Council,06/05/2020,1901358919,0000440831830,1735.2,Creative Support Ltd,100160,,LEARN DIS 18-64 LT,SUPP LIVING CONT,230530,,321014,SOCIAL CARE : Domiciliary Care,REDACTED,157003,Softbox manual Inv,20200506,20200506,SM,Softbox manual Inv,,0,Social Care,SK1 3TS,Y
http://statistics.data.gov.uk/id/local-authority/00BU,Trafford Borough Council,06/05/2020,1901358919,0000440831830,2429.28,Creative Support Ltd,100160,,LEARN DIS 18-64 LT,SUPP LIVING CONT,230530,,321014,SOCIAL CARE : Domiciliary Care,REDACTED,157003,Softbox manual Inv,20200506,20200506,SM,Softbox manual Inv,,0,Social Care,SK1 3TS,Y
http://statistics.data.gov.uk/id/local-authority/00BU,Trafford Borough Council,06/05/2020,1901358919,0000440831830,1132.32,Creative Support Ltd,100160,,IAS Blocks,SUPP LIVING CONT,230530,,321014,SOCIAL CARE : Domiciliary Care,REDACTED,251389,Softbox manual Inv,20200506,20200506,SM,Softbox manual Inv,,0,Social Care,SK1 3TS,Y
http://statistics.data.gov.uk/id/local-authority/00BU,Trafford Borough Council,06/05/2020,1901358919,0000440831830,-1132.32,Creative Support Ltd,100160,,IAS Blocks,SUPP LIVING CONT,230530,,321014,SOCIAL CARE : Domiciliary Care,REDACTED,251389,Softbox manual Inv,20200506,20200506,SM,Softbox manual Inv,,0,Social Care,SK1 3TS,Y
http://statistics.data.gov.uk/id/local-authority/00BU,Trafford Borough Council,06/05/2020,1901358920,000044381011,1132.32,Creative Support Ltd,100160,,LEARN DIS 18-64 LT,SUPP LIVING CONT,230530,,321014,SOCIAL CARE : Domiciliary Care,REDACTED,157003,Softbox manual Inv,20200506,20200506,SM,Softbox manual Inv,,0,Social Care,SK1 3TS,Y
http://statistics.data.gov.uk/id/local-authority/00BU,Trafford Borough Council,06/05/2020,1901358920,000044381011,1735.2,Creative Support Ltd,100160,,LEARN DIS 18-64 LT,SUPP LIVING CONT,230530,,321014,SOCIAL CARE : Domiciliary Care,REDACTED,157003,Softbox manual Inv,20200506,20200506,SM,Softbox manual Inv,,0,Social Care,SK1 3TS,Y
http://statistics.data.gov.uk/id/local-authority/00BU,Trafford Borough Council,06/05/2020,1901358920,000044381011,2140.08,Creative Support Ltd,100160,,LEARN DIS 18-64 LT,SUPP LIVING CONT,230530,,321014,SOCIAL CARE : Domiciliary Care,REDACTED,157003,Softbox manual Inv,20200506,20200506,SM,Softbox manual Inv,,0,Social Care,SK1 3TS,Y
http://statistics.data.gov.uk/id/local-authority/00BU,Trafford Borough Council,06/05/2020,1901358920,000044381011,4222.32,Creative Support Ltd,100160,,LEARN DIS 18-64 LT,SUPP LIVING CONT,230530,,321014,SOCIAL CARE : Domiciliary Care,REDACTED,157003,Softbox manual Inv,20200506,20200506,SM,Softbox manual Inv,,0,Social Care,SK1 3TS,Y
http://statistics.data.gov.uk/id/local-authority/00BU,Trafford Borough Council,06/05/2020,1901358920,000044381011,-4222.32,Creative Support Ltd,100160,,LEARN DIS 18-64 LT,SUPP LIVING CONT,230530,,321014,SOCIAL CARE : Domiciliary Care,REDACTED,157003,Softbox manual Inv,20200506,20200506,SM,Softbox manual Inv,,0,Social Care,SK1 3TS,Y
http://statistics.data.gov.uk/id/local-authority/00BU,Trafford Borough Council,06/05/2020,1901358920,000044381011,1132.32,Creative Support Ltd,100160,,LEARN DIS 18-64 LT,SUPP LIVING CONT,230530,,321014,SOCIAL CARE : Domiciliary Care,REDACTED,157003,Softbox manual Inv,20200506,20200506,SM,Softbox manual Inv,,0,Social Care,SK1 3TS,Y
http://statistics.data.gov.uk/id/local-authority/00BU,Trafford Borough Council,06/05/2020,1901358920,000044381011,1735.2,Creative Support Ltd,100160,,LEARN DIS 18-64 LT,SUPP LIVING CONT,230530,,321014,SOCIAL CARE : Domiciliary Care,REDACTED,157003,Softbox manual Inv,20200506,20200506,SM,Softbox manual Inv,,0,Social Care,SK1 3TS,Y
http://statistics.data.gov.uk/id/local-authority/00BU,Trafford Borough Council,06/05/2020,1901358920,000044381011,2429.28,Creative Support Ltd,100160,,LEARN DIS 18-64 LT,SUPP LIVING CONT,230530,,321014,SOCIAL CARE : Domiciliary Care,REDACTED,157003,Softbox manual Inv,20200506,20200506,SM,Softbox manual Inv,,0,Social Care,SK1 3TS,Y
http://statistics.data.gov.uk/id/local-authority/00BU,Trafford Borough Council,06/05/2020,1901358920,000044381011,1132.32,Creative Support Ltd,100160,,IAS Blocks,SUPP LIVING CONT,230530,,321014,SOCIAL CARE : Domiciliary Care,REDACTED,251389,Softbox manual Inv,20200506,20200506,SM,Softbox manual Inv,,0,Social Care,SK1 3TS,Y
http://statistics.data.gov.uk/id/local-authority/00BU,Trafford Borough Council,06/05/2020,1901358920,000044381011,-1132.32,Creative Support Ltd,100160,,IAS Blocks,SUPP LIVING CONT,230530,,321014,SOCIAL CARE : Domiciliary Care,REDACTED,251389,Softbox manual Inv,20200506,20200506,SM,Softbox manual Inv,,0,Social Care,SK1 3TS,Y
http://statistics.data.gov.uk/id/local-authority/00BU,Trafford Borough Council,06/05/2020,1901358921,000044697677,84.41,Creative Support Ltd,100160,,LEARN DIS 18-64 LT,SUPP LIVING CONT,230530,,321014,SOCIAL CARE : Domiciliary Care,REDACTED,157003,Softbox manual Inv,20200506,20200506,SM,Softbox manual Inv,,0,Social Care,SK1 3TS,Y
http://statistics.data.gov.uk/id/local-authority/00BU,Trafford Borough Council,06/05/2020,1901358921,000044697677,129.35,Creative Support Ltd,100160,,LEARN DIS 18-64 LT,SUPP LIVING CONT,230530,,321014,SOCIAL CARE : Domiciliary Care,REDACTED,157003,Softbox manual Inv,20200506,20200506,SM,Softbox manual Inv,,0,Social Care,SK1 3TS,Y
http://statistics.data.gov.uk/id/local-authority/00BU,Trafford Borough Council,06/05/2020,1901358921,000044697677,159.52,Creative Support Ltd,100160,,LEARN DIS 18-64 LT,SUPP LIVING CONT,230530,,321014,SOCIAL CARE : Domiciliary Care,REDACTED,157003,Softbox manual Inv,20200506,20200506,SM,Softbox manual Inv,,0,Social Care,SK1 3TS,Y
http://statistics.data.gov.uk/id/local-authority/00BU,Trafford Borough Council,06/05/2020,1901358921,000044697677,1097.27,Creative Support Ltd,100160,,LEARN DIS 18-64 LT,SUPP LIVING CONT,230530,,321014,SOCIAL CARE : Domiciliary Care,REDACTED,157003,Softbox manual Inv,20200506,20200506,SM,Softbox manual Inv,,0,Social Care,SK1 3TS,Y
http://statistics.data.gov.uk/id/local-authority/00BU,Trafford Borough Council,06/05/2020,1901358921,000044697677,1681.49,Creative Support Ltd,100160,,LEARN DIS 18-64 LT,SUPP LIVING CONT,230530,,321014,SOCIAL CARE : Domiciliary Care,REDACTED,157003,Softbox manual Inv,20200506,20200506,SM,Softbox manual Inv,,0,Social Care,SK1 3TS,Y
http://statistics.data.gov.uk/id/local-authority/00BU,Trafford Borough Council,06/05/2020,1901358921,000044697677,2073.8,Creative Support Ltd,100160,,LEARN DIS 18-64 LT,SUPP LIVING CONT,230530,,321014,SOCIAL CARE : Domiciliary Care,REDACTED,157003,Softbox manual Inv,20200506,20200506,SM,Softbox manual Inv,,0,Social Care,SK1 3TS,Y
http://statistics.data.gov.uk/id/local-authority/00BU,Trafford Borough Council,06/05/2020,1901358921,000044697677,84.41,Creative Support Ltd,100160,,LEARN DIS 18-64 LT,SUPP LIVING CONT,230530,,321014,SOCIAL CARE : Domiciliary Care,REDACTED,157003,Softbox manual Inv,20200506,20200506,SM,Softbox manual Inv,,0,Social Care,SK1 3TS,Y
http://statistics.data.gov.uk/id/local-authority/00BU,Trafford Borough Council,06/05/2020,1901358921,000044697677,129.35,Creative Support Ltd,100160,,LEARN DIS 18-64 LT,SUPP LIVING CONT,230530,,321014,SOCIAL CARE : Domiciliary Care,REDACTED,157003,Softbox manual Inv,20200506,20200506,SM,Softbox manual Inv,,0,Social Care,SK1 3TS,Y
http://statistics.data.gov.uk/id/local-authority/00BU,Trafford Borough Council,06/05/2020,1901358921,000044697677,181.08,Creative Support Ltd,100160,,LEARN DIS 18-64 LT,SUPP LIVING CONT,230530,,321014,SOCIAL CARE : Domiciliary Care,REDACTED,157003,Softbox manual Inv,20200506,20200506,SM,Softbox manual Inv,,0,Social Care,SK1 3TS,Y
http://statistics.data.gov.uk/id/local-authority/00BU,Trafford Borough Council,06/05/2020,1901358921,000044697677,1097.27,Creative Support Ltd,100160,,LEARN DIS 18-64 LT,SUPP LIVING CONT,230530,,321014,SOCIAL CARE : Domiciliary Care,REDACTED,157003,Softbox manual Inv,20200506,20200506,SM,Softbox manual Inv,,0,Social Care,SK1 3TS,Y
http://statistics.data.gov.uk/id/local-authority/00BU,Trafford Borough Council,06/05/2020,1901358921,000044697677,1681.49,Creative Support Ltd,100160,,LEARN DIS 18-64 LT,SUPP LIVING CONT,230530,,321014,SOCIAL CARE : Domiciliary Care,REDACTED,157003,Softbox manual Inv,20200506,20200506,SM,Softbox manual Inv,,0,Social Care,SK1 3TS,Y
http://statistics.data.gov.uk/id/local-authority/00BU,Trafford Borough Council,06/05/2020,1901358921,000044697677,2354.04,Creative Support Ltd,100160,,LEARN DIS 18-64 LT,SUPP LIVING CONT,230530,,321014,SOCIAL CARE : Domiciliary Care,REDACTED,157003,Softbox manual Inv,20200506,20200506,SM,Softbox manual Inv,,0,Social Care,SK1 3TS,Y
http://statistics.data.gov.uk/id/local-authority/00BU,Trafford Borough Council,11/05/2020,1901359075,469068,1181.68,Creative Support Ltd,100160,,LEARN DIS 18-64 LT,SUPP LIVING CONT,230530,,321014,SOCIAL CARE : Domiciliary Care,REDACTED,157003,Softbox invoice,20200511,20200511,SI,Softbox invoice,,0,Social Care,SK1 3TS,Y
http://statistics.data.gov.uk/id/local-authority/00BU,Trafford Borough Council,11/05/2020,1901359075,469068,1810.84,Creative Support Ltd,100160,,LEARN DIS 18-64 LT,SUPP LIVING CONT,230530,,321014,SOCIAL CARE : Domiciliary Care,REDACTED,157003,Softbox invoice,20200511,20200511,SI,Softbox invoice,,0,Social Care,SK1 3TS,Y
http://statistics.data.gov.uk/id/local-authority/00BU,Trafford Borough Council,11/05/2020,1901359075,469068,2233.32,Creative Support Ltd,100160,,LEARN DIS 18-64 LT,SUPP LIVING CONT,230530,,321014,SOCIAL CARE : Domiciliary Care,REDACTED,157003,Softbox invoice,20200511,20200511,SI,Softbox invoice,,0,Social Care,SK1 3TS,Y
http://statistics.data.gov.uk/id/local-authority/00BU,Trafford Borough Council,11/05/2020,1901359075,469068,1181.68,Creative Support Ltd,100160,,LEARN DIS 18-64 LT,SUPP LIVING CONT,230530,,321014,SOCIAL CARE : Domiciliary Care,REDACTED,157003,Softbox invoice,20200511,20200511,SI,Softbox invoice,,0,Social Care,SK1 3TS,Y
http://statistics.data.gov.uk/id/local-authority/00BU,Trafford Borough Council,11/05/2020,1901359075,469068,1810.84,Creative Support Ltd,100160,,LEARN DIS 18-64 LT,SUPP LIVING CONT,230530,,321014,SOCIAL CARE : Domiciliary Care,REDACTED,157003,Softbox invoice,20200511,20200511,SI,Softbox invoice,,0,Social Care,SK1 3TS,Y
http://statistics.data.gov.uk/id/local-authority/00BU,Trafford Borough Council,11/05/2020,1901359075,469068,2535.12,Creative Support Ltd,100160,,LEARN DIS 18-64 LT,SUPP LIVING CONT,230530,,321014,SOCIAL CARE : Domiciliary Care,REDACTED,157003,Softbox invoice,20200511,20200511,SI,Softbox invoice,,0,Social Care,SK1 3TS,Y
http://statistics.data.gov.uk/id/local-authority/00BU,Trafford Borough Council,18/05/2020,1700054465,427042405,-13207.7,Creative Support Ltd,100160,,PHYS SUPP 85+ LT,EXT DOM CARE SPOT CO,230845,,321014,SOCIAL CARE : Domiciliary Care,4wkAdv2704/2405,157030,Vendor credit memo,20200513,20200513,VC,Vendor credit memo,,0,Social Care,SK1 3TS,Y
http://statistics.data.gov.uk/id/local-authority/00BU,Trafford Borough Council,18/05/2020,1901359336,0000438759,820.92,Creative Support Ltd,100160,,MENT HLT 18-64 LT,SUPP LIVING CONT,230530,,321014,SOCIAL CARE : Domiciliary Care,REDACTED,157004,Softbox manual Inv,20200513,20200513,SM,Softbox manual Inv,,0,Social Care,SK1 3TS,Y
http://statistics.data.gov.uk/id/local-authority/00BU,Trafford Borough Council,18/05/2020,1901359336,0000438759,1195.6,Creative Support Ltd,100160,,MENT HLT 18-64 LT,SUPP LIVING CONT,230530,,321014,SOCIAL CARE : Domiciliary Care,REDACTED,157004,Softbox manual Inv,20200513,20200513,SM,Softbox manual Inv,,0,Social Care,SK1 3TS,Y
http://statistics.data.gov.uk/id/local-authority/00BU,Trafford Borough Council,18/05/2020,1901359337,303264132,61.19,Creative Support Ltd,100160,,MENT HLT 18-64 LT,SUPP LIVING CONT,230530,,321014,SOCIAL CARE : Domiciliary Care,REDACTED,157004,Softbox manual Inv,20200513,20200513,SM,Softbox manual Inv,,0,Social Care,SK1 3TS,Y
http://statistics.data.gov.uk/id/local-authority/00BU,Trafford Borough Council,18/05/2020,1901359337,303264132,89.1,Creative Support Ltd,100160,,MENT HLT 18-64 LT,SUPP LIVING CONT,230530,,321014,SOCIAL CARE : Domiciliary Care,REDACTED,157004,Softbox manual Inv,20200513,20200513,SM,Softbox manual Inv,,0,Social Care,SK1 3TS,Y
http://statistics.data.gov.uk/id/local-authority/00BU,Trafford Borough Council,18/05/2020,1901359337,303264132,795.53,Creative Support Ltd,100160,,MENT HLT 18-64 LT,SUPP LIVING CONT,230530,,321014,SOCIAL CARE : Domiciliary Care,REDACTED,157004,Softbox manual Inv,20200513,20200513,SM,Softbox manual Inv,,0,Social Care,SK1 3TS,Y
http://statistics.data.gov.uk/id/local-authority/00BU,Trafford Borough Council,18/05/2020,1901359337,303264132,1158.25,Creative Support Ltd,100160,,MENT HLT 18-64 LT,SUPP LIVING CONT,230530,,321014,SOCIAL CARE : Domiciliary Care,REDACTED,157004,Softbox manual Inv,20200513,20200513,SM,Softbox manual Inv,,0,Social Care,SK1 3TS,Y
http://statistics.data.gov.uk/id/local-authority/00BU,Trafford Borough Council,18/05/2020,1901359337,303264132,61.19,Creative Support Ltd,100160,,MENT HLT 18-64 LT,SUPP LIVING CONT,230530,,321014,SOCIAL CARE : Domiciliary Care,REDACTED,157004,Softbox manual Inv,20200513,20200513,SM,Softbox manual Inv,,0,Social Care,SK1 3TS,Y
http://statistics.data.gov.uk/id/local-authority/00BU,Trafford Borough Council,18/05/2020,1901359337,303264132,89.1,Creative Support Ltd,100160,,MENT HLT 18-64 LT,SUPP LIVING CONT,230530,,321014,SOCIAL CARE : Domiciliary Care,REDACTED,157004,Softbox manual Inv,20200513,20200513,SM,Softbox manual Inv,,0,Social Care,SK1 3TS,Y
http://statistics.data.gov.uk/id/local-authority/00BU,Trafford Borough Council,18/05/2020,1901359337,303264132,795.53,Creative Support Ltd,100160,,MENT HLT 18-64 LT,SUPP LIVING CONT,230530,,321014,SOCIAL CARE : Domiciliary Care,REDACTED,157004,Softbox manual Inv,20200513,20200513,SM,Softbox manual Inv,,0,Social Care,SK1 3TS,Y
http://statistics.data.gov.uk/id/local-authority/00BU,Trafford Borough Council,18/05/2020,1901359337,303264132,1158.25,Creative Support Ltd,100160,,MENT HLT 18-64 LT,SUPP LIVING CONT,230530,,321014,SOCIAL CARE : Domiciliary Care,REDACTED,157004,Softbox manual Inv,20200513,20200513,SM,Softbox manual Inv,,0,Social Care,SK1 3TS,Y
http://statistics.data.gov.uk/id/local-authority/00BU,Trafford Borough Council,18/05/2020,1901359337,303264132,61.19,Creative Support Ltd,100160,,MENT HLT 18-64 LT,SUPP LIVING CONT,230530,,321014,SOCIAL CARE : Domiciliary Care,REDACTED,157004,Softbox manual Inv,20200513,20200513,SM,Softbox manual Inv,,0,Social Care,SK1 3TS,Y
http://statistics.data.gov.uk/id/local-authority/00BU,Trafford Borough Council,18/05/2020,1901359337,303264132,89.1,Creative Support Ltd,100160,,MENT HLT 18-64 LT,SUPP LIVING CONT,230530,,321014,SOCIAL CARE : Domiciliary Care,REDACTED,157004,Softbox manual Inv,20200513,20200513,SM,Softbox manual Inv,,0,Social Care,SK1 3TS,Y
http://statistics.data.gov.uk/id/local-authority/00BU,Trafford Borough Council,18/05/2020,1901359337,303264132,795.53,Creative Support Ltd,100160,,MENT HLT 18-64 LT,SUPP LIVING CONT,230530,,321014,SOCIAL CARE : Domiciliary Care,REDACTED,157004,Softbox manual Inv,20200513,20200513,SM,Softbox manual Inv,,0,Social Care,SK1 3TS,Y
http://statistics.data.gov.uk/id/local-authority/00BU,Trafford Borough Council,18/05/2020,1901359337,303264132,1158.25,Creative Support Ltd,100160,,MENT HLT 18-64 LT,SUPP LIVING CONT,230530,,321014,SOCIAL CARE : Domiciliary Care,REDACTED,157004,Softbox manual Inv,20200513,20200513,SM,Softbox manual Inv,,0,Social Care,SK1 3TS,Y
http://statistics.data.gov.uk/id/local-authority/00BU,Trafford Borough Council,18/05/2020,1901359337,303264132,61.19,Creative Support Ltd,100160,,MENT HLT 18-64 LT,SUPP LIVING CONT,230530,,321014,SOCIAL CARE : Domiciliary Care,REDACTED,157004,Softbox manual Inv,20200513,20200513,SM,Softbox manual Inv,,0,Social Care,SK1 3TS,Y
http://statistics.data.gov.uk/id/local-authority/00BU,Trafford Borough Council,18/05/2020,1901359337,303264132,89.1,Creative Support Ltd,100160,,MENT HLT 18-64 LT,SUPP LIVING CONT,230530,,321014,SOCIAL CARE : Domiciliary Care,REDACTED,157004,Softbox manual Inv,20200513,20200513,SM,Softbox manual Inv,,0,Social Care,SK1 3TS,Y
http://statistics.data.gov.uk/id/local-authority/00BU,Trafford Borough Council,18/05/2020,1901359337,303264132,795.53,Creative Support Ltd,100160,,MENT HLT 18-64 LT,SUPP LIVING CONT,230530,,321014,SOCIAL CARE : Domiciliary Care,REDACTED,157004,Softbox manual Inv,20200513,20200513,SM,Softbox manual Inv,,0,Social Care,SK1 3TS,Y
http://statistics.data.gov.uk/id/local-authority/00BU,Trafford Borough Council,18/05/2020,1901359337,303264132,1158.25,Creative Support Ltd,100160,,MENT HLT 18-64 LT,SUPP LIVING CONT,230530,,321014,SOCIAL CARE : Domiciliary Care,REDACTED,157004,Softbox manual Inv,20200513,20200513,SM,Softbox manual Inv,,0,Social Care,SK1 3TS,Y
http://statistics.data.gov.uk/id/local-authority/00BU,Trafford Borough Council,18/05/2020,1901359834,448659,14.34,Creative Support Ltd,100160,,MENT HLT 18-64 LT,SUPP LIVING CONT,230530,,321014,SOCIAL CARE : Domiciliary Care,REDACTED,157004,Softbox manual Inv,20200518,20200518,SM,Softbox manual Inv,,0,Social Care,SK1 3TS,Y
http://statistics.data.gov.uk/id/local-authority/00BU,Trafford Borough Council,18/05/2020,1901359834,448659,119.46,Creative Support Ltd,100160,,MENT HLT 18-64 LT,SUPP LIVING CONT,230530,,321014,SOCIAL CARE : Domiciliary Care,REDACTED,157004,Softbox manual Inv,20200518,20200518,SM,Softbox manual Inv,,0,Social Care,SK1 3TS,Y
http://statistics.data.gov.uk/id/local-authority/00BU,Trafford Borough Council,18/05/2020,1901359834,448659,133.8,Creative Support Ltd,100160,,MENT HLT 18-64 LT,SUPP LIVING CONT,230530,,321014,SOCIAL CARE : Domiciliary Care,REDACTED,157004,Softbox manual Inv,20200518,20200518,SM,Softbox manual Inv,,0,Social Care,SK1 3TS,Y
http://statistics.data.gov.uk/id/local-authority/00BU,Trafford Borough Council,18/05/2020,1901359834,448659,133.8,Creative Support Ltd,100160,,MENT HLT 18-64 LT,SUPP LIVING CONT,230530,,321014,SOCIAL CARE : Domiciliary Care,REDACTED,157004,Softbox manual Inv,20200518,20200518,SM,Softbox manual Inv,,0,Social Care,SK1 3TS,Y
http://statistics.data.gov.uk/id/local-authority/00BU,Trafford Borough Council,18/05/2020,1901359834,448659,133.8,Creative Support Ltd,100160,,MENT HLT 18-64 LT,SUPP LIVING CONT,230530,,321014,SOCIAL CARE : Domiciliary Care,REDACTED,157004,Softbox manual Inv,20200518,20200518,SM,Softbox manual Inv,,0,Social Care,SK1 3TS,Y
http://statistics.data.gov.uk/id/local-authority/00BU,Trafford Borough Council,18/05/2020,1901359834,448659,133.8,Creative Support Ltd,100160,,MENT HLT 18-64 LT,SUPP LIVING CONT,230530,,321014,SOCIAL CARE : Domiciliary Care,REDACTED,157004,Softbox manual Inv,20200518,20200518,SM,Softbox manual Inv,,0,Social Care,SK1 3TS,Y
http://statistics.data.gov.uk/id/local-authority/00BU,Trafford Borough Council,18/05/2020,1901359834,448659,133.8,Creative Support Ltd,100160,,MENT HLT 18-64 LT,SUPP LIVING CONT,230530,,321014,SOCIAL CARE : Domiciliary Care,REDACTED,157004,Softbox manual Inv,20200518,20200518,SM,Softbox manual Inv,,0,Social Care,SK1 3TS,Y
http://statistics.data.gov.uk/id/local-authority/00BU,Trafford Borough Council,18/05/2020,1901359834,448659,133.8,Creative Support Ltd,100160,,MENT HLT 18-64 LT,SUPP LIVING CONT,230530,,321014,SOCIAL CARE : Domiciliary Care,REDACTED,157004,Softbox manual Inv,20200518,20200518,SM,Softbox manual Inv,,0,Social Care,SK1 3TS,Y
http://statistics.data.gov.uk/id/local-authority/00BU,Trafford Borough Council,18/05/2020,1901359834,448659,133.8,Creative Support Ltd,100160,,MENT HLT 18-64 LT,SUPP LIVING CONT,230530,,321014,SOCIAL CARE : Domiciliary Care,REDACTED,157004,Softbox manual Inv,20200518,20200518,SM,Softbox manual Inv,,0,Social Care,SK1 3TS,Y
http://statistics.data.gov.uk/id/local-authority/00BU,Trafford Borough Council,18/05/2020,1901359834,448659,133.8,Creative Support Ltd,100160,,MENT HLT 18-64 LT,SUPP LIVING CONT,230530,,321014,SOCIAL CARE : Domiciliary Care,REDACTED,157004,Softbox manual Inv,20200518,20200518,SM,Softbox manual Inv,,0,Social Care,SK1 3TS,Y
http://statistics.data.gov.uk/id/local-authority/00BU,Trafford Borough Council,18/05/2020,1901359834,448659,133.8,Creative Support Ltd,100160,,MENT HLT 18-64 LT,SUPP LIVING CONT,230530,,321014,SOCIAL CARE : Domiciliary Care,REDACTED,157004,Softbox manual Inv,20200518,20200518,SM,Softbox manual Inv,,0,Social Care,SK1 3TS,Y
http://statistics.data.gov.uk/id/local-authority/00BU,Trafford Borough Council,18/05/2020,1901359834,448659,133.8,Creative Support Ltd,100160,,MENT HLT 18-64 LT,SUPP LIVING CONT,230530,,321014,SOCIAL CARE : Domiciliary Care,REDACTED,157004,Softbox manual Inv,20200518,20200518,SM,Softbox manual Inv,,0,Social Care,SK1 3TS,Y
http://statistics.data.gov.uk/id/local-authority/00BU,Trafford Borough Council,18/05/2020,1901359834,448659,206.83,Creative Support Ltd,100160,,MENT HLT 18-64 LT,SUPP LIVING CONT,230530,,321014,SOCIAL CARE : Domiciliary Care,REDACTED,157004,Softbox manual Inv,20200518,20200518,SM,Softbox manual Inv,,0,Social Care,SK1 3TS,Y
http://statistics.data.gov.uk/id/local-authority/00BU,Trafford Borough Council,18/05/2020,1901359834,448659,-14.34,Creative Support Ltd,100160,,MENT HLT 18-64 LT,SUPP LIVING CONT,230530,,321014,SOCIAL CARE : Domiciliary Care,REDACTED,157004,Softbox manual Inv,20200518,20200518,SM,Softbox manual Inv,,0,Social Care,SK1 3TS,Y
http://statistics.data.gov.uk/id/local-authority/00BU,Trafford Borough Council,18/05/2020,1901359834,448659,-119.46,Creative Support Ltd,100160,,MENT HLT 18-64 LT,SUPP LIVING CONT,230530,,321014,SOCIAL CARE : Domiciliary Care,REDACTED,157004,Softbox manual Inv,20200518,20200518,SM,Softbox manual Inv,,0,Social Care,SK1 3TS,Y
http://statistics.data.gov.uk/id/local-authority/00BU,Trafford Borough Council,18/05/2020,1901359834,448659,-133.8,Creative Support Ltd,100160,,MENT HLT 18-64 LT,SUPP LIVING CONT,230530,,321014,SOCIAL CARE : Domiciliary Care,REDACTED,157004,Softbox manual Inv,20200518,20200518,SM,Softbox manual Inv,,0,Social Care,SK1 3TS,Y
http://statistics.data.gov.uk/id/local-authority/00BU,Trafford Borough Council,18/05/2020,1901359834,448659,-133.8,Creative Support Ltd,100160,,MENT HLT 18-64 LT,SUPP LIVING CONT,230530,,321014,SOCIAL CARE : Domiciliary Care,REDACTED,157004,Softbox manual Inv,20200518,20200518,SM,Softbox manual Inv,,0,Social Care,SK1 3TS,Y
http://statistics.data.gov.uk/id/local-authority/00BU,Trafford Borough Council,18/05/2020,1901359834,448659,-133.8,Creative Support Ltd,100160,,MENT HLT 18-64 LT,SUPP LIVING CONT,230530,,321014,SOCIAL CARE : Domiciliary Care,REDACTED,157004,Softbox manual Inv,20200518,20200518,SM,Softbox manual Inv,,0,Social Care,SK1 3TS,Y
http://statistics.data.gov.uk/id/local-authority/00BU,Trafford Borough Council,18/05/2020,1901359834,448659,-133.8,Creative Support Ltd,100160,,MENT HLT 18-64 LT,SUPP LIVING CONT,230530,,321014,SOCIAL CARE : Domiciliary Care,REDACTED,157004,Softbox manual Inv,20200518,20200518,SM,Softbox manual Inv,,0,Social Care,SK1 3TS,Y
http://statistics.data.gov.uk/id/local-authority/00BU,Trafford Borough Council,18/05/2020,1901359834,448659,-133.8,Creative Support Ltd,100160,,MENT HLT 18-64 LT,SUPP LIVING CONT,230530,,321014,SOCIAL CARE : Domiciliary Care,REDACTED,157004,Softbox manual Inv,20200518,20200518,SM,Softbox manual Inv,,0,Social Care,SK1 3TS,Y
http://statistics.data.gov.uk/id/local-authority/00BU,Trafford Borough Council,18/05/2020,1901359834,448659,-133.8,Creative Support Ltd,100160,,MENT HLT 18-64 LT,SUPP LIVING CONT,230530,,321014,SOCIAL CARE : Domiciliary Care,REDACTED,157004,Softbox manual Inv,20200518,20200518,SM,Softbox manual Inv,,0,Social Care,SK1 3TS,Y
http://statistics.data.gov.uk/id/local-authority/00BU,Trafford Borough Council,18/05/2020,1901359834,448659,-133.8,Creative Support Ltd,100160,,MENT HLT 18-64 LT,SUPP LIVING CONT,230530,,321014,SOCIAL CARE : Domiciliary Care,REDACTED,157004,Softbox manual Inv,20200518,20200518,SM,Softbox manual Inv,,0,Social Care,SK1 3TS,Y
http://statistics.data.gov.uk/id/local-authority/00BU,Trafford Borough Council,18/05/2020,1901359834,448659,-133.8,Creative Support Ltd,100160,,MENT HLT 18-64 LT,SUPP LIVING CONT,230530,,321014,SOCIAL CARE : Domiciliary Care,REDACTED,157004,Softbox manual Inv,20200518,20200518,SM,Softbox manual Inv,,0,Social Care,SK1 3TS,Y
http://statistics.data.gov.uk/id/local-authority/00BU,Trafford Borough Council,18/05/2020,1901359834,448659,-133.8,Creative Support Ltd,100160,,MENT HLT 18-64 LT,SUPP LIVING CONT,230530,,321014,SOCIAL CARE : Domiciliary Care,REDACTED,157004,Softbox manual Inv,20200518,20200518,SM,Softbox manual Inv,,0,Social Care,SK1 3TS,Y
http://statistics.data.gov.uk/id/local-authority/00BU,Trafford Borough Council,18/05/2020,1901359834,448659,-133.8,Creative Support Ltd,100160,,MENT HLT 18-64 LT,SUPP LIVING CONT,230530,,321014,SOCIAL CARE : Domiciliary Care,REDACTED,157004,Softbox manual Inv,20200518,20200518,SM,Softbox manual Inv,,0,Social Care,SK1 3TS,Y
http://statistics.data.gov.uk/id/local-authority/00BU,Trafford Borough Council,18/05/2020,1901359834,448659,14.34,Creative Support Ltd,100160,,MENT HLT 18-64 LT,SUPP LIVING CONT,230530,,321014,SOCIAL CARE : Domiciliary Care,REDACTED,157004,Softbox manual Inv,20200518,20200518,SM,Softbox manual Inv,,0,Social Care,SK1 3TS,Y
http://statistics.data.gov.uk/id/local-authority/00BU,Trafford Borough Council,18/05/2020,1901359834,448659,119.46,Creative Support Ltd,100160,,MENT HLT 18-64 LT,SUPP LIVING CONT,230530,,321014,SOCIAL CARE : Domiciliary Care,REDACTED,157004,Softbox manual Inv,20200518,20200518,SM,Softbox manual Inv,,0,Social Care,SK1 3TS,Y
http://statistics.data.gov.uk/id/local-authority/00BU,Trafford Borough Council,18/05/2020,1901359834,448659,133.8,Creative Support Ltd,100160,,MENT HLT 18-64 LT,SUPP LIVING CONT,230530,,321014,SOCIAL CARE : Domiciliary Care,REDACTED,157004,Softbox manual Inv,20200518,20200518,SM,Softbox manual Inv,,0,Social Care,SK1 3TS,Y
http://statistics.data.gov.uk/id/local-authority/00BU,Trafford Borough Council,18/05/2020,1901359834,448659,133.8,Creative Support Ltd,100160,,MENT HLT 18-64 LT,SUPP LIVING CONT,230530,,321014,SOCIAL CARE : Domiciliary Care,REDACTED,157004,Softbox manual Inv,20200518,20200518,SM,Softbox manual Inv,,0,Social Care,SK1 3TS,Y
http://statistics.data.gov.uk/id/local-authority/00BU,Trafford Borough Council,18/05/2020,1901359834,448659,133.8,Creative Support Ltd,100160,,MENT HLT 18-64 LT,SUPP LIVING CONT,230530,,321014,SOCIAL CARE : Domiciliary Care,REDACTED,157004,Softbox manual Inv,20200518,20200518,SM,Softbox manual Inv,,0,Social Care,SK1 3TS,Y
http://statistics.data.gov.uk/id/local-authority/00BU,Trafford Borough Council,18/05/2020,1901359834,448659,133.8,Creative Support Ltd,100160,,MENT HLT 18-64 LT,SUPP LIVING CONT,230530,,321014,SOCIAL CARE : Domiciliary Care,REDACTED,157004,Softbox manual Inv,20200518,20200518,SM,Softbox manual Inv,,0,Social Care,SK1 3TS,Y
http://statistics.data.gov.uk/id/local-authority/00BU,Trafford Borough Council,18/05/2020,1901359834,448659,133.8,Creative Support Ltd,100160,,MENT HLT 18-64 LT,SUPP LIVING CONT,230530,,321014,SOCIAL CARE : Domiciliary Care,REDACTED,157004,Softbox manual Inv,20200518,20200518,SM,Softbox manual Inv,,0,Social Care,SK1 3TS,Y
http://statistics.data.gov.uk/id/local-authority/00BU,Trafford Borough Council,18/05/2020,1901359834,448659,133.8,Creative Support Ltd,100160,,MENT HLT 18-64 LT,SUPP LIVING CONT,230530,,321014,SOCIAL CARE : Domiciliary Care,REDACTED,157004,Softbox manual Inv,20200518,20200518,SM,Softbox manual Inv,,0,Social Care,SK1 3TS,Y
http://statistics.data.gov.uk/id/local-authority/00BU,Trafford Borough Council,18/05/2020,1901359834,448659,133.8,Creative Support Ltd,100160,,MENT HLT 18-64 LT,SUPP LIVING CONT,230530,,321014,SOCIAL CARE : Domiciliary Care,REDACTED,157004,Softbox manual Inv,20200518,20200518,SM,Softbox manual Inv,,0,Social Care,SK1 3TS,Y
http://statistics.data.gov.uk/id/local-authority/00BU,Trafford Borough Council,18/05/2020,1901359834,448659,133.8,Creative Support Ltd,100160,,MENT HLT 18-64 LT,SUPP LIVING CONT,230530,,321014,SOCIAL CARE : Domiciliary Care,REDACTED,157004,Softbox manual Inv,20200518,20200518,SM,Softbox manual Inv,,0,Social Care,SK1 3TS,Y
http://statistics.data.gov.uk/id/local-authority/00BU,Trafford Borough Council,18/05/2020,1901359834,448659,133.8,Creative Support Ltd,100160,,MENT HLT 18-64 LT,SUPP LIVING CONT,230530,,321014,SOCIAL CARE : Domiciliary Care,REDACTED,157004,Softbox manual Inv,20200518,20200518,SM,Softbox manual Inv,,0,Social Care,SK1 3TS,Y
http://statistics.data.gov.uk/id/local-authority/00BU,Trafford Borough Council,18/05/2020,1901359834,448659,133.8,Creative Support Ltd,100160,,MENT HLT 18-64 LT,SUPP LIVING CONT,230530,,321014,SOCIAL CARE : Domiciliary Care,REDACTED,157004,Softbox manual Inv,20200518,20200518,SM,Softbox manual Inv,,0,Social Care,SK1 3TS,Y
http://statistics.data.gov.uk/id/local-authority/00BU,Trafford Borough Council,18/05/2020,1901359834,448659,-14.34,Creative Support Ltd,100160,,MENT HLT 18-64 LT,SUPP LIVING CONT,230530,,321014,SOCIAL CARE : Domiciliary Care,REDACTED,157004,Softbox manual Inv,20200518,20200518,SM,Softbox manual Inv,,0,Social Care,SK1 3TS,Y
http://statistics.data.gov.uk/id/local-authority/00BU,Trafford Borough Council,18/05/2020,1901359834,448659,-119.46,Creative Support Ltd,100160,,MENT HLT 18-64 LT,SUPP LIVING CONT,230530,,321014,SOCIAL CARE : Domiciliary Care,REDACTED,157004,Softbox manual Inv,20200518,20200518,SM,Softbox manual Inv,,0,Social Care,SK1 3TS,Y
http://statistics.data.gov.uk/id/local-authority/00BU,Trafford Borough Council,18/05/2020,1901359834,448659,-133.8,Creative Support Ltd,100160,,MENT HLT 18-64 LT,SUPP LIVING CONT,230530,,321014,SOCIAL CARE : Domiciliary Care,REDACTED,157004,Softbox manual Inv,20200518,20200518,SM,Softbox manual Inv,,0,Social Care,SK1 3TS,Y
http://statistics.data.gov.uk/id/local-authority/00BU,Trafford Borough Council,18/05/2020,1901359834,448659,-133.8,Creative Support Ltd,100160,,MENT HLT 18-64 LT,SUPP LIVING CONT,230530,,321014,SOCIAL CARE : Domiciliary Care,REDACTED,157004,Softbox manual Inv,20200518,20200518,SM,Softbox manual Inv,,0,Social Care,SK1 3TS,Y
http://statistics.data.gov.uk/id/local-authority/00BU,Trafford Borough Council,18/05/2020,1901359834,448659,-133.8,Creative Support Ltd,100160,,MENT HLT 18-64 LT,SUPP LIVING CONT,230530,,321014,SOCIAL CARE : Domiciliary Care,REDACTED,157004,Softbox manual Inv,20200518,20200518,SM,Softbox manual Inv,,0,Social Care,SK1 3TS,Y
http://statistics.data.gov.uk/id/local-authority/00BU,Trafford Borough Council,18/05/2020,1901359834,448659,-133.8,Creative Support Ltd,100160,,MENT HLT 18-64 LT,SUPP LIVING CONT,230530,,321014,SOCIAL CARE : Domiciliary Care,REDACTED,157004,Softbox manual Inv,20200518,20200518,SM,Softbox manual Inv,,0,Social Care,SK1 3TS,Y
http://statistics.data.gov.uk/id/local-authority/00BU,Trafford Borough Council,18/05/2020,1901359834,448659,-133.8,Creative Support Ltd,100160,,MENT HLT 18-64 LT,SUPP LIVING CONT,230530,,321014,SOCIAL CARE : Domiciliary Care,REDACTED,157004,Softbox manual Inv,20200518,20200518,SM,Softbox manual Inv,,0,Social Care,SK1 3TS,Y
http://statistics.data.gov.uk/id/local-authority/00BU,Trafford Borough Council,18/05/2020,1901359834,448659,-133.8,Creative Support Ltd,100160,,MENT HLT 18-64 LT,SUPP LIVING CONT,230530,,321014,SOCIAL CARE : Domiciliary Care,REDACTED,157004,Softbox manual Inv,20200518,20200518,SM,Softbox manual Inv,,0,Social Care,SK1 3TS,Y
http://statistics.data.gov.uk/id/local-authority/00BU,Trafford Borough Council,18/05/2020,1901359834,448659,-133.8,Creative Support Ltd,100160,,MENT HLT 18-64 LT,SUPP LIVING CONT,230530,,321014,SOCIAL CARE : Domiciliary Care,REDACTED,157004,Softbox manual Inv,20200518,20200518,SM,Softbox manual Inv,,0,Social Care,SK1 3TS,Y
http://statistics.data.gov.uk/id/local-authority/00BU,Trafford Borough Council,18/05/2020,1901359834,448659,-133.8,Creative Support Ltd,100160,,MENT HLT 18-64 LT,SUPP LIVING CONT,230530,,321014,SOCIAL CARE : Domiciliary Care,REDACTED,157004,Softbox manual Inv,20200518,20200518,SM,Softbox manual Inv,,0,Social Care,SK1 3TS,Y
http://statistics.data.gov.uk/id/local-authority/00BU,Trafford Borough Council,18/05/2020,1901359834,448659,-133.8,Creative Support Ltd,100160,,MENT HLT 18-64 LT,SUPP LIVING CONT,230530,,321014,SOCIAL CARE : Domiciliary Care,REDACTED,157004,Softbox manual Inv,20200518,20200518,SM,Softbox manual Inv,,0,Social Care,SK1 3TS,Y
http://statistics.data.gov.uk/id/local-authority/00BU,Trafford Borough Council,18/05/2020,1901359834,448659,-133.8,Creative Support Ltd,100160,,MENT HLT 18-64 LT,SUPP LIVING CONT,230530,,321014,SOCIAL CARE : Domiciliary Care,REDACTED,157004,Softbox manual Inv,20200518,20200518,SM,Softbox manual Inv,,0,Social Care,SK1 3TS,Y
http://statistics.data.gov.uk/id/local-authority/00BU,Trafford Borough Council,18/05/2020,1901359834,448659,14.34,Creative Support Ltd,100160,,SOCIAL SUPPORT 18-64,SUPP LIVING CONT,230530,,321014,SOCIAL CARE : Domiciliary Care,REDACTED,157005,Softbox manual Inv,20200518,20200518,SM,Softbox manual Inv,,0,Social Care,SK1 3TS,Y
http://statistics.data.gov.uk/id/local-authority/00BU,Trafford Borough Council,18/05/2020,1901359834,448659,119.46,Creative Support Ltd,100160,,SOCIAL SUPPORT 18-64,SUPP LIVING CONT,230530,,321014,SOCIAL CARE : Domiciliary Care,REDACTED,157005,Softbox manual Inv,20200518,20200518,SM,Softbox manual Inv,,0,Social Care,SK1 3TS,Y
http://statistics.data.gov.uk/id/local-authority/00BU,Trafford Borough Council,18/05/2020,1901359834,448659,133.8,Creative Support Ltd,100160,,SOCIAL SUPPORT 18-64,SUPP LIVING CONT,230530,,321014,SOCIAL CARE : Domiciliary Care,REDACTED,157005,Softbox manual Inv,20200518,20200518,SM,Softbox manual Inv,,0,Social Care,SK1 3TS,Y
http://statistics.data.gov.uk/id/local-authority/00BU,Trafford Borough Council,18/05/2020,1901359834,448659,133.8,Creative Support Ltd,100160,,SOCIAL SUPPORT 18-64,SUPP LIVING CONT,230530,,321014,SOCIAL CARE : Domiciliary Care,REDACTED,157005,Softbox manual Inv,20200518,20200518,SM,Softbox manual Inv,,0,Social Care,SK1 3TS,Y
http://statistics.data.gov.uk/id/local-authority/00BU,Trafford Borough Council,18/05/2020,1901359834,448659,133.8,Creative Support Ltd,100160,,SOCIAL SUPPORT 18-64,SUPP LIVING CONT,230530,,321014,SOCIAL CARE : Domiciliary Care,REDACTED,157005,Softbox manual Inv,20200518,20200518,SM,Softbox manual Inv,,0,Social Care,SK1 3TS,Y
http://statistics.data.gov.uk/id/local-authority/00BU,Trafford Borough Council,18/05/2020,1901359834,448659,133.8,Creative Support Ltd,100160,,SOCIAL SUPPORT 18-64,SUPP LIVING CONT,230530,,321014,SOCIAL CARE : Domiciliary Care,REDACTED,157005,Softbox manual Inv,20200518,20200518,SM,Softbox manual Inv,,0,Social Care,SK1 3TS,Y
http://statistics.data.gov.uk/id/local-authority/00BU,Trafford Borough Council,18/05/2020,1901359834,448659,133.8,Creative Support Ltd,100160,,SOCIAL SUPPORT 18-64,SUPP LIVING CONT,230530,,321014,SOCIAL CARE : Domiciliary Care,REDACTED,157005,Softbox manual Inv,20200518,20200518,SM,Softbox manual Inv,,0,Social Care,SK1 3TS,Y
http://statistics.data.gov.uk/id/local-authority/00BU,Trafford Borough Council,18/05/2020,1901359834,448659,133.8,Creative Support Ltd,100160,,SOCIAL SUPPORT 18-64,SUPP LIVING CONT,230530,,321014,SOCIAL CARE : Domiciliary Care,REDACTED,157005,Softbox manual Inv,20200518,20200518,SM,Softbox manual Inv,,0,Social Care,SK1 3TS,Y
http://statistics.data.gov.uk/id/local-authority/00BU,Trafford Borough Council,18/05/2020,1901359834,448659,133.8,Creative Support Ltd,100160,,SOCIAL SUPPORT 18-64,SUPP LIVING CONT,230530,,321014,SOCIAL CARE : Domiciliary Care,REDACTED,157005,Softbox manual Inv,20200518,20200518,SM,Softbox manual Inv,,0,Social Care,SK1 3TS,Y
http://statistics.data.gov.uk/id/local-authority/00BU,Trafford Borough Council,18/05/2020,1901359834,448659,133.8,Creative Support Ltd,100160,,SOCIAL SUPPORT 18-64,SUPP LIVING CONT,230530,,321014,SOCIAL CARE : Domiciliary Care,REDACTED,157005,Softbox manual Inv,20200518,20200518,SM,Softbox manual Inv,,0,Social Care,SK1 3TS,Y
http://statistics.data.gov.uk/id/local-authority/00BU,Trafford Borough Council,18/05/2020,1901359834,448659,133.8,Creative Support Ltd,100160,,SOCIAL SUPPORT 18-64,SUPP LIVING CONT,230530,,321014,SOCIAL CARE : Domiciliary Care,REDACTED,157005,Softbox manual Inv,20200518,20200518,SM,Softbox manual Inv,,0,Social Care,SK1 3TS,Y
http://statistics.data.gov.uk/id/local-authority/00BU,Trafford Borough Council,18/05/2020,1901359834,448659,133.8,Creative Support Ltd,100160,,SOCIAL SUPPORT 18-64,SUPP LIVING CONT,230530,,321014,SOCIAL CARE : Domiciliary Care,REDACTED,157005,Softbox manual Inv,20200518,20200518,SM,Softbox manual Inv,,0,Social Care,SK1 3TS,Y
http://statistics.data.gov.uk/id/local-authority/00BU,Trafford Borough Council,18/05/2020,1901359834,448659,-14.34,Creative Support Ltd,100160,,SOCIAL SUPPORT 18-64,SUPP LIVING CONT,230530,,321014,SOCIAL CARE : Domiciliary Care,REDACTED,157005,Softbox manual Inv,20200518,20200518,SM,Softbox manual Inv,,0,Social Care,SK1 3TS,Y
http://statistics.data.gov.uk/id/local-authority/00BU,Trafford Borough Council,18/05/2020,1901359834,448659,-119.46,Creative Support Ltd,100160,,SOCIAL SUPPORT 18-64,SUPP LIVING CONT,230530,,321014,SOCIAL CARE : Domiciliary Care,REDACTED,157005,Softbox manual Inv,20200518,20200518,SM,Softbox manual Inv,,0,Social Care,SK1 3TS,Y
http://statistics.data.gov.uk/id/local-authority/00BU,Trafford Borough Council,18/05/2020,1901359834,448659,-133.8,Creative Support Ltd,100160,,SOCIAL SUPPORT 18-64,SUPP LIVING CONT,230530,,321014,SOCIAL CARE : Domiciliary Care,REDACTED,157005,Softbox manual Inv,20200518,20200518,SM,Softbox manual Inv,,0,Social Care,SK1 3TS,Y
http://statistics.data.gov.uk/id/local-authority/00BU,Trafford Borough Council,18/05/2020,1901359834,448659,-133.8,Creative Support Ltd,100160,,SOCIAL SUPPORT 18-64,SUPP LIVING CONT,230530,,321014,SOCIAL CARE : Domiciliary Care,REDACTED,157005,Softbox manual Inv,20200518,20200518,SM,Softbox manual Inv,,0,Social Care,SK1 3TS,Y
http://statistics.data.gov.uk/id/local-authority/00BU,Trafford Borough Council,18/05/2020,1901359834,448659,-133.8,Creative Support Ltd,100160,,SOCIAL SUPPORT 18-64,SUPP LIVING CONT,230530,,321014,SOCIAL CARE : Domiciliary Care,REDACTED,157005,Softbox manual Inv,20200518,20200518,SM,Softbox manual Inv,,0,Social Care,SK1 3TS,Y
http://statistics.data.gov.uk/id/local-authority/00BU,Trafford Borough Council,18/05/2020,1901359834,448659,-133.8,Creative Support Ltd,100160,,SOCIAL SUPPORT 18-64,SUPP LIVING CONT,230530,,321014,SOCIAL CARE : Domiciliary Care,REDACTED,157005,Softbox manual Inv,20200518,20200518,SM,Softbox manual Inv,,0,Social Care,SK1 3TS,Y
http://statistics.data.gov.uk/id/local-authority/00BU,Trafford Borough Council,18/05/2020,1901359834,448659,-133.8,Creative Support Ltd,100160,,SOCIAL SUPPORT 18-64,SUPP LIVING CONT,230530,,321014,SOCIAL CARE : Domiciliary Care,REDACTED,157005,Softbox manual Inv,20200518,20200518,SM,Softbox manual Inv,,0,Social Care,SK1 3TS,Y
http://statistics.data.gov.uk/id/local-authority/00BU,Trafford Borough Council,18/05/2020,1901359834,448659,-133.8,Creative Support Ltd,100160,,SOCIAL SUPPORT 18-64,SUPP LIVING CONT,230530,,321014,SOCIAL CARE : Domiciliary Care,REDACTED,157005,Softbox manual Inv,20200518,20200518,SM,Softbox manual Inv,,0,Social Care,SK1 3TS,Y
http://statistics.data.gov.uk/id/local-authority/00BU,Trafford Borough Council,18/05/2020,1901359834,448659,-133.8,Creative Support Ltd,100160,,SOCIAL SUPPORT 18-64,SUPP LIVING CONT,230530,,321014,SOCIAL CARE : Domiciliary Care,REDACTED,157005,Softbox manual Inv,20200518,20200518,SM,Softbox manual Inv,,0,Social Care,SK1 3TS,Y
http://statistics.data.gov.uk/id/local-authority/00BU,Trafford Borough Council,18/05/2020,1901359834,448659,-133.8,Creative Support Ltd,100160,,SOCIAL SUPPORT 18-64,SUPP LIVING CONT,230530,,321014,SOCIAL CARE : Domiciliary Care,REDACTED,157005,Softbox manual Inv,20200518,20200518,SM,Softbox manual Inv,,0,Social Care,SK1 3TS,Y
http://statistics.data.gov.uk/id/local-authority/00BU,Trafford Borough Council,18/05/2020,1901359834,448659,-133.8,Creative Support Ltd,100160,,SOCIAL SUPPORT 18-64,SUPP LIVING CONT,230530,,321014,SOCIAL CARE : Domiciliary Care,REDACTED,157005,Softbox manual Inv,20200518,20200518,SM,Softbox manual Inv,,0,Social Care,SK1 3TS,Y
http://statistics.data.gov.uk/id/local-authority/00BU,Trafford Borough Council,18/05/2020,1901359834,448659,-133.8,Creative Support Ltd,100160,,SOCIAL SUPPORT 18-64,SUPP LIVING CONT,230530,,321014,SOCIAL CARE : Domiciliary Care,REDACTED,157005,Softbox manual Inv,20200518,20200518,SM,Softbox manual Inv,,0,Social Care,SK1 3TS,Y
http://statistics.data.gov.uk/id/local-authority/00BU,Trafford Borough Council,18/05/2020,1901359835,448660,63.64,Creative Support Ltd,100160,,MENT HLT 18-64 LT,SUPP LIVING CONT,230530,,321014,SOCIAL CARE : Domiciliary Care,REDACTED,157004,Softbox manual Inv,20200518,20200518,SM,Softbox manual Inv,,0,Social Care,SK1 3TS,Y
http://statistics.data.gov.uk/id/local-authority/00BU,Trafford Borough Council,18/05/2020,1901359836,448662,190.92,Creative Support Ltd,100160,,SOCIAL SUPPORT 18-64,SUPP LIVING CONT,230530,,321014,SOCIAL CARE : Domiciliary Care,REDACTED,157005,Softbox manual Inv,20200518,20200518,SM,Softbox manual Inv,,0,Social Care,SK1 3TS,Y
http://statistics.data.gov.uk/id/local-authority/00BU,Trafford Borough Council,18/05/2020,1901359837,448663,127.28,Creative Support Ltd,100160,,MENT HLT 18-64 LT,SUPP LIVING CONT,230530,,321014,SOCIAL CARE : Domiciliary Care,REDACTED,157004,Softbox manual Inv,20200518,20200518,SM,Softbox manual Inv,,0,Social Care,SK1 3TS,Y
http://statistics.data.gov.uk/id/local-authority/00BU,Trafford Borough Council,18/05/2020,1901359838,448780,186.6,Creative Support Ltd,100160,,LEARN DIS 18-64 LT,SUPP LIVING CONT,230530,,321014,SOCIAL CARE : Domiciliary Care,REDACTED,157003,Softbox manual Inv,20200518,20200518,SM,Softbox manual Inv,,0,Social Care,SK1 3TS,Y
http://statistics.data.gov.uk/id/local-authority/00BU,Trafford Borough Council,18/05/2020,1901359838,448780,2425.8,Creative Support Ltd,100160,,LEARN DIS 18-64 LT,SUPP LIVING CONT,230530,,321014,SOCIAL CARE : Domiciliary Care,REDACTED,157003,Softbox manual Inv,20200518,20200518,SM,Softbox manual Inv,,0,Social Care,SK1 3TS,Y
http://statistics.data.gov.uk/id/local-authority/00BU,Trafford Borough Council,18/05/2020,1901359838,448780,133.29,Creative Support Ltd,100160,,LEARN DIS 18-64 LT,SUPP LIVING CONT,230530,,321014,SOCIAL CARE : Domiciliary Care,REDACTED,157003,Softbox manual Inv,20200518,20200518,SM,Softbox manual Inv,,0,Social Care,SK1 3TS,Y
http://statistics.data.gov.uk/id/local-authority/00BU,Trafford Borough Council,18/05/2020,1901359838,448780,1732.71,Creative Support Ltd,100160,,LEARN DIS 18-64 LT,SUPP LIVING CONT,230530,,321014,SOCIAL CARE : Domiciliary Care,REDACTED,157003,Softbox manual Inv,20200518,20200518,SM,Softbox manual Inv,,0,Social Care,SK1 3TS,Y
http://statistics.data.gov.uk/id/local-authority/00BU,Trafford Borough Council,18/05/2020,1901359838,448780,111.07,Creative Support Ltd,100160,,LEARN DIS 18-64 LT,SUPP LIVING CONT,230530,,321014,SOCIAL CARE : Domiciliary Care,REDACTED,157003,Softbox manual Inv,20200518,20200518,SM,Softbox manual Inv,,0,Social Care,SK1 3TS,Y
http://statistics.data.gov.uk/id/local-authority/00BU,Trafford Borough Council,18/05/2020,1901359838,448780,119.96,Creative Support Ltd,100160,,LEARN DIS 18-64 LT,SUPP LIVING CONT,230530,,321014,SOCIAL CARE : Domiciliary Care,REDACTED,157003,Softbox manual Inv,20200518,20200518,SM,Softbox manual Inv,,0,Social Care,SK1 3TS,Y
http://statistics.data.gov.uk/id/local-authority/00BU,Trafford Borough Council,18/05/2020,1901359838,448780,1443.93,Creative Support Ltd,100160,,LEARN DIS 18-64 LT,SUPP LIVING CONT,230530,,321014,SOCIAL CARE : Domiciliary Care,REDACTED,157003,Softbox manual Inv,20200518,20200518,SM,Softbox manual Inv,,0,Social Care,SK1 3TS,Y
http://statistics.data.gov.uk/id/local-authority/00BU,Trafford Borough Council,18/05/2020,1901359838,448780,1559.44,Creative Support Ltd,100160,,LEARN DIS 18-64 LT,SUPP LIVING CONT,230530,,321014,SOCIAL CARE : Domiciliary Care,REDACTED,157003,Softbox manual Inv,20200518,20200518,SM,Softbox manual Inv,,0,Social Care,SK1 3TS,Y
http://statistics.data.gov.uk/id/local-authority/00BU,Trafford Borough Council,18/05/2020,1901359838,448780,988.43,Creative Support Ltd,100160,,SUPPORTED LVG BLOCKS,SUPP LIVING CONT,230530,,321014,SOCIAL CARE : Domiciliary Care,REDACTED,251342,Softbox manual Inv,20200518,20200518,SM,Softbox manual Inv,,0,Social Care,SK1 3TS,Y
http://statistics.data.gov.uk/id/local-authority/00BU,Trafford Borough Council,18/05/2020,1901359838,448780,12849.61,Creative Support Ltd,100160,,SUPPORTED LVG BLOCKS,SUPP LIVING CONT,230530,,321014,SOCIAL CARE : Domiciliary Care,REDACTED,251342,Softbox manual Inv,20200518,20200518,SM,Softbox manual Inv,,0,Social Care,SK1 3TS,Y
http://statistics.data.gov.uk/id/local-authority/00BU,Trafford Borough Council,18/05/2020,1901359851,448661,27.41,Creative Support Ltd,100160,,MENT HLT 18-64 LT,EXT DOM CARE SPOT CO,230845,,321014,SOCIAL CARE : Domiciliary Care,REDACTED,157004,Softbox manual Inv,20200518,20200518,SM,Softbox manual Inv,,0,Social Care,SK1 3TS,Y
http://statistics.data.gov.uk/id/local-authority/00BU,Trafford Borough Council,18/05/2020,1901359851,448661,356.35,Creative Support Ltd,100160,,MENT HLT 18-64 LT,EXT DOM CARE SPOT CO,230845,,321014,SOCIAL CARE : Domiciliary Care,REDACTED,157004,Softbox manual Inv,20200518,20200518,SM,Softbox manual Inv,,0,Social Care,SK1 3TS,Y
http://statistics.data.gov.uk/id/local-authority/00BU,Trafford Borough Council,18/05/2020,1901359852,448668,13.71,Creative Support Ltd,100160,,MENT HLT 18-64 LT,EXT DOM CARE SPOT CO,230845,,321014,SOCIAL CARE : Domiciliary Care,REDACTED,157004,Softbox manual Inv,20200518,20200518,SM,Softbox manual Inv,,0,Social Care,SK1 3TS,Y
http://statistics.data.gov.uk/id/local-authority/00BU,Trafford Borough Council,18/05/2020,1901359852,448668,178.18,Creative Support Ltd,100160,,MENT HLT 18-64 LT,EXT DOM CARE SPOT CO,230845,,321014,SOCIAL CARE : Domiciliary Care,REDACTED,157004,Softbox manual Inv,20200518,20200518,SM,Softbox manual Inv,,0,Social Care,SK1 3TS,Y
http://statistics.data.gov.uk/id/local-authority/00BU,Trafford Borough Council,18/05/2020,1901359856,448664,25,Creative Support Ltd,100160,,MENT HLT 18-64 LT,SUPP LIVING CONT,230530,,321014,SOCIAL CARE : Domiciliary Care,REDACTED,157004,Softbox manual Inv,20200518,20200518,SM,Softbox manual Inv,,0,Social Care,SK1 3TS,Y
http://statistics.data.gov.uk/id/local-authority/00BU,Trafford Borough Council,18/05/2020,1901359856,448664,325.02,Creative Support Ltd,100160,,MENT HLT 18-64 LT,SUPP LIVING CONT,230530,,321014,SOCIAL CARE : Domiciliary Care,REDACTED,157004,Softbox manual Inv,20200518,20200518,SM,Softbox manual Inv,,0,Social Care,SK1 3TS,Y
http://statistics.data.gov.uk/id/local-authority/00BU,Trafford Borough Council,18/05/2020,1901359857,448665,59.09,Creative Support Ltd,100160,,MENT HLT 18-64 LT,SUPP LIVING CONT,230530,,321014,SOCIAL CARE : Domiciliary Care,REDACTED,157004,Softbox manual Inv,20200518,20200518,SM,Softbox manual Inv,,0,Social Care,SK1 3TS,Y
http://statistics.data.gov.uk/id/local-authority/00BU,Trafford Borough Council,18/05/2020,1901359857,448665,768.23,Creative Support Ltd,100160,,MENT HLT 18-64 LT,SUPP LIVING CONT,230530,,321014,SOCIAL CARE : Domiciliary Care,REDACTED,157004,Softbox manual Inv,20200518,20200518,SM,Softbox manual Inv,,0,Social Care,SK1 3TS,Y
http://statistics.data.gov.uk/id/local-authority/00BU,Trafford Borough Council,18/05/2020,1901359858,448666,54.55,Creative Support Ltd,100160,,MENT HLT 18-64 LT,SUPP LIVING CONT,230530,,321014,SOCIAL CARE : Domiciliary Care,REDACTED,157004,Softbox manual Inv,20200518,20200518,SM,Softbox manual Inv,,0,Social Care,SK1 3TS,Y
http://statistics.data.gov.uk/id/local-authority/00BU,Trafford Borough Council,18/05/2020,1901359858,448666,709.13,Creative Support Ltd,100160,,MENT HLT 18-64 LT,SUPP LIVING CONT,230530,,321014,SOCIAL CARE : Domiciliary Care,REDACTED,157004,Softbox manual Inv,20200518,20200518,SM,Softbox manual Inv,,0,Social Care,SK1 3TS,Y
http://statistics.data.gov.uk/id/local-authority/00BU,Trafford Borough Council,18/05/2020,1901359859,448667,54.55,Creative Support Ltd,100160,,MENT HLT 18-64 LT,SUPP LIVING CONT,230530,,321014,SOCIAL CARE : Domiciliary Care,REDACTED,157004,Softbox manual Inv,20200518,20200518,SM,Softbox manual Inv,,0,Social Care,SK1 3TS,Y
http://statistics.data.gov.uk/id/local-authority/00BU,Trafford Borough Council,18/05/2020,1901359859,448667,709.13,Creative Support Ltd,100160,,MENT HLT 18-64 LT,SUPP LIVING CONT,230530,,321014,SOCIAL CARE : Domiciliary Care,REDACTED,157004,Softbox manual Inv,20200518,20200518,SM,Softbox manual Inv,,0,Social Care,SK1 3TS,Y
http://statistics.data.gov.uk/id/local-authority/00BU,Trafford Borough Council,18/05/2020,1901359872,448756,728.46,Creative Support Ltd,100160,,LEARN DIS 18-64 LT,SUPP LIVING CONT,230530,,321014,SOCIAL CARE : Domiciliary Care,REDACTED,157003,Softbox manual Inv,20200518,20200518,SM,Softbox manual Inv,,0,Social Care,SK1 3TS,Y
http://statistics.data.gov.uk/id/local-authority/00BU,Trafford Borough Council,18/05/2020,1901359872,448756,2443.59,Creative Support Ltd,100160,,LEARN DIS 18-64 LT,SUPP LIVING CONT,230530,,321014,SOCIAL CARE : Domiciliary Care,REDACTED,157003,Softbox manual Inv,20200518,20200518,SM,Softbox manual Inv,,0,Social Care,SK1 3TS,Y
http://statistics.data.gov.uk/id/local-authority/00BU,Trafford Borough Council,18/05/2020,1901359872,448756,9469.98,Creative Support Ltd,100160,,LEARN DIS 18-64 LT,SUPP LIVING CONT,230530,,321014,SOCIAL CARE : Domiciliary Care,REDACTED,157003,Softbox manual Inv,20200518,20200518,SM,Softbox manual Inv,,0,Social Care,SK1 3TS,Y
http://statistics.data.gov.uk/id/local-authority/00BU,Trafford Borough Council,18/05/2020,1901359872,448756,-2343.56,Creative Support Ltd,100160,,LEARN DIS 18-64 LT,SUPP LIVING CONT,230530,,321014,SOCIAL CARE : Domiciliary Care,REDACTED,157003,Softbox manual Inv,20200518,20200518,SM,Softbox manual Inv,,0,Social Care,SK1 3TS,Y
http://statistics.data.gov.uk/id/local-authority/00BU,Trafford Borough Council,26/05/2020,1901361447,475701,827.32,Creative Support Ltd,100160,,MENT HLT 18-64 LT,SUPP LIVING CONT,230530,,321014,SOCIAL CARE : Domiciliary Care,REDACTED,157004,Softbox invoice,20200526,20200526,SI,Softbox invoice,,0,Social Care,SK1 3TS,Y
http://statistics.data.gov.uk/id/local-authority/00BU,Trafford Borough Council,26/05/2020,1901361447,475701,509.12,Creative Support Ltd,100160,,MENT HLT 18-64 LT,SUPP LIVING CONT,230530,,321014,SOCIAL CARE : Domiciliary Care,REDACTED,157004,Softbox invoice,20200526,20200526,SI,Softbox invoice,,0,Social Care,SK1 3TS,Y
http://statistics.data.gov.uk/id/local-authority/00BU,Trafford Borough Council,26/05/2020,1901361447,475701,254.56,Creative Support Ltd,100160,,MENT HLT 18-64 LT,SUPP LIVING CONT,230530,,321014,SOCIAL CARE : Domiciliary Care,REDACTED,157004,Softbox invoice,20200526,20200526,SI,Softbox invoice,,0,Social Care,SK1 3TS,Y
http://statistics.data.gov.uk/id/local-authority/00BU,Trafford Borough Council,26/05/2020,1901361447,475701,763.68,Creative Support Ltd,100160,,SOCIAL SUPPORT 18-64,SUPP LIVING CONT,230530,,321014,SOCIAL CARE : Domiciliary Care,REDACTED,157005,Softbox invoice,20200526,20200526,SI,Softbox invoice,,0,Social Care,SK1 3TS,Y
http://statistics.data.gov.uk/id/local-authority/00BU,Trafford Borough Council,26/05/2020,1901361448,475700,1314.32,Creative Support Ltd,100160,,Recharge Enhanced Ca,SUPP LIVING CONT,230530,,321014,SOCIAL CARE : Domiciliary Care,REDACTED,157040,Softbox invoice,20200526,20200526,SI,Softbox invoice,,0,Social Care,SK1 3TS,Y
http://statistics.data.gov.uk/id/local-authority/00BU,Trafford Borough Council,26/05/2020,1901361448,475700,6571.6,Creative Support Ltd,100160,,JOULES HOUSE PROJECT,SUPP LIVING CONT,230530,,321014,SOCIAL CARE : Domiciliary Care,REDACTED,253075,Softbox invoice,20200526,20200526,SI,Softbox invoice,,0,Social Care,SK1 3TS,Y
